Workbook

Sheet Shooter Information
B1: CAS SHOOTER INFORMATION | D1: Club: | E1: Cavalier Cowboys
D2: Date: | E2: Wednesday April 9th, 2014
D3: Number of Shooters: | E3: =COUNTA(B6:B80) -> 4 | F3: of | G3: =COUNT(A6:A151) -> 75
A5: Roster # | B5: Shooter | C5: Class | E5: Posse | F5: Shooting #
A6: =ROW()-5 -> 1 | B6: Striker
A7: 2 | B7: Doc Deadwood
A8: 3 | B8: Cold Blue Mike
A9: 4 | B9: B.S. Walker
A10: 5
A11: 6
A12: 7
A13: 8
A14: 9
A15: 10
A16: 11
A17: 12
A18: 13
A19: 14
A20: 15
A21: 16
A22: 17
A23: 18
A24: 19
A25: 20
A26: 21
A27: 22
A28: 23
A29: 24
A30: 25
A31: 26
A32: 27
A33: 28
A34: 29
A35: 30
A36: 31
A37: 32
A38: =ROW()-5 -> 33
A39: 34
A40: 35
A41: 36
A42: 37
A43: 38
A44: 39
A45: 40
A46: 41
A47: 42
A48: 43
A49: 44
A50: 45
A51: 46
A52: 47
A53: 48
A54: 49
A55: 50
A56: 51
A57: 52
A58: 53
A59: 54
A60: 55
A61: 56
A62: 57
A63: 58
A64: 59
A65: 60
A66: 61
A67: 62
A68: 63
A69: 64
A70: =ROW()-5 -> 65
A71: 66
A72: 67
A73: 68
A74: 69
A75: 70
A76: 71
A77: 72
A78: 73
A79: 74
A80: 75

Sheet Stage 1
B1: CAS SCORE SHEET | D1: Date: | E1: ='Shooter Information'!$E$2 -> Wednesday April 9th, 2014
B2: Stage 1
A3: Roster # | B3: Shooter | C3: Class | D3: Misses | E3: Raw Time | F3: Bonus | G3: 10 Sec | H3: 30 Sec | I3: DNF | J3: DQ | K3: Total | L3: Rank | M3: Penalties
A4: =ROW()-3 -> 1 | B4: ='Shooter Information'!B6 -> Striker | C4: ='Shooter Information'!C6 -> 0 | E4: 22.75 | K4: =(D4*5)+E4-F4+(G4*10)+(H4*30)+(I4*999)+(J4*999.99) -> 22.75 | L4: =IF('Shooter Information'!$E$3-('Shooter Information'!$G$3-RANK(K4,K$4:K$78,1))<0,0,'Shooter Information'!$E$3-('Shooter Information'!$G$3-RANK(K4,K$4:K$78,1))) -> 1 | M4: =(SUM(D4+G4+H4+I4+J4)) -> 0
A5: =ROW()-3 -> 2 | B5: ='Shooter Information'!B7 -> Doc Deadwood | C5: ='Shooter Information'!C7 -> 0 | E5: 31.73 | K5: =(D5*5)+E5-F5+(G5*10)+(H5*30)+(I5*999)+(J5*999.99) -> 31.73 | L5: =IF('Shooter Information'!$E$3-('Shooter Information'!$G$3-RANK(K5,K$4:K$78,1))<0,0,'Shooter Information'!$E$3-('Shooter Information'!$G$3-RANK(K5,K$4:K$78,1))) -> 4 | M5: =(SUM(D5+G5+H5+I5+J5)) -> 0
A6: 3 | B6: ='Shooter Information'!B8 -> Cold Blue Mike | C6: ='Shooter Information'!C8 -> 0 | E6: 24.07 | K6: 24.07 | L6: =IF('Shooter Information'!$E$3-('Shooter Information'!$G$3-RANK(K6,K$4:K$78,1))<0,0,'Shooter Information'!$E$3-('Shooter Information'!$G$3-RANK(K6,K$4:K$78,1))) -> 3 | M6: 0
A7: 4 | B7: ='Shooter Information'!B9 -> B.S. Walker | C7: ='Shooter Information'!C9 -> 0 | E7: 23.61 | K7: 23.61 | L7: =IF('Shooter Information'!$E$3-('Shooter Information'!$G$3-RANK(K7,K$4:K$78,1))<0,0,'Shooter Information'!$E$3-('Shooter Information'!$G$3-RANK(K7,K$4:K$78,1))) -> 2 | M7: 0
A8: 5 | B8: ='Shooter Information'!B10 -> 0 | C8: ='Shooter Information'!C10 -> 0 | K8: 0 | L8: =IF('Shooter Information'!$E$3-('Shooter Information'!$G$3-RANK(K8,K$4:K$78,1))<0,0,'Shooter Information'!$E$3-('Shooter Information'!$G$3-RANK(K8,K$4:K$78,1))) -> 0 | M8: 0
A9: 6 | B9: ='Shooter Information'!B11 -> 0 | C9: ='Shooter Information'!C11 -> 0 | K9: 0 | L9: =IF('Shooter Information'!$E$3-('Shooter Information'!$G$3-RANK(K9,K$4:K$78,1))<0,0,'Shooter Information'!$E$3-('Shooter Information'!$G$3-RANK(K9,K$4:K$78,1))) -> 0 | M9: 0
A10: 7 | B10: ='Shooter Information'!B12 -> 0 | C10: ='Shooter Information'!C12 -> 0 | K10: 0 | L10: =IF('Shooter Information'!$E$3-('Shooter Information'!$G$3-RANK(K10,K$4:K$78,1))<0,0,'Shooter Information'!$E$3-('Shooter Information'!$G$3-RANK(K10,K$4:K$78,1))) -> 0 | M10: 0
A11: 8 | B11: ='Shooter Information'!B13 -> 0 | C11: ='Shooter Information'!C13 -> 0 | K11: 0 | L11: =IF('Shooter Information'!$E$3-('Shooter Information'!$G$3-RANK(K11,K$4:K$78,1))<0,0,'Shooter Information'!$E$3-('Shooter Information'!$G$3-RANK(K11,K$4:K$78,1))) -> 0 | M11: 0
A12: 9 | B12: ='Shooter Information'!B14 -> 0 | C12: ='Shooter Information'!C14 -> 0 | K12: 0 | L12: =IF('Shooter Information'!$E$3-('Shooter Information'!$G$3-RANK(K12,K$4:K$78,1))<0,0,'Shooter Information'!$E$3-('Shooter Information'!$G$3-RANK(K12,K$4:K$78,1))) -> 0 | M12: 0
A13: 10 | B13: ='Shooter Information'!B15 -> 0 | C13: ='Shooter Information'!C15 -> 0 | K13: 0 | L13: =IF('Shooter Information'!$E$3-('Shooter Information'!$G$3-RANK(K13,K$4:K$78,1))<0,0,'Shooter Information'!$E$3-('Shooter Information'!$G$3-RANK(K13,K$4:K$78,1))) -> 0 | M13: 0
A14: 11 | B14: ='Shooter Information'!B16 -> 0 | C14: ='Shooter Information'!C16 -> 0 | K14: 0 | L14: =IF('Shooter Information'!$E$3-('Shooter Information'!$G$3-RANK(K14,K$4:K$78,1))<0,0,'Shooter Information'!$E$3-('Shooter Information'!$G$3-RANK(K14,K$4:K$78,1))) -> 0 | M14: 0
A15: 12 | B15: ='Shooter Information'!B17 -> 0 | C15: ='Shooter Information'!C17 -> 0 | K15: 0 | L15: =IF('Shooter Information'!$E$3-('Shooter Information'!$G$3-RANK(K15,K$4:K$78,1))<0,0,'Shooter Information'!$E$3-('Shooter Information'!$G$3-RANK(K15,K$4:K$78,1))) -> 0 | M15: 0
A16: 13 | B16: ='Shooter Information'!B18 -> 0 | C16: ='Shooter Information'!C18 -> 0 | K16: 0 | L16: =IF('Shooter Information'!$E$3-('Shooter Information'!$G$3-RANK(K16,K$4:K$78,1))<0,0,'Shooter Information'!$E$3-('Shooter Information'!$G$3-RANK(K16,K$4:K$78,1))) -> 0 | M16: 0
A17: 14 | B17: ='Shooter Information'!B19 -> 0 | C17: ='Shooter Information'!C19 -> 0 | K17: 0 | L17: =IF('Shooter Information'!$E$3-('Shooter Information'!$G$3-RANK(K17,K$4:K$78,1))<0,0,'Shooter Information'!$E$3-('Shooter Information'!$G$3-RANK(K17,K$4:K$78,1))) -> 0 | M17: 0
A18: 15 | B18: ='Shooter Information'!B20 -> 0 | C18: ='Shooter Information'!C20 -> 0 | K18: 0 | L18: =IF('Shooter Information'!$E$3-('Shooter Information'!$G$3-RANK(K18,K$4:K$78,1))<0,0,'Shooter Information'!$E$3-('Shooter Information'!$G$3-RANK(K18,K$4:K$78,1))) -> 0 | M18: 0
A19: 16 | B19: ='Shooter Information'!B21 -> 0 | C19: ='Shooter Information'!C21 -> 0 | K19: 0 | L19: =IF('Shooter Information'!$E$3-('Shooter Information'!$G$3-RANK(K19,K$4:K$78,1))<0,0,'Shooter Information'!$E$3-('Shooter Information'!$G$3-RANK(K19,K$4:K$78,1))) -> 0 | M19: 0
A20: 17 | B20: ='Shooter Information'!B22 -> 0 | C20: ='Shooter Information'!C22 -> 0 | K20: 0 | L20: =IF('Shooter Information'!$E$3-('Shooter Information'!$G$3-RANK(K20,K$4:K$78,1))<0,0,'Shooter Information'!$E$3-('Shooter Information'!$G$3-RANK(K20,K$4:K$78,1))) -> 0 | M20: 0
A21: 18 | B21: ='Shooter Information'!B23 -> 0 | C21: ='Shooter Information'!C23 -> 0 | K21: 0 | L21: =IF('Shooter Information'!$E$3-('Shooter Information'!$G$3-RANK(K21,K$4:K$78,1))<0,0,'Shooter Information'!$E$3-('Shooter Information'!$G$3-RANK(K21,K$4:K$78,1))) -> 0 | M21: 0
A22: 19 | B22: ='Shooter Information'!B24 -> 0 | C22: ='Shooter Information'!C24 -> 0 | K22: 0 | L22: =IF('Shooter Information'!$E$3-('Shooter Information'!$G$3-RANK(K22,K$4:K$78,1))<0,0,'Shooter Information'!$E$3-('Shooter Information'!$G$3-RANK(K22,K$4:K$78,1))) -> 0 | M22: 0
A23: 20 | B23: ='Shooter Information'!B25 -> 0 | C23: ='Shooter Information'!C25 -> 0 | K23: 0 | L23: =IF('Shooter Information'!$E$3-('Shooter Information'!$G$3-RANK(K23,K$4:K$78,1))<0,0,'Shooter Information'!$E$3-('Shooter Information'!$G$3-RANK(K23,K$4:K$78,1))) -> 0 | M23: 0
A24: 21 | B24: ='Shooter Information'!B26 -> 0 | C24: ='Shooter Information'!C26 -> 0 | K24: 0 | L24: =IF('Shooter Information'!$E$3-('Shooter Information'!$G$3-RANK(K24,K$4:K$78,1))<0,0,'Shooter Information'!$E$3-('Shooter Information'!$G$3-RANK(K24,K$4:K$78,1))) -> 0 | M24: 0
A25: 22 | B25: ='Shooter Information'!B27 -> 0 | C25: ='Shooter Information'!C27 -> 0 | K25: 0 | L25: =IF('Shooter Information'!$E$3-('Shooter Information'!$G$3-RANK(K25,K$4:K$78,1))<0,0,'Shooter Information'!$E$3-('Shooter Information'!$G$3-RANK(K25,K$4:K$78,1))) -> 0 | M25: 0
A26: 23 | B26: ='Shooter Information'!B28 -> 0 | C26: ='Shooter Information'!C28 -> 0 | K26: 0 | L26: =IF('Shooter Information'!$E$3-('Shooter Information'!$G$3-RANK(K26,K$4:K$78,1))<0,0,'Shooter Information'!$E$3-('Shooter Information'!$G$3-RANK(K26,K$4:K$78,1))) -> 0 | M26: 0
A27: 24 | B27: ='Shooter Information'!B29 -> 0 | C27: ='Shooter Information'!C29 -> 0 | K27: 0 | L27: =IF('Shooter Information'!$E$3-('Shooter Information'!$G$3-RANK(K27,K$4:K$78,1))<0,0,'Shooter Information'!$E$3-('Shooter Information'!$G$3-RANK(K27,K$4:K$78,1))) -> 0 | M27: 0
A28: 25 | B28: ='Shooter Information'!B30 -> 0 | C28: ='Shooter Information'!C30 -> 0 | K28: 0 | L28: =IF('Shooter Information'!$E$3-('Shooter Information'!$G$3-RANK(K28,K$4:K$78,1))<0,0,'Shooter Information'!$E$3-('Shooter Information'!$G$3-RANK(K28,K$4:K$78,1))) -> 0 | M28: 0
A29: 26 | B29: ='Shooter Information'!B31 -> 0 | C29: ='Shooter Information'!C31 -> 0 | K29: 0 | L29: =IF('Shooter Information'!$E$3-('Shooter Information'!$G$3-RANK(K29,K$4:K$78,1))<0,0,'Shooter Information'!$E$3-('Shooter Information'!$G$3-RANK(K29,K$4:K$78,1))) -> 0 | M29: 0
A30: 27 | B30: ='Shooter Information'!B32 -> 0 | C30: ='Shooter Information'!C32 -> 0 | K30: 0 | L30: =IF('Shooter Information'!$E$3-('Shooter Information'!$G$3-RANK(K30,K$4:K$78,1))<0,0,'Shooter Information'!$E$3-('Shooter Information'!$G$3-RANK(K30,K$4:K$78,1))) -> 0 | M30: 0
A31: 28 | B31: ='Shooter Information'!B33 -> 0 | C31: ='Shooter Information'!C33 -> 0 | K31: 0 | L31: =IF('Shooter Information'!$E$3-('Shooter Information'!$G$3-RANK(K31,K$4:K$78,1))<0,0,'Shooter Information'!$E$3-('Shooter Information'!$G$3-RANK(K31,K$4:K$78,1))) -> 0 | M31: 0
A32: 29 | B32: ='Shooter Information'!B34 -> 0 | C32: ='Shooter Information'!C34 -> 0 | K32: 0 | L32: =IF('Shooter Information'!$E$3-('Shooter Information'!$G$3-RANK(K32,K$4:K$78,1))<0,0,'Shooter Information'!$E$3-('Shooter Information'!$G$3-RANK(K32,K$4:K$78,1))) -> 0 | M32: 0
A33: 30 | B33: ='Shooter Information'!B35 -> 0 | C33: ='Shooter Information'!C35 -> 0 | K33: 0 | L33: =IF('Shooter Information'!$E$3-('Shooter Information'!$G$3-RANK(K33,K$4:K$78,1))<0,0,'Shooter Information'!$E$3-('Shooter Information'!$G$3-RANK(K33,K$4:K$78,1))) -> 0 | M33: 0
A34: 31 | B34: ='Shooter Information'!B36 -> 0 | C34: ='Shooter Information'!C36 -> 0 | K34: 0 | L34: =IF('Shooter Information'!$E$3-('Shooter Information'!$G$3-RANK(K34,K$4:K$78,1))<0,0,'Shooter Information'!$E$3-('Shooter Information'!$G$3-RANK(K34,K$4:K$78,1))) -> 0 | M34: 0
A35: 32 | B35: ='Shooter Information'!B37 -> 0 | C35: ='Shooter Information'!C37 -> 0 | K35: 0 | L35: =IF('Shooter Information'!$E$3-('Shooter Information'!$G$3-RANK(K35,K$4:K$78,1))<0,0,'Shooter Information'!$E$3-('Shooter Information'!$G$3-RANK(K35,K$4:K$78,1))) -> 0 | M35: 0
A36: 33 | B36: ='Shooter Information'!B38 -> 0 | C36: ='Shooter Information'!C38 -> 0 | K36: 0 | L36: =IF('Shooter Information'!$E$3-('Shooter Information'!$G$3-RANK(K36,K$4:K$78,1))<0,0,'Shooter Information'!$E$3-('Shooter Information'!$G$3-RANK(K36,K$4:K$78,1))) -> 0 | M36: 0
A37: 34 | B37: ='Shooter Information'!B39 -> 0 | C37: ='Shooter Information'!C39 -> 0 | K37: 0 | L37: =IF('Shooter Information'!$E$3-('Shooter Information'!$G$3-RANK(K37,K$4:K$78,1))<0,0,'Shooter Information'!$E$3-('Shooter Information'!$G$3-RANK(K37,K$4:K$78,1))) -> 0 | M37: 0
A38: 35 | B38: ='Shooter Information'!B40 -> 0 | C38: ='Shooter Information'!C40 -> 0 | K38: 0 | L38: =IF('Shooter Information'!$E$3-('Shooter Information'!$G$3-RANK(K38,K$4:K$78,1))<0,0,'Shooter Information'!$E$3-('Shooter Information'!$G$3-RANK(K38,K$4:K$78,1))) -> 0 | M38: 0
A39: 36 | B39: ='Shooter Information'!B41 -> 0 | C39: ='Shooter Information'!C41 -> 0 | K39: 0 | L39: =IF('Shooter Information'!$E$3-('Shooter Information'!$G$3-RANK(K39,K$4:K$78,1))<0,0,'Shooter Information'!$E$3-('Shooter Information'!$G$3-RANK(K39,K$4:K$78,1))) -> 0 | M39: 0
A40: 37 | B40: ='Shooter Information'!B42 -> 0 | C40: ='Shooter Information'!C42 -> 0 | K40: 0 | L40: =IF('Shooter Information'!$E$3-('Shooter Information'!$G$3-RANK(K40,K$4:K$78,1))<0,0,'Shooter Information'!$E$3-('Shooter Information'!$G$3-RANK(K40,K$4:K$78,1))) -> 0 | M40: 0
A41: 38 | B41: ='Shooter Information'!B43 -> 0 | C41: ='Shooter Information'!C43 -> 0 | K41: 0 | L41: =IF('Shooter Information'!$E$3-('Shooter Information'!$G$3-RANK(K41,K$4:K$78,1))<0,0,'Shooter Information'!$E$3-('Shooter Information'!$G$3-RANK(K41,K$4:K$78,1))) -> 0 | M41: 0
A42: 39 | B42: ='Shooter Information'!B44 -> 0 | C42: ='Shooter Information'!C44 -> 0 | K42: 0 | L42: =IF('Shooter Information'!$E$3-('Shooter Information'!$G$3-RANK(K42,K$4:K$78,1))<0,0,'Shooter Information'!$E$3-('Shooter Information'!$G$3-RANK(K42,K$4:K$78,1))) -> 0 | M42: 0
A43: 40 | B43: ='Shooter Information'!B45 -> 0 | C43: ='Shooter Information'!C45 -> 0 | K43: 0 | L43: =IF('Shooter Information'!$E$3-('Shooter Information'!$G$3-RANK(K43,K$4:K$78,1))<0,0,'Shooter Information'!$E$3-('Shooter Information'!$G$3-RANK(K43,K$4:K$78,1))) -> 0 | M43: 0
A44: 41 | B44: ='Shooter Information'!B46 -> 0 | C44: ='Shooter Information'!C46 -> 0 | K44: 0 | L44: =IF('Shooter Information'!$E$3-('Shooter Information'!$G$3-RANK(K44,K$4:K$78,1))<0,0,'Shooter Information'!$E$3-('Shooter Information'!$G$3-RANK(K44,K$4:K$78,1))) -> 0 | M44: 0
A45: 42 | B45: ='Shooter Information'!B47 -> 0 | C45: ='Shooter Information'!C47 -> 0 | K45: 0 | L45: =IF('Shooter Information'!$E$3-('Shooter Information'!$G$3-RANK(K45,K$4:K$78,1))<0,0,'Shooter Information'!$E$3-('Shooter Information'!$G$3-RANK(K45,K$4:K$78,1))) -> 0 | M45: 0
A46: 43 | B46: ='Shooter Information'!B48 -> 0 | C46: ='Shooter Information'!C48 -> 0 | K46: 0 | L46: =IF('Shooter Information'!$E$3-('Shooter Information'!$G$3-RANK(K46,K$4:K$78,1))<0,0,'Shooter Information'!$E$3-('Shooter Information'!$G$3-RANK(K46,K$4:K$78,1))) -> 0 | M46: 0
A47: 44 | B47: ='Shooter Information'!B49 -> 0 | C47: ='Shooter Information'!C49 -> 0 | K47: 0 | L47: =IF('Shooter Information'!$E$3-('Shooter Information'!$G$3-RANK(K47,K$4:K$78,1))<0,0,'Shooter Information'!$E$3-('Shooter Information'!$G$3-RANK(K47,K$4:K$78,1))) -> 0 | M47: 0
A48: 45 | B48: ='Shooter Information'!B50 -> 0 | C48: ='Shooter Information'!C50 -> 0 | K48: 0 | L48: =IF('Shooter Information'!$E$3-('Shooter Information'!$G$3-RANK(K48,K$4:K$78,1))<0,0,'Shooter Information'!$E$3-('Shooter Information'!$G$3-RANK(K48,K$4:K$78,1))) -> 0 | M48: 0
A49: 46 | B49: ='Shooter Information'!B51 -> 0 | C49: ='Shooter Information'!C51 -> 0 | K49: 0 | L49: =IF('Shooter Information'!$E$3-('Shooter Information'!$G$3-RANK(K49,K$4:K$78,1))<0,0,'Shooter Information'!$E$3-('Shooter Information'!$G$3-RANK(K49,K$4:K$78,1))) -> 0 | M49: 0
A50: 47 | B50: ='Shooter Information'!B52 -> 0 | C50: ='Shooter Information'!C52 -> 0 | K50: 0 | L50: =IF('Shooter Information'!$E$3-('Shooter Information'!$G$3-RANK(K50,K$4:K$78,1))<0,0,'Shooter Information'!$E$3-('Shooter Information'!$G$3-RANK(K50,K$4:K$78,1))) -> 0 | M50: 0
A51: 48 | B51: ='Shooter Information'!B53 -> 0 | C51: ='Shooter Information'!C53 -> 0 | K51: 0 | L51: =IF('Shooter Information'!$E$3-('Shooter Information'!$G$3-RANK(K51,K$4:K$78,1))<0,0,'Shooter Information'!$E$3-('Shooter Information'!$G$3-RANK(K51,K$4:K$78,1))) -> 0 | M51: 0
A52: 49 | B52: ='Shooter Information'!B54 -> 0 | C52: ='Shooter Information'!C54 -> 0 | K52: 0 | L52: =IF('Shooter Information'!$E$3-('Shooter Information'!$G$3-RANK(K52,K$4:K$78,1))<0,0,'Shooter Information'!$E$3-('Shooter Information'!$G$3-RANK(K52,K$4:K$78,1))) -> 0 | M52: 0
A53: 50 | B53: ='Shooter Information'!B55 -> 0 | C53: ='Shooter Information'!C55 -> 0 | K53: 0 | L53: =IF('Shooter Information'!$E$3-('Shooter Information'!$G$3-RANK(K53,K$4:K$78,1))<0,0,'Shooter Information'!$E$3-('Shooter Information'!$G$3-RANK(K53,K$4:K$78,1))) -> 0 | M53: 0
A54: 51 | B54: ='Shooter Information'!B56 -> 0 | C54: ='Shooter Information'!C56 -> 0 | K54: 0 | L54: =IF('Shooter Information'!$E$3-('Shooter Information'!$G$3-RANK(K54,K$4:K$78,1))<0,0,'Shooter Information'!$E$3-('Shooter Information'!$G$3-RANK(K54,K$4:K$78,1))) -> 0 | M54: 0
A55: 52 | B55: ='Shooter Information'!B57 -> 0 | C55: ='Shooter Information'!C57 -> 0 | K55: 0 | L55: =IF('Shooter Information'!$E$3-('Shooter Information'!$G$3-RANK(K55,K$4:K$78,1))<0,0,'Shooter Information'!$E$3-('Shooter Information'!$G$3-RANK(K55,K$4:K$78,1))) -> 0 | M55: 0
A56: 53 | B56: ='Shooter Information'!B58 -> 0 | C56: ='Shooter Information'!C58 -> 0 | K56: 0 | L56: =IF('Shooter Information'!$E$3-('Shooter Information'!$G$3-RANK(K56,K$4:K$78,1))<0,0,'Shooter Information'!$E$3-('Shooter Information'!$G$3-RANK(K56,K$4:K$78,1))) -> 0 | M56: 0
A57: 54 | B57: ='Shooter Information'!B59 -> 0 | C57: ='Shooter Information'!C59 -> 0 | K57: 0 | L57: =IF('Shooter Information'!$E$3-('Shooter Information'!$G$3-RANK(K57,K$4:K$78,1))<0,0,'Shooter Information'!$E$3-('Shooter Information'!$G$3-RANK(K57,K$4:K$78,1))) -> 0 | M57: 0
A58: 55 | B58: ='Shooter Information'!B60 -> 0 | C58: ='Shooter Information'!C60 -> 0 | K58: 0 | L58: =IF('Shooter Information'!$E$3-('Shooter Information'!$G$3-RANK(K58,K$4:K$78,1))<0,0,'Shooter Information'!$E$3-('Shooter Information'!$G$3-RANK(K58,K$4:K$78,1))) -> 0 | M58: 0
A59: 56 | B59: ='Shooter Information'!B61 -> 0 | C59: ='Shooter Information'!C61 -> 0 | K59: 0 | L59: =IF('Shooter Information'!$E$3-('Shooter Information'!$G$3-RANK(K59,K$4:K$78,1))<0,0,'Shooter Information'!$E$3-('Shooter Information'!$G$3-RANK(K59,K$4:K$78,1))) -> 0 | M59: 0
A60: 57 | B60: ='Shooter Information'!B62 -> 0 | C60: ='Shooter Information'!C62 -> 0 | K60: 0 | L60: =IF('Shooter Information'!$E$3-('Shooter Information'!$G$3-RANK(K60,K$4:K$78,1))<0,0,'Shooter Information'!$E$3-('Shooter Information'!$G$3-RANK(K60,K$4:K$78,1))) -> 0 | M60: 0
A61: 58 | B61: ='Shooter Information'!B63 -> 0 | C61: ='Shooter Information'!C63 -> 0 | K61: 0 | L61: =IF('Shooter Information'!$E$3-('Shooter Information'!$G$3-RANK(K61,K$4:K$78,1))<0,0,'Shooter Information'!$E$3-('Shooter Information'!$G$3-RANK(K61,K$4:K$78,1))) -> 0 | M61: 0
A62: 59 | B62: ='Shooter Information'!B64 -> 0 | C62: ='Shooter Information'!C64 -> 0 | K62: 0 | L62: =IF('Shooter Information'!$E$3-('Shooter Information'!$G$3-RANK(K62,K$4:K$78,1))<0,0,'Shooter Information'!$E$3-('Shooter Information'!$G$3-RANK(K62,K$4:K$78,1))) -> 0 | M62: 0
A63: 60 | B63: ='Shooter Information'!B65 -> 0 | C63: ='Shooter Information'!C65 -> 0 | K63: 0 | L63: =IF('Shooter Information'!$E$3-('Shooter Information'!$G$3-RANK(K63,K$4:K$78,1))<0,0,'Shooter Information'!$E$3-('Shooter Information'!$G$3-RANK(K63,K$4:K$78,1))) -> 0 | M63: 0
A64: 61 | B64: ='Shooter Information'!B66 -> 0 | C64: ='Shooter Information'!C66 -> 0 | K64: =(D64*5)+E64-F64+(G64*10)+(H64*30)+(I64*999)+(J64*999.99) -> 0 | L64: =IF('Shooter Information'!$E$3-('Shooter Information'!$G$3-RANK(K64,K$4:K$78,1))<0,0,'Shooter Information'!$E$3-('Shooter Information'!$G$3-RANK(K64,K$4:K$78,1))) -> 0 | M64: =(SUM(D64+G64+H64+I64+J64)) -> 0
A65: 62 | B65: ='Shooter Information'!B67 -> 0 | C65: ='Shooter Information'!C67 -> 0 | K65: =(D65*5)+E65-F65+(G65*10)+(H65*30)+(I65*999)+(J65*999.99) -> 0 | L65: =IF('Shooter Information'!$E$3-('Shooter Information'!$G$3-RANK(K65,K$4:K$78,1))<0,0,'Shooter Information'!$E$3-('Shooter Information'!$G$3-RANK(K65,K$4:K$78,1))) -> 0 | M65: =(SUM(D65+G65+H65+I65+J65)) -> 0
A66: 63 | B66: ='Shooter Information'!B68 -> 0 | C66: ='Shooter Information'!C68 -> 0 | K66: 0 | L66: =IF('Shooter Information'!$E$3-('Shooter Information'!$G$3-RANK(K66,K$4:K$78,1))<0,0,'Shooter Information'!$E$3-('Shooter Information'!$G$3-RANK(K66,K$4:K$78,1))) -> 0 | M66: 0
A67: 64 | B67: ='Shooter Information'!B69 -> 0 | C67: ='Shooter Information'!C69 -> 0 | K67: 0 | L67: =IF('Shooter Information'!$E$3-('Shooter Information'!$G$3-RANK(K67,K$4:K$78,1))<0,0,'Shooter Information'!$E$3-('Shooter Information'!$G$3-RANK(K67,K$4:K$78,1))) -> 0 | M67: 0
A68: 65 | B68: ='Shooter Information'!B70 -> 0 | C68: ='Shooter Information'!C70 -> 0 | K68: 0 | L68: =IF('Shooter Information'!$E$3-('Shooter Information'!$G$3-RANK(K68,K$4:K$78,1))<0,0,'Shooter Information'!$E$3-('Shooter Information'!$G$3-RANK(K68,K$4:K$78,1))) -> 0 | M68: 0
A69: 66 | B69: ='Shooter Information'!B71 -> 0 | C69: ='Shooter Information'!C71 -> 0 | K69: 0 | L69: =IF('Shooter Information'!$E$3-('Shooter Information'!$G$3-RANK(K69,K$4:K$78,1))<0,0,'Shooter Information'!$E$3-('Shooter Information'!$G$3-RANK(K69,K$4:K$78,1))) -> 0 | M69: 0
A70: 67 | B70: ='Shooter Information'!B72 -> 0 | C70: ='Shooter Information'!C72 -> 0 | K70: 0 | L70: =IF('Shooter Information'!$E$3-('Shooter Information'!$G$3-RANK(K70,K$4:K$78,1))<0,0,'Shooter Information'!$E$3-('Shooter Information'!$G$3-RANK(K70,K$4:K$78,1))) -> 0 | M70: 0
A71: 68 | B71: ='Shooter Information'!B73 -> 0 | C71: ='Shooter Information'!C73 -> 0 | K71: 0 | L71: =IF('Shooter Information'!$E$3-('Shooter Information'!$G$3-RANK(K71,K$4:K$78,1))<0,0,'Shooter Information'!$E$3-('Shooter Information'!$G$3-RANK(K71,K$4:K$78,1))) -> 0 | M71: 0
A72: 69 | B72: ='Shooter Information'!B74 -> 0 | C72: ='Shooter Information'!C74 -> 0 | K72: 0 | L72: =IF('Shooter Information'!$E$3-('Shooter Information'!$G$3-RANK(K72,K$4:K$78,1))<0,0,'Shooter Information'!$E$3-('Shooter Information'!$G$3-RANK(K72,K$4:K$78,1))) -> 0 | M72: 0
A73: 70 | B73: ='Shooter Information'!B75 -> 0 | C73: ='Shooter Information'!C75 -> 0 | K73: 0 | L73: =IF('Shooter Information'!$E$3-('Shooter Information'!$G$3-RANK(K73,K$4:K$78,1))<0,0,'Shooter Information'!$E$3-('Shooter Information'!$G$3-RANK(K73,K$4:K$78,1))) -> 0 | M73: 0
A74: 71 | B74: ='Shooter Information'!B76 -> 0 | C74: ='Shooter Information'!C76 -> 0 | K74: 0 | L74: =IF('Shooter Information'!$E$3-('Shooter Information'!$G$3-RANK(K74,K$4:K$78,1))<0,0,'Shooter Information'!$E$3-('Shooter Information'!$G$3-RANK(K74,K$4:K$78,1))) -> 0 | M74: 0
A75: 72 | B75: ='Shooter Information'!B77 -> 0 | C75: ='Shooter Information'!C77 -> 0 | K75: 0 | L75: =IF('Shooter Information'!$E$3-('Shooter Information'!$G$3-RANK(K75,K$4:K$78,1))<0,0,'Shooter Information'!$E$3-('Shooter Information'!$G$3-RANK(K75,K$4:K$78,1))) -> 0 | M75: 0
A76: 73 | B76: ='Shooter Information'!B78 -> 0 | C76: ='Shooter Information'!C78 -> 0 | K76: 0 | L76: =IF('Shooter Information'!$E$3-('Shooter Information'!$G$3-RANK(K76,K$4:K$78,1))<0,0,'Shooter Information'!$E$3-('Shooter Information'!$G$3-RANK(K76,K$4:K$78,1))) -> 0 | M76: 0
A77: 74 | B77: ='Shooter Information'!B79 -> 0 | C77: ='Shooter Information'!C79 -> 0 | K77: 0 | L77: =IF('Shooter Information'!$E$3-('Shooter Information'!$G$3-RANK(K77,K$4:K$78,1))<0,0,'Shooter Information'!$E$3-('Shooter Information'!$G$3-RANK(K77,K$4:K$78,1))) -> 0 | M77: 0
A78: 75 | B78: ='Shooter Information'!B80 -> 0 | C78: ='Shooter Information'!C80 -> 0 | K78: =(D78*5)+E78-F78+(G78*10)+(H78*30)+(I78*999)+(J78*999.99) -> 0 | L78: =IF('Shooter Information'!$E$3-('Shooter Information'!$G$3-RANK(K78,K$4:K$78,1))<0,0,'Shooter Information'!$E$3-('Shooter Information'!$G$3-RANK(K78,K$4:K$78,1))) -> 0 | M78: =(SUM(D78+G78+H78+I78+J78)) -> 0

Sheet Stage 2
B1: CAS SCORE SHEET | D1: Date: | E1: ='Shooter Information'!$E$2 -> Wednesday April 9th, 2014
B2: Stage 2
A3: Roster # | B3: Shooter | C3: Class | D3: Misses | E3: Raw Time | F3: Bonus | G3: 10 Sec | H3: 30 Sec | I3: DNF | J3: DQ | K3: Total | L3: Rank | M3: Penalties
A4: =ROW()-3 -> 1 | B4: ='Shooter Information'!B6 -> Striker | C4: ='Shooter Information'!C6 -> 0 | E4: 27.22 | K4: =(D4*5)+E4-F4+(G4*10)+(H4*30)+(I4*999)+(J4*999.99) -> 27.22 | L4: =IF('Shooter Information'!$E$3-('Shooter Information'!$G$3-RANK(K4,K$4:K$78,1))<0,0,'Shooter Information'!$E$3-('Shooter Information'!$G$3-RANK(K4,K$4:K$78,1))) -> 1 | M4: =(SUM(D4+G4+H4+I4+J4)) -> 0
A5: =ROW()-3 -> 2 | B5: ='Shooter Information'!B7 -> Doc Deadwood | C5: ='Shooter Information'!C7 -> 0 | D5: 1 | E5: 41.81 | K5: =(D5*5)+E5-F5+(G5*10)+(H5*30)+(I5*999)+(J5*999.99) -> 46.81 | L5: =IF('Shooter Information'!$E$3-('Shooter Information'!$G$3-RANK(K5,K$4:K$78,1))<0,0,'Shooter Information'!$E$3-('Shooter Information'!$G$3-RANK(K5,K$4:K$78,1))) -> 4 | M5: =(SUM(D5+G5+H5+I5+J5)) -> 1
A6: 3 | B6: ='Shooter Information'!B8 -> Cold Blue Mike | C6: ='Shooter Information'!C8 -> 0 | E6: 31.3 | K6: 31.3 | L6: =IF('Shooter Information'!$E$3-('Shooter Information'!$G$3-RANK(K6,K$4:K$78,1))<0,0,'Shooter Information'!$E$3-('Shooter Information'!$G$3-RANK(K6,K$4:K$78,1))) -> 3 | M6: 0
A7: 4 | B7: ='Shooter Information'!B9 -> B.S. Walker | C7: ='Shooter Information'!C9 -> 0 | E7: 30.24 | K7: 30.24 | L7: =IF('Shooter Information'!$E$3-('Shooter Information'!$G$3-RANK(K7,K$4:K$78,1))<0,0,'Shooter Information'!$E$3-('Shooter Information'!$G$3-RANK(K7,K$4:K$78,1))) -> 2 | M7: 0
A8: 5 | B8: ='Shooter Information'!B10 -> 0 | C8: ='Shooter Information'!C10 -> 0 | K8: 0 | L8: =IF('Shooter Information'!$E$3-('Shooter Information'!$G$3-RANK(K8,K$4:K$78,1))<0,0,'Shooter Information'!$E$3-('Shooter Information'!$G$3-RANK(K8,K$4:K$78,1))) -> 0 | M8: 0
A9: 6 | B9: ='Shooter Information'!B11 -> 0 | C9: ='Shooter Information'!C11 -> 0 | K9: 0 | L9: =IF('Shooter Information'!$E$3-('Shooter Information'!$G$3-RANK(K9,K$4:K$78,1))<0,0,'Shooter Information'!$E$3-('Shooter Information'!$G$3-RANK(K9,K$4:K$78,1))) -> 0 | M9: 0
A10: 7 | B10: ='Shooter Information'!B12 -> 0 | C10: ='Shooter Information'!C12 -> 0 | K10: 0 | L10: =IF('Shooter Information'!$E$3-('Shooter Information'!$G$3-RANK(K10,K$4:K$78,1))<0,0,'Shooter Information'!$E$3-('Shooter Information'!$G$3-RANK(K10,K$4:K$78,1))) -> 0 | M10: 0
A11: 8 | B11: ='Shooter Information'!B13 -> 0 | C11: ='Shooter Information'!C13 -> 0 | K11: 0 | L11: =IF('Shooter Information'!$E$3-('Shooter Information'!$G$3-RANK(K11,K$4:K$78,1))<0,0,'Shooter Information'!$E$3-('Shooter Information'!$G$3-RANK(K11,K$4:K$78,1))) -> 0 | M11: 0
A12: 9 | B12: ='Shooter Information'!B14 -> 0 | C12: ='Shooter Information'!C14 -> 0 | K12: 0 | L12: =IF('Shooter Information'!$E$3-('Shooter Information'!$G$3-RANK(K12,K$4:K$78,1))<0,0,'Shooter Information'!$E$3-('Shooter Information'!$G$3-RANK(K12,K$4:K$78,1))) -> 0 | M12: 0
A13: 10 | B13: ='Shooter Information'!B15 -> 0 | C13: ='Shooter Information'!C15 -> 0 | K13: 0 | L13: =IF('Shooter Information'!$E$3-('Shooter Information'!$G$3-RANK(K13,K$4:K$78,1))<0,0,'Shooter Information'!$E$3-('Shooter Information'!$G$3-RANK(K13,K$4:K$78,1))) -> 0 | M13: 0
A14: 11 | B14: ='Shooter Information'!B16 -> 0 | C14: ='Shooter Information'!C16 -> 0 | K14: 0 | L14: =IF('Shooter Information'!$E$3-('Shooter Information'!$G$3-RANK(K14,K$4:K$78,1))<0,0,'Shooter Information'!$E$3-('Shooter Information'!$G$3-RANK(K14,K$4:K$78,1))) -> 0 | M14: 0
A15: 12 | B15: ='Shooter Information'!B17 -> 0 | C15: ='Shooter Information'!C17 -> 0 | K15: 0 | L15: =IF('Shooter Information'!$E$3-('Shooter Information'!$G$3-RANK(K15,K$4:K$78,1))<0,0,'Shooter Information'!$E$3-('Shooter Information'!$G$3-RANK(K15,K$4:K$78,1))) -> 0 | M15: 0
A16: 13 | B16: ='Shooter Information'!B18 -> 0 | C16: ='Shooter Information'!C18 -> 0 | K16: 0 | L16: =IF('Shooter Information'!$E$3-('Shooter Information'!$G$3-RANK(K16,K$4:K$78,1))<0,0,'Shooter Information'!$E$3-('Shooter Information'!$G$3-RANK(K16,K$4:K$78,1))) -> 0 | M16: 0
A17: 14 | B17: ='Shooter Information'!B19 -> 0 | C17: ='Shooter Information'!C19 -> 0 | K17: 0 | L17: =IF('Shooter Information'!$E$3-('Shooter Information'!$G$3-RANK(K17,K$4:K$78,1))<0,0,'Shooter Information'!$E$3-('Shooter Information'!$G$3-RANK(K17,K$4:K$78,1))) -> 0 | M17: 0
A18: 15 | B18: ='Shooter Information'!B20 -> 0 | C18: ='Shooter Information'!C20 -> 0 | K18: 0 | L18: =IF('Shooter Information'!$E$3-('Shooter Information'!$G$3-RANK(K18,K$4:K$78,1))<0,0,'Shooter Information'!$E$3-('Shooter Information'!$G$3-RANK(K18,K$4:K$78,1))) -> 0 | M18: 0
A19: 16 | B19: ='Shooter Information'!B21 -> 0 | C19: ='Shooter Information'!C21 -> 0 | K19: 0 | L19: =IF('Shooter Information'!$E$3-('Shooter Information'!$G$3-RANK(K19,K$4:K$78,1))<0,0,'Shooter Information'!$E$3-('Shooter Information'!$G$3-RANK(K19,K$4:K$78,1))) -> 0 | M19: 0
A20: 17 | B20: ='Shooter Information'!B22 -> 0 | C20: ='Shooter Information'!C22 -> 0 | K20: 0 | L20: =IF('Shooter Information'!$E$3-('Shooter Information'!$G$3-RANK(K20,K$4:K$78,1))<0,0,'Shooter Information'!$E$3-('Shooter Information'!$G$3-RANK(K20,K$4:K$78,1))) -> 0 | M20: 0
A21: 18 | B21: ='Shooter Information'!B23 -> 0 | C21: ='Shooter Information'!C23 -> 0 | K21: 0 | L21: =IF('Shooter Information'!$E$3-('Shooter Information'!$G$3-RANK(K21,K$4:K$78,1))<0,0,'Shooter Information'!$E$3-('Shooter Information'!$G$3-RANK(K21,K$4:K$78,1))) -> 0 | M21: 0
A22: 19 | B22: ='Shooter Information'!B24 -> 0 | C22: ='Shooter Information'!C24 -> 0 | K22: 0 | L22: =IF('Shooter Information'!$E$3-('Shooter Information'!$G$3-RANK(K22,K$4:K$78,1))<0,0,'Shooter Information'!$E$3-('Shooter Information'!$G$3-RANK(K22,K$4:K$78,1))) -> 0 | M22: 0
A23: 20 | B23: ='Shooter Information'!B25 -> 0 | C23: ='Shooter Information'!C25 -> 0 | K23: 0 | L23: =IF('Shooter Information'!$E$3-('Shooter Information'!$G$3-RANK(K23,K$4:K$78,1))<0,0,'Shooter Information'!$E$3-('Shooter Information'!$G$3-RANK(K23,K$4:K$78,1))) -> 0 | M23: 0
A24: 21 | B24: ='Shooter Information'!B26 -> 0 | C24: ='Shooter Information'!C26 -> 0 | K24: 0 | L24: =IF('Shooter Information'!$E$3-('Shooter Information'!$G$3-RANK(K24,K$4:K$78,1))<0,0,'Shooter Information'!$E$3-('Shooter Information'!$G$3-RANK(K24,K$4:K$78,1))) -> 0 | M24: 0
A25: 22 | B25: ='Shooter Information'!B27 -> 0 | C25: ='Shooter Information'!C27 -> 0 | K25: 0 | L25: =IF('Shooter Information'!$E$3-('Shooter Information'!$G$3-RANK(K25,K$4:K$78,1))<0,0,'Shooter Information'!$E$3-('Shooter Information'!$G$3-RANK(K25,K$4:K$78,1))) -> 0 | M25: 0
A26: 23 | B26: ='Shooter Information'!B28 -> 0 | C26: ='Shooter Information'!C28 -> 0 | K26: 0 | L26: =IF('Shooter Information'!$E$3-('Shooter Information'!$G$3-RANK(K26,K$4:K$78,1))<0,0,'Shooter Information'!$E$3-('Shooter Information'!$G$3-RANK(K26,K$4:K$78,1))) -> 0 | M26: 0
A27: 24 | B27: ='Shooter Information'!B29 -> 0 | C27: ='Shooter Information'!C29 -> 0 | K27: 0 | L27: =IF('Shooter Information'!$E$3-('Shooter Information'!$G$3-RANK(K27,K$4:K$78,1))<0,0,'Shooter Information'!$E$3-('Shooter Information'!$G$3-RANK(K27,K$4:K$78,1))) -> 0 | M27: 0
A28: 25 | B28: ='Shooter Information'!B30 -> 0 | C28: ='Shooter Information'!C30 -> 0 | K28: 0 | L28: =IF('Shooter Information'!$E$3-('Shooter Information'!$G$3-RANK(K28,K$4:K$78,1))<0,0,'Shooter Information'!$E$3-('Shooter Information'!$G$3-RANK(K28,K$4:K$78,1))) -> 0 | M28: 0
A29: 26 | B29: ='Shooter Information'!B31 -> 0 | C29: ='Shooter Information'!C31 -> 0 | K29: 0 | L29: =IF('Shooter Information'!$E$3-('Shooter Information'!$G$3-RANK(K29,K$4:K$78,1))<0,0,'Shooter Information'!$E$3-('Shooter Information'!$G$3-RANK(K29,K$4:K$78,1))) -> 0 | M29: 0
A30: 27 | B30: ='Shooter Information'!B32 -> 0 | C30: ='Shooter Information'!C32 -> 0 | K30: 0 | L30: =IF('Shooter Information'!$E$3-('Shooter Information'!$G$3-RANK(K30,K$4:K$78,1))<0,0,'Shooter Information'!$E$3-('Shooter Information'!$G$3-RANK(K30,K$4:K$78,1))) -> 0 | M30: 0
A31: 28 | B31: ='Shooter Information'!B33 -> 0 | C31: ='Shooter Information'!C33 -> 0 | K31: 0 | L31: =IF('Shooter Information'!$E$3-('Shooter Information'!$G$3-RANK(K31,K$4:K$78,1))<0,0,'Shooter Information'!$E$3-('Shooter Information'!$G$3-RANK(K31,K$4:K$78,1))) -> 0 | M31: 0
A32: 29 | B32: ='Shooter Information'!B34 -> 0 | C32: ='Shooter Information'!C34 -> 0 | K32: 0 | L32: =IF('Shooter Information'!$E$3-('Shooter Information'!$G$3-RANK(K32,K$4:K$78,1))<0,0,'Shooter Information'!$E$3-('Shooter Information'!$G$3-RANK(K32,K$4:K$78,1))) -> 0 | M32: 0
A33: 30 | B33: ='Shooter Information'!B35 -> 0 | C33: ='Shooter Information'!C35 -> 0 | K33: 0 | L33: =IF('Shooter Information'!$E$3-('Shooter Information'!$G$3-RANK(K33,K$4:K$78,1))<0,0,'Shooter Information'!$E$3-('Shooter Information'!$G$3-RANK(K33,K$4:K$78,1))) -> 0 | M33: 0
A34: 31 | B34: ='Shooter Information'!B36 -> 0 | C34: ='Shooter Information'!C36 -> 0 | K34: 0 | L34: =IF('Shooter Information'!$E$3-('Shooter Information'!$G$3-RANK(K34,K$4:K$78,1))<0,0,'Shooter Information'!$E$3-('Shooter Information'!$G$3-RANK(K34,K$4:K$78,1))) -> 0 | M34: 0
A35: 32 | B35: ='Shooter Information'!B37 -> 0 | C35: ='Shooter Information'!C37 -> 0 | K35: 0 | L35: =IF('Shooter Information'!$E$3-('Shooter Information'!$G$3-RANK(K35,K$4:K$78,1))<0,0,'Shooter Information'!$E$3-('Shooter Information'!$G$3-RANK(K35,K$4:K$78,1))) -> 0 | M35: 0
A36: 33 | B36: ='Shooter Information'!B38 -> 0 | C36: ='Shooter Information'!C38 -> 0 | K36: 0 | L36: =IF('Shooter Information'!$E$3-('Shooter Information'!$G$3-RANK(K36,K$4:K$78,1))<0,0,'Shooter Information'!$E$3-('Shooter Information'!$G$3-RANK(K36,K$4:K$78,1))) -> 0 | M36: 0
A37: 34 | B37: ='Shooter Information'!B39 -> 0 | C37: ='Shooter Information'!C39 -> 0 | K37: 0 | L37: =IF('Shooter Information'!$E$3-('Shooter Information'!$G$3-RANK(K37,K$4:K$78,1))<0,0,'Shooter Information'!$E$3-('Shooter Information'!$G$3-RANK(K37,K$4:K$78,1))) -> 0 | M37: 0
A38: 35 | B38: ='Shooter Information'!B40 -> 0 | C38: ='Shooter Information'!C40 -> 0 | K38: 0 | L38: =IF('Shooter Information'!$E$3-('Shooter Information'!$G$3-RANK(K38,K$4:K$78,1))<0,0,'Shooter Information'!$E$3-('Shooter Information'!$G$3-RANK(K38,K$4:K$78,1))) -> 0 | M38: 0
A39: 36 | B39: ='Shooter Information'!B41 -> 0 | C39: ='Shooter Information'!C41 -> 0 | K39: 0 | L39: =IF('Shooter Information'!$E$3-('Shooter Information'!$G$3-RANK(K39,K$4:K$78,1))<0,0,'Shooter Information'!$E$3-('Shooter Information'!$G$3-RANK(K39,K$4:K$78,1))) -> 0 | M39: 0
A40: 37 | B40: ='Shooter Information'!B42 -> 0 | C40: ='Shooter Information'!C42 -> 0 | K40: 0 | L40: =IF('Shooter Information'!$E$3-('Shooter Information'!$G$3-RANK(K40,K$4:K$78,1))<0,0,'Shooter Information'!$E$3-('Shooter Information'!$G$3-RANK(K40,K$4:K$78,1))) -> 0 | M40: 0
A41: 38 | B41: ='Shooter Information'!B43 -> 0 | C41: ='Shooter Information'!C43 -> 0 | K41: 0 | L41: =IF('Shooter Information'!$E$3-('Shooter Information'!$G$3-RANK(K41,K$4:K$78,1))<0,0,'Shooter Information'!$E$3-('Shooter Information'!$G$3-RANK(K41,K$4:K$78,1))) -> 0 | M41: 0
A42: 39 | B42: ='Shooter Information'!B44 -> 0 | C42: ='Shooter Information'!C44 -> 0 | K42: 0 | L42: =IF('Shooter Information'!$E$3-('Shooter Information'!$G$3-RANK(K42,K$4:K$78,1))<0,0,'Shooter Information'!$E$3-('Shooter Information'!$G$3-RANK(K42,K$4:K$78,1))) -> 0 | M42: 0
A43: 40 | B43: ='Shooter Information'!B45 -> 0 | C43: ='Shooter Information'!C45 -> 0 | K43: 0 | L43: =IF('Shooter Information'!$E$3-('Shooter Information'!$G$3-RANK(K43,K$4:K$78,1))<0,0,'Shooter Information'!$E$3-('Shooter Information'!$G$3-RANK(K43,K$4:K$78,1))) -> 0 | M43: 0
A44: 41 | B44: ='Shooter Information'!B46 -> 0 | C44: ='Shooter Information'!C46 -> 0 | K44: 0 | L44: =IF('Shooter Information'!$E$3-('Shooter Information'!$G$3-RANK(K44,K$4:K$78,1))<0,0,'Shooter Information'!$E$3-('Shooter Information'!$G$3-RANK(K44,K$4:K$78,1))) -> 0 | M44: 0
A45: 42 | B45: ='Shooter Information'!B47 -> 0 | C45: ='Shooter Information'!C47 -> 0 | K45: 0 | L45: =IF('Shooter Information'!$E$3-('Shooter Information'!$G$3-RANK(K45,K$4:K$78,1))<0,0,'Shooter Information'!$E$3-('Shooter Information'!$G$3-RANK(K45,K$4:K$78,1))) -> 0 | M45: 0
A46: 43 | B46: ='Shooter Information'!B48 -> 0 | C46: ='Shooter Information'!C48 -> 0 | K46: 0 | L46: =IF('Shooter Information'!$E$3-('Shooter Information'!$G$3-RANK(K46,K$4:K$78,1))<0,0,'Shooter Information'!$E$3-('Shooter Information'!$G$3-RANK(K46,K$4:K$78,1))) -> 0 | M46: 0
A47: 44 | B47: ='Shooter Information'!B49 -> 0 | C47: ='Shooter Information'!C49 -> 0 | K47: 0 | L47: =IF('Shooter Information'!$E$3-('Shooter Information'!$G$3-RANK(K47,K$4:K$78,1))<0,0,'Shooter Information'!$E$3-('Shooter Information'!$G$3-RANK(K47,K$4:K$78,1))) -> 0 | M47: 0
A48: 45 | B48: ='Shooter Information'!B50 -> 0 | C48: ='Shooter Information'!C50 -> 0 | K48: 0 | L48: =IF('Shooter Information'!$E$3-('Shooter Information'!$G$3-RANK(K48,K$4:K$78,1))<0,0,'Shooter Information'!$E$3-('Shooter Information'!$G$3-RANK(K48,K$4:K$78,1))) -> 0 | M48: 0
A49: 46 | B49: ='Shooter Information'!B51 -> 0 | C49: ='Shooter Information'!C51 -> 0 | K49: =(D49*5)+E49-F49+(G49*10)+(H49*30)+(I49*999)+(J49*999.99) -> 0 | L49: =IF('Shooter Information'!$E$3-('Shooter Information'!$G$3-RANK(K49,K$4:K$78,1))<0,0,'Shooter Information'!$E$3-('Shooter Information'!$G$3-RANK(K49,K$4:K$78,1))) -> 0 | M49: 0
A50: 47 | B50: ='Shooter Information'!B52 -> 0 | C50: ='Shooter Information'!C52 -> 0 | K50: 0 | L50: =IF('Shooter Information'!$E$3-('Shooter Information'!$G$3-RANK(K50,K$4:K$78,1))<0,0,'Shooter Information'!$E$3-('Shooter Information'!$G$3-RANK(K50,K$4:K$78,1))) -> 0 | M50: 0
A51: 48 | B51: ='Shooter Information'!B53 -> 0 | C51: ='Shooter Information'!C53 -> 0 | K51: 0 | L51: =IF('Shooter Information'!$E$3-('Shooter Information'!$G$3-RANK(K51,K$4:K$78,1))<0,0,'Shooter Information'!$E$3-('Shooter Information'!$G$3-RANK(K51,K$4:K$78,1))) -> 0 | M51: 0
A52: 49 | B52: ='Shooter Information'!B54 -> 0 | C52: ='Shooter Information'!C54 -> 0 | K52: 0 | L52: =IF('Shooter Information'!$E$3-('Shooter Information'!$G$3-RANK(K52,K$4:K$78,1))<0,0,'Shooter Information'!$E$3-('Shooter Information'!$G$3-RANK(K52,K$4:K$78,1))) -> 0 | M52: 0
A53: 50 | B53: ='Shooter Information'!B55 -> 0 | C53: ='Shooter Information'!C55 -> 0 | K53: 0 | L53: =IF('Shooter Information'!$E$3-('Shooter Information'!$G$3-RANK(K53,K$4:K$78,1))<0,0,'Shooter Information'!$E$3-('Shooter Information'!$G$3-RANK(K53,K$4:K$78,1))) -> 0 | M53: 0
A54: 51 | B54: ='Shooter Information'!B56 -> 0 | C54: ='Shooter Information'!C56 -> 0 | K54: 0 | L54: =IF('Shooter Information'!$E$3-('Shooter Information'!$G$3-RANK(K54,K$4:K$78,1))<0,0,'Shooter Information'!$E$3-('Shooter Information'!$G$3-RANK(K54,K$4:K$78,1))) -> 0 | M54: 0
A55: 52 | B55: ='Shooter Information'!B57 -> 0 | C55: ='Shooter Information'!C57 -> 0 | K55: 0 | L55: =IF('Shooter Information'!$E$3-('Shooter Information'!$G$3-RANK(K55,K$4:K$78,1))<0,0,'Shooter Information'!$E$3-('Shooter Information'!$G$3-RANK(K55,K$4:K$78,1))) -> 0 | M55: 0
A56: 53 | B56: ='Shooter Information'!B58 -> 0 | C56: ='Shooter Information'!C58 -> 0 | K56: 0 | L56: =IF('Shooter Information'!$E$3-('Shooter Information'!$G$3-RANK(K56,K$4:K$78,1))<0,0,'Shooter Information'!$E$3-('Shooter Information'!$G$3-RANK(K56,K$4:K$78,1))) -> 0 | M56: 0
A57: 54 | B57: ='Shooter Information'!B59 -> 0 | C57: ='Shooter Information'!C59 -> 0 | K57: 0 | L57: =IF('Shooter Information'!$E$3-('Shooter Information'!$G$3-RANK(K57,K$4:K$78,1))<0,0,'Shooter Information'!$E$3-('Shooter Information'!$G$3-RANK(K57,K$4:K$78,1))) -> 0 | M57: 0
A58: 55 | B58: ='Shooter Information'!B60 -> 0 | C58: ='Shooter Information'!C60 -> 0 | K58: 0 | L58: =IF('Shooter Information'!$E$3-('Shooter Information'!$G$3-RANK(K58,K$4:K$78,1))<0,0,'Shooter Information'!$E$3-('Shooter Information'!$G$3-RANK(K58,K$4:K$78,1))) -> 0 | M58: 0
A59: 56 | B59: ='Shooter Information'!B61 -> 0 | C59: ='Shooter Information'!C61 -> 0 | K59: 0 | L59: =IF('Shooter Information'!$E$3-('Shooter Information'!$G$3-RANK(K59,K$4:K$78,1))<0,0,'Shooter Information'!$E$3-('Shooter Information'!$G$3-RANK(K59,K$4:K$78,1))) -> 0 | M59: 0
A60: 57 | B60: ='Shooter Information'!B62 -> 0 | C60: ='Shooter Information'!C62 -> 0 | K60: 0 | L60: =IF('Shooter Information'!$E$3-('Shooter Information'!$G$3-RANK(K60,K$4:K$78,1))<0,0,'Shooter Information'!$E$3-('Shooter Information'!$G$3-RANK(K60,K$4:K$78,1))) -> 0 | M60: 0
A61: 58 | B61: ='Shooter Information'!B63 -> 0 | C61: ='Shooter Information'!C63 -> 0 | K61: 0 | L61: =IF('Shooter Information'!$E$3-('Shooter Information'!$G$3-RANK(K61,K$4:K$78,1))<0,0,'Shooter Information'!$E$3-('Shooter Information'!$G$3-RANK(K61,K$4:K$78,1))) -> 0 | M61: 0
A62: 59 | B62: ='Shooter Information'!B64 -> 0 | C62: ='Shooter Information'!C64 -> 0 | K62: 0 | L62: =IF('Shooter Information'!$E$3-('Shooter Information'!$G$3-RANK(K62,K$4:K$78,1))<0,0,'Shooter Information'!$E$3-('Shooter Information'!$G$3-RANK(K62,K$4:K$78,1))) -> 0 | M62: 0
A63: 60 | B63: ='Shooter Information'!B65 -> 0 | C63: ='Shooter Information'!C65 -> 0 | K63: 0 | L63: =IF('Shooter Information'!$E$3-('Shooter Information'!$G$3-RANK(K63,K$4:K$78,1))<0,0,'Shooter Information'!$E$3-('Shooter Information'!$G$3-RANK(K63,K$4:K$78,1))) -> 0 | M63: 0
A64: 61 | B64: ='Shooter Information'!B66 -> 0 | C64: ='Shooter Information'!C66 -> 0 | K64: =(D64*5)+E64-F64+(G64*10)+(H64*30)+(I64*999)+(J64*999.99) -> 0 | L64: =IF('Shooter Information'!$E$3-('Shooter Information'!$G$3-RANK(K64,K$4:K$78,1))<0,0,'Shooter Information'!$E$3-('Shooter Information'!$G$3-RANK(K64,K$4:K$78,1))) -> 0 | M64: =(SUM(D64+G64+H64+I64+J64)) -> 0
A65: 62 | B65: ='Shooter Information'!B67 -> 0 | C65: ='Shooter Information'!C67 -> 0 | K65: 0 | L65: =IF('Shooter Information'!$E$3-('Shooter Information'!$G$3-RANK(K65,K$4:K$78,1))<0,0,'Shooter Information'!$E$3-('Shooter Information'!$G$3-RANK(K65,K$4:K$78,1))) -> 0 | M65: 0
A66: 63 | B66: ='Shooter Information'!B68 -> 0 | C66: ='Shooter Information'!C68 -> 0 | K66: 0 | L66: =IF('Shooter Information'!$E$3-('Shooter Information'!$G$3-RANK(K66,K$4:K$78,1))<0,0,'Shooter Information'!$E$3-('Shooter Information'!$G$3-RANK(K66,K$4:K$78,1))) -> 0 | M66: 0
A67: 64 | B67: ='Shooter Information'!B69 -> 0 | C67: ='Shooter Information'!C69 -> 0 | K67: 0 | L67: =IF('Shooter Information'!$E$3-('Shooter Information'!$G$3-RANK(K67,K$4:K$78,1))<0,0,'Shooter Information'!$E$3-('Shooter Information'!$G$3-RANK(K67,K$4:K$78,1))) -> 0 | M67: 0
A68: 65 | B68: ='Shooter Information'!B70 -> 0 | C68: ='Shooter Information'!C70 -> 0 | K68: 0 | L68: =IF('Shooter Information'!$E$3-('Shooter Information'!$G$3-RANK(K68,K$4:K$78,1))<0,0,'Shooter Information'!$E$3-('Shooter Information'!$G$3-RANK(K68,K$4:K$78,1))) -> 0 | M68: 0
A69: 66 | B69: ='Shooter Information'!B71 -> 0 | C69: ='Shooter Information'!C71 -> 0 | K69: 0 | L69: =IF('Shooter Information'!$E$3-('Shooter Information'!$G$3-RANK(K69,K$4:K$78,1))<0,0,'Shooter Information'!$E$3-('Shooter Information'!$G$3-RANK(K69,K$4:K$78,1))) -> 0 | M69: 0
A70: 67 | B70: ='Shooter Information'!B72 -> 0 | C70: ='Shooter Information'!C72 -> 0 | K70: 0 | L70: =IF('Shooter Information'!$E$3-('Shooter Information'!$G$3-RANK(K70,K$4:K$78,1))<0,0,'Shooter Information'!$E$3-('Shooter Information'!$G$3-RANK(K70,K$4:K$78,1))) -> 0 | M70: 0
A71: 68 | B71: ='Shooter Information'!B73 -> 0 | C71: ='Shooter Information'!C73 -> 0 | K71: 0 | L71: =IF('Shooter Information'!$E$3-('Shooter Information'!$G$3-RANK(K71,K$4:K$78,1))<0,0,'Shooter Information'!$E$3-('Shooter Information'!$G$3-RANK(K71,K$4:K$78,1))) -> 0 | M71: 0
A72: 69 | B72: ='Shooter Information'!B74 -> 0 | C72: ='Shooter Information'!C74 -> 0 | K72: 0 | L72: =IF('Shooter Information'!$E$3-('Shooter Information'!$G$3-RANK(K72,K$4:K$78,1))<0,0,'Shooter Information'!$E$3-('Shooter Information'!$G$3-RANK(K72,K$4:K$78,1))) -> 0 | M72: 0
A73: 70 | B73: ='Shooter Information'!B75 -> 0 | C73: ='Shooter Information'!C75 -> 0 | K73: 0 | L73: =IF('Shooter Information'!$E$3-('Shooter Information'!$G$3-RANK(K73,K$4:K$78,1))<0,0,'Shooter Information'!$E$3-('Shooter Information'!$G$3-RANK(K73,K$4:K$78,1))) -> 0 | M73: 0
A74: 71 | B74: ='Shooter Information'!B76 -> 0 | C74: ='Shooter Information'!C76 -> 0 | K74: 0 | L74: =IF('Shooter Information'!$E$3-('Shooter Information'!$G$3-RANK(K74,K$4:K$78,1))<0,0,'Shooter Information'!$E$3-('Shooter Information'!$G$3-RANK(K74,K$4:K$78,1))) -> 0 | M74: 0
A75: 72 | B75: ='Shooter Information'!B77 -> 0 | C75: ='Shooter Information'!C77 -> 0 | K75: 0 | L75: =IF('Shooter Information'!$E$3-('Shooter Information'!$G$3-RANK(K75,K$4:K$78,1))<0,0,'Shooter Information'!$E$3-('Shooter Information'!$G$3-RANK(K75,K$4:K$78,1))) -> 0 | M75: 0
A76: 73 | B76: ='Shooter Information'!B78 -> 0 | C76: ='Shooter Information'!C78 -> 0 | K76: 0 | L76: =IF('Shooter Information'!$E$3-('Shooter Information'!$G$3-RANK(K76,K$4:K$78,1))<0,0,'Shooter Information'!$E$3-('Shooter Information'!$G$3-RANK(K76,K$4:K$78,1))) -> 0 | M76: 0
A77: 74 | B77: ='Shooter Information'!B79 -> 0 | C77: ='Shooter Information'!C79 -> 0 | K77: 0 | L77: =IF('Shooter Information'!$E$3-('Shooter Information'!$G$3-RANK(K77,K$4:K$78,1))<0,0,'Shooter Information'!$E$3-('Shooter Information'!$G$3-RANK(K77,K$4:K$78,1))) -> 0 | M77: 0
A78: 75 | B78: ='Shooter Information'!B80 -> 0 | C78: ='Shooter Information'!C80 -> 0 | K78: 0 | L78: =IF('Shooter Information'!$E$3-('Shooter Information'!$G$3-RANK(K78,K$4:K$78,1))<0,0,'Shooter Information'!$E$3-('Shooter Information'!$G$3-RANK(K78,K$4:K$78,1))) -> 0 | M78: 0

Sheet Stage 3
B1: CAS SCORE SHEET | D1: Date: | E1: ='Shooter Information'!$E$2 -> Wednesday April 9th, 2014
B2: Stage 3
A3: Roster # | B3: Shooter | C3: Class | D3: Misses | E3: Raw Time | F3: Bonus | G3: 10 Sec | H3: 30 Sec | I3: DNF | J3: DQ | K3: Total | L3: Rank | M3: Penalties
A4: =ROW()-3 -> 1 | B4: ='Shooter Information'!B6 -> Striker | C4: ='Shooter Information'!C6 -> 0 | I4: 1 | K4: =(D4*5)+E4-F4+(G4*10)+(H4*30)+(I4*999)+(J4*999.99) -> 999 | L4: =IF('Shooter Information'!$E$3-('Shooter Information'!$G$3-RANK(K4,K$4:K$78,1))<0,0,'Shooter Information'!$E$3-('Shooter Information'!$G$3-RANK(K4,K$4:K$78,1))) -> 4 | M4: =(SUM(D4+G4+H4+I4+J4)) -> 1
A5: =ROW()-3 -> 2 | B5: ='Shooter Information'!B7 -> Doc Deadwood | C5: ='Shooter Information'!C7 -> 0 | E5: 44.43 | K5: =(D5*5)+E5-F5+(G5*10)+(H5*30)+(I5*999)+(J5*999.99) -> 44.43 | L5: =IF('Shooter Information'!$E$3-('Shooter Information'!$G$3-RANK(K5,K$4:K$78,1))<0,0,'Shooter Information'!$E$3-('Shooter Information'!$G$3-RANK(K5,K$4:K$78,1))) -> 3 | M5: =(SUM(D5+G5+H5+I5+J5)) -> 0
A6: 3 | B6: ='Shooter Information'!B8 -> Cold Blue Mike | C6: ='Shooter Information'!C8 -> 0 | E6: 36.17 | K6: 36.17 | L6: =IF('Shooter Information'!$E$3-('Shooter Information'!$G$3-RANK(K6,K$4:K$78,1))<0,0,'Shooter Information'!$E$3-('Shooter Information'!$G$3-RANK(K6,K$4:K$78,1))) -> 2 | M6: 0
A7: 4 | B7: ='Shooter Information'!B9 -> B.S. Walker | C7: ='Shooter Information'!C9 -> 0 | E7: 29.59 | K7: 29.59 | L7: =IF('Shooter Information'!$E$3-('Shooter Information'!$G$3-RANK(K7,K$4:K$78,1))<0,0,'Shooter Information'!$E$3-('Shooter Information'!$G$3-RANK(K7,K$4:K$78,1))) -> 1 | M7: 0
A8: 5 | B8: ='Shooter Information'!B10 -> 0 | C8: ='Shooter Information'!C10 -> 0 | K8: 0 | L8: =IF('Shooter Information'!$E$3-('Shooter Information'!$G$3-RANK(K8,K$4:K$78,1))<0,0,'Shooter Information'!$E$3-('Shooter Information'!$G$3-RANK(K8,K$4:K$78,1))) -> 0 | M8: 0
A9: 6 | B9: ='Shooter Information'!B11 -> 0 | C9: ='Shooter Information'!C11 -> 0 | K9: 0 | L9: =IF('Shooter Information'!$E$3-('Shooter Information'!$G$3-RANK(K9,K$4:K$78,1))<0,0,'Shooter Information'!$E$3-('Shooter Information'!$G$3-RANK(K9,K$4:K$78,1))) -> 0 | M9: 0
A10: 7 | B10: ='Shooter Information'!B12 -> 0 | C10: ='Shooter Information'!C12 -> 0 | K10: 0 | L10: =IF('Shooter Information'!$E$3-('Shooter Information'!$G$3-RANK(K10,K$4:K$78,1))<0,0,'Shooter Information'!$E$3-('Shooter Information'!$G$3-RANK(K10,K$4:K$78,1))) -> 0 | M10: 0
A11: 8 | B11: ='Shooter Information'!B13 -> 0 | C11: ='Shooter Information'!C13 -> 0 | K11: 0 | L11: =IF('Shooter Information'!$E$3-('Shooter Information'!$G$3-RANK(K11,K$4:K$78,1))<0,0,'Shooter Information'!$E$3-('Shooter Information'!$G$3-RANK(K11,K$4:K$78,1))) -> 0 | M11: 0
A12: 9 | B12: ='Shooter Information'!B14 -> 0 | C12: ='Shooter Information'!C14 -> 0 | K12: 0 | L12: =IF('Shooter Information'!$E$3-('Shooter Information'!$G$3-RANK(K12,K$4:K$78,1))<0,0,'Shooter Information'!$E$3-('Shooter Information'!$G$3-RANK(K12,K$4:K$78,1))) -> 0 | M12: 0
A13: 10 | B13: ='Shooter Information'!B15 -> 0 | C13: ='Shooter Information'!C15 -> 0 | K13: 0 | L13: =IF('Shooter Information'!$E$3-('Shooter Information'!$G$3-RANK(K13,K$4:K$78,1))<0,0,'Shooter Information'!$E$3-('Shooter Information'!$G$3-RANK(K13,K$4:K$78,1))) -> 0 | M13: 0
A14: 11 | B14: ='Shooter Information'!B16 -> 0 | C14: ='Shooter Information'!C16 -> 0 | K14: 0 | L14: =IF('Shooter Information'!$E$3-('Shooter Information'!$G$3-RANK(K14,K$4:K$78,1))<0,0,'Shooter Information'!$E$3-('Shooter Information'!$G$3-RANK(K14,K$4:K$78,1))) -> 0 | M14: 0
A15: 12 | B15: ='Shooter Information'!B17 -> 0 | C15: ='Shooter Information'!C17 -> 0 | K15: 0 | L15: =IF('Shooter Information'!$E$3-('Shooter Information'!$G$3-RANK(K15,K$4:K$78,1))<0,0,'Shooter Information'!$E$3-('Shooter Information'!$G$3-RANK(K15,K$4:K$78,1))) -> 0 | M15: 0
A16: 13 | B16: ='Shooter Information'!B18 -> 0 | C16: ='Shooter Information'!C18 -> 0 | K16: 0 | L16: =IF('Shooter Information'!$E$3-('Shooter Information'!$G$3-RANK(K16,K$4:K$78,1))<0,0,'Shooter Information'!$E$3-('Shooter Information'!$G$3-RANK(K16,K$4:K$78,1))) -> 0 | M16: 0
A17: 14 | B17: ='Shooter Information'!B19 -> 0 | C17: ='Shooter Information'!C19 -> 0 | K17: 0 | L17: =IF('Shooter Information'!$E$3-('Shooter Information'!$G$3-RANK(K17,K$4:K$78,1))<0,0,'Shooter Information'!$E$3-('Shooter Information'!$G$3-RANK(K17,K$4:K$78,1))) -> 0 | M17: 0
A18: 15 | B18: ='Shooter Information'!B20 -> 0 | C18: ='Shooter Information'!C20 -> 0 | K18: 0 | L18: =IF('Shooter Information'!$E$3-('Shooter Information'!$G$3-RANK(K18,K$4:K$78,1))<0,0,'Shooter Information'!$E$3-('Shooter Information'!$G$3-RANK(K18,K$4:K$78,1))) -> 0 | M18: 0
A19: 16 | B19: ='Shooter Information'!B21 -> 0 | C19: ='Shooter Information'!C21 -> 0 | K19: 0 | L19: =IF('Shooter Information'!$E$3-('Shooter Information'!$G$3-RANK(K19,K$4:K$78,1))<0,0,'Shooter Information'!$E$3-('Shooter Information'!$G$3-RANK(K19,K$4:K$78,1))) -> 0 | M19: 0
A20: 17 | B20: ='Shooter Information'!B22 -> 0 | C20: ='Shooter Information'!C22 -> 0 | K20: 0 | L20: =IF('Shooter Information'!$E$3-('Shooter Information'!$G$3-RANK(K20,K$4:K$78,1))<0,0,'Shooter Information'!$E$3-('Shooter Information'!$G$3-RANK(K20,K$4:K$78,1))) -> 0 | M20: 0
A21: 18 | B21: ='Shooter Information'!B23 -> 0 | C21: ='Shooter Information'!C23 -> 0 | K21: 0 | L21: =IF('Shooter Information'!$E$3-('Shooter Information'!$G$3-RANK(K21,K$4:K$78,1))<0,0,'Shooter Information'!$E$3-('Shooter Information'!$G$3-RANK(K21,K$4:K$78,1))) -> 0 | M21: 0
A22: 19 | B22: ='Shooter Information'!B24 -> 0 | C22: ='Shooter Information'!C24 -> 0 | K22: 0 | L22: =IF('Shooter Information'!$E$3-('Shooter Information'!$G$3-RANK(K22,K$4:K$78,1))<0,0,'Shooter Information'!$E$3-('Shooter Information'!$G$3-RANK(K22,K$4:K$78,1))) -> 0 | M22: 0
A23: 20 | B23: ='Shooter Information'!B25 -> 0 | C23: ='Shooter Information'!C25 -> 0 | K23: 0 | L23: =IF('Shooter Information'!$E$3-('Shooter Information'!$G$3-RANK(K23,K$4:K$78,1))<0,0,'Shooter Information'!$E$3-('Shooter Information'!$G$3-RANK(K23,K$4:K$78,1))) -> 0 | M23: 0
A24: 21 | B24: ='Shooter Information'!B26 -> 0 | C24: ='Shooter Information'!C26 -> 0 | K24: 0 | L24: =IF('Shooter Information'!$E$3-('Shooter Information'!$G$3-RANK(K24,K$4:K$78,1))<0,0,'Shooter Information'!$E$3-('Shooter Information'!$G$3-RANK(K24,K$4:K$78,1))) -> 0 | M24: 0
A25: 22 | B25: ='Shooter Information'!B27 -> 0 | C25: ='Shooter Information'!C27 -> 0 | K25: 0 | L25: =IF('Shooter Information'!$E$3-('Shooter Information'!$G$3-RANK(K25,K$4:K$78,1))<0,0,'Shooter Information'!$E$3-('Shooter Information'!$G$3-RANK(K25,K$4:K$78,1))) -> 0 | M25: 0
A26: 23 | B26: ='Shooter Information'!B28 -> 0 | C26: ='Shooter Information'!C28 -> 0 | K26: 0 | L26: =IF('Shooter Information'!$E$3-('Shooter Information'!$G$3-RANK(K26,K$4:K$78,1))<0,0,'Shooter Information'!$E$3-('Shooter Information'!$G$3-RANK(K26,K$4:K$78,1))) -> 0 | M26: 0
A27: 24 | B27: ='Shooter Information'!B29 -> 0 | C27: ='Shooter Information'!C29 -> 0 | K27: 0 | L27: =IF('Shooter Information'!$E$3-('Shooter Information'!$G$3-RANK(K27,K$4:K$78,1))<0,0,'Shooter Information'!$E$3-('Shooter Information'!$G$3-RANK(K27,K$4:K$78,1))) -> 0 | M27: 0
A28: 25 | B28: ='Shooter Information'!B30 -> 0 | C28: ='Shooter Information'!C30 -> 0 | K28: 0 | L28: =IF('Shooter Information'!$E$3-('Shooter Information'!$G$3-RANK(K28,K$4:K$78,1))<0,0,'Shooter Information'!$E$3-('Shooter Information'!$G$3-RANK(K28,K$4:K$78,1))) -> 0 | M28: 0
A29: 26 | B29: ='Shooter Information'!B31 -> 0 | C29: ='Shooter Information'!C31 -> 0 | K29: 0 | L29: =IF('Shooter Information'!$E$3-('Shooter Information'!$G$3-RANK(K29,K$4:K$78,1))<0,0,'Shooter Information'!$E$3-('Shooter Information'!$G$3-RANK(K29,K$4:K$78,1))) -> 0 | M29: 0
A30: 27 | B30: ='Shooter Information'!B32 -> 0 | C30: ='Shooter Information'!C32 -> 0 | K30: 0 | L30: =IF('Shooter Information'!$E$3-('Shooter Information'!$G$3-RANK(K30,K$4:K$78,1))<0,0,'Shooter Information'!$E$3-('Shooter Information'!$G$3-RANK(K30,K$4:K$78,1))) -> 0 | M30: 0
A31: 28 | B31: ='Shooter Information'!B33 -> 0 | C31: ='Shooter Information'!C33 -> 0 | K31: 0 | L31: =IF('Shooter Information'!$E$3-('Shooter Information'!$G$3-RANK(K31,K$4:K$78,1))<0,0,'Shooter Information'!$E$3-('Shooter Information'!$G$3-RANK(K31,K$4:K$78,1))) -> 0 | M31: 0
A32: 29 | B32: ='Shooter Information'!B34 -> 0 | C32: ='Shooter Information'!C34 -> 0 | K32: 0 | L32: =IF('Shooter Information'!$E$3-('Shooter Information'!$G$3-RANK(K32,K$4:K$78,1))<0,0,'Shooter Information'!$E$3-('Shooter Information'!$G$3-RANK(K32,K$4:K$78,1))) -> 0 | M32: 0
A33: 30 | B33: ='Shooter Information'!B35 -> 0 | C33: ='Shooter Information'!C35 -> 0 | K33: 0 | L33: =IF('Shooter Information'!$E$3-('Shooter Information'!$G$3-RANK(K33,K$4:K$78,1))<0,0,'Shooter Information'!$E$3-('Shooter Information'!$G$3-RANK(K33,K$4:K$78,1))) -> 0 | M33: 0
A34: 31 | B34: ='Shooter Information'!B36 -> 0 | C34: ='Shooter Information'!C36 -> 0 | K34: 0 | L34: =IF('Shooter Information'!$E$3-('Shooter Information'!$G$3-RANK(K34,K$4:K$78,1))<0,0,'Shooter Information'!$E$3-('Shooter Information'!$G$3-RANK(K34,K$4:K$78,1))) -> 0 | M34: 0
A35: 32 | B35: ='Shooter Information'!B37 -> 0 | C35: ='Shooter Information'!C37 -> 0 | K35: 0 | L35: =IF('Shooter Information'!$E$3-('Shooter Information'!$G$3-RANK(K35,K$4:K$78,1))<0,0,'Shooter Information'!$E$3-('Shooter Information'!$G$3-RANK(K35,K$4:K$78,1))) -> 0 | M35: 0
A36: 33 | B36: ='Shooter Information'!B38 -> 0 | C36: ='Shooter Information'!C38 -> 0 | K36: 0 | L36: =IF('Shooter Information'!$E$3-('Shooter Information'!$G$3-RANK(K36,K$4:K$78,1))<0,0,'Shooter Information'!$E$3-('Shooter Information'!$G$3-RANK(K36,K$4:K$78,1))) -> 0 | M36: 0
A37: 34 | B37: ='Shooter Information'!B39 -> 0 | C37: ='Shooter Information'!C39 -> 0 | K37: 0 | L37: =IF('Shooter Information'!$E$3-('Shooter Information'!$G$3-RANK(K37,K$4:K$78,1))<0,0,'Shooter Information'!$E$3-('Shooter Information'!$G$3-RANK(K37,K$4:K$78,1))) -> 0 | M37: 0
A38: 35 | B38: ='Shooter Information'!B40 -> 0 | C38: ='Shooter Information'!C40 -> 0 | K38: 0 | L38: =IF('Shooter Information'!$E$3-('Shooter Information'!$G$3-RANK(K38,K$4:K$78,1))<0,0,'Shooter Information'!$E$3-('Shooter Information'!$G$3-RANK(K38,K$4:K$78,1))) -> 0 | M38: 0
A39: 36 | B39: ='Shooter Information'!B41 -> 0 | C39: ='Shooter Information'!C41 -> 0 | K39: 0 | L39: =IF('Shooter Information'!$E$3-('Shooter Information'!$G$3-RANK(K39,K$4:K$78,1))<0,0,'Shooter Information'!$E$3-('Shooter Information'!$G$3-RANK(K39,K$4:K$78,1))) -> 0 | M39: 0
A40: 37 | B40: ='Shooter Information'!B42 -> 0 | C40: ='Shooter Information'!C42 -> 0 | K40: 0 | L40: =IF('Shooter Information'!$E$3-('Shooter Information'!$G$3-RANK(K40,K$4:K$78,1))<0,0,'Shooter Information'!$E$3-('Shooter Information'!$G$3-RANK(K40,K$4:K$78,1))) -> 0 | M40: 0
A41: 38 | B41: ='Shooter Information'!B43 -> 0 | C41: ='Shooter Information'!C43 -> 0 | K41: 0 | L41: =IF('Shooter Information'!$E$3-('Shooter Information'!$G$3-RANK(K41,K$4:K$78,1))<0,0,'Shooter Information'!$E$3-('Shooter Information'!$G$3-RANK(K41,K$4:K$78,1))) -> 0 | M41: 0
A42: 39 | B42: ='Shooter Information'!B44 -> 0 | C42: ='Shooter Information'!C44 -> 0 | K42: 0 | L42: =IF('Shooter Information'!$E$3-('Shooter Information'!$G$3-RANK(K42,K$4:K$78,1))<0,0,'Shooter Information'!$E$3-('Shooter Information'!$G$3-RANK(K42,K$4:K$78,1))) -> 0 | M42: 0
A43: 40 | B43: ='Shooter Information'!B45 -> 0 | C43: ='Shooter Information'!C45 -> 0 | K43: 0 | L43: =IF('Shooter Information'!$E$3-('Shooter Information'!$G$3-RANK(K43,K$4:K$78,1))<0,0,'Shooter Information'!$E$3-('Shooter Information'!$G$3-RANK(K43,K$4:K$78,1))) -> 0 | M43: 0
A44: 41 | B44: ='Shooter Information'!B46 -> 0 | C44: ='Shooter Information'!C46 -> 0 | K44: 0 | L44: =IF('Shooter Information'!$E$3-('Shooter Information'!$G$3-RANK(K44,K$4:K$78,1))<0,0,'Shooter Information'!$E$3-('Shooter Information'!$G$3-RANK(K44,K$4:K$78,1))) -> 0 | M44: 0
A45: 42 | B45: ='Shooter Information'!B47 -> 0 | C45: ='Shooter Information'!C47 -> 0 | K45: 0 | L45: =IF('Shooter Information'!$E$3-('Shooter Information'!$G$3-RANK(K45,K$4:K$78,1))<0,0,'Shooter Information'!$E$3-('Shooter Information'!$G$3-RANK(K45,K$4:K$78,1))) -> 0 | M45: 0
A46: 43 | B46: ='Shooter Information'!B48 -> 0 | C46: ='Shooter Information'!C48 -> 0 | K46: 0 | L46: =IF('Shooter Information'!$E$3-('Shooter Information'!$G$3-RANK(K46,K$4:K$78,1))<0,0,'Shooter Information'!$E$3-('Shooter Information'!$G$3-RANK(K46,K$4:K$78,1))) -> 0 | M46: 0
A47: 44 | B47: ='Shooter Information'!B49 -> 0 | C47: ='Shooter Information'!C49 -> 0 | K47: 0 | L47: =IF('Shooter Information'!$E$3-('Shooter Information'!$G$3-RANK(K47,K$4:K$78,1))<0,0,'Shooter Information'!$E$3-('Shooter Information'!$G$3-RANK(K47,K$4:K$78,1))) -> 0 | M47: 0
A48: 45 | B48: ='Shooter Information'!B50 -> 0 | C48: ='Shooter Information'!C50 -> 0 | K48: 0 | L48: =IF('Shooter Information'!$E$3-('Shooter Information'!$G$3-RANK(K48,K$4:K$78,1))<0,0,'Shooter Information'!$E$3-('Shooter Information'!$G$3-RANK(K48,K$4:K$78,1))) -> 0 | M48: 0
A49: 46 | B49: ='Shooter Information'!B51 -> 0 | C49: ='Shooter Information'!C51 -> 0 | K49: =(D49*5)+E49-F49+(G49*10)+(H49*30)+(I49*999)+(J49*999.99) -> 0 | L49: =IF('Shooter Information'!$E$3-('Shooter Information'!$G$3-RANK(K49,K$4:K$78,1))<0,0,'Shooter Information'!$E$3-('Shooter Information'!$G$3-RANK(K49,K$4:K$78,1))) -> 0 | M49: 0
A50: 47 | B50: ='Shooter Information'!B52 -> 0 | C50: ='Shooter Information'!C52 -> 0 | K50: 0 | L50: =IF('Shooter Information'!$E$3-('Shooter Information'!$G$3-RANK(K50,K$4:K$78,1))<0,0,'Shooter Information'!$E$3-('Shooter Information'!$G$3-RANK(K50,K$4:K$78,1))) -> 0 | M50: 0
A51: 48 | B51: ='Shooter Information'!B53 -> 0 | C51: ='Shooter Information'!C53 -> 0 | K51: 0 | L51: =IF('Shooter Information'!$E$3-('Shooter Information'!$G$3-RANK(K51,K$4:K$78,1))<0,0,'Shooter Information'!$E$3-('Shooter Information'!$G$3-RANK(K51,K$4:K$78,1))) -> 0 | M51: 0
A52: 49 | B52: ='Shooter Information'!B54 -> 0 | C52: ='Shooter Information'!C54 -> 0 | K52: 0 | L52: =IF('Shooter Information'!$E$3-('Shooter Information'!$G$3-RANK(K52,K$4:K$78,1))<0,0,'Shooter Information'!$E$3-('Shooter Information'!$G$3-RANK(K52,K$4:K$78,1))) -> 0 | M52: 0
A53: 50 | B53: ='Shooter Information'!B55 -> 0 | C53: ='Shooter Information'!C55 -> 0 | K53: 0 | L53: =IF('Shooter Information'!$E$3-('Shooter Information'!$G$3-RANK(K53,K$4:K$78,1))<0,0,'Shooter Information'!$E$3-('Shooter Information'!$G$3-RANK(K53,K$4:K$78,1))) -> 0 | M53: 0
A54: 51 | B54: ='Shooter Information'!B56 -> 0 | C54: ='Shooter Information'!C56 -> 0 | K54: 0 | L54: =IF('Shooter Information'!$E$3-('Shooter Information'!$G$3-RANK(K54,K$4:K$78,1))<0,0,'Shooter Information'!$E$3-('Shooter Information'!$G$3-RANK(K54,K$4:K$78,1))) -> 0 | M54: 0
A55: 52 | B55: ='Shooter Information'!B57 -> 0 | C55: ='Shooter Information'!C57 -> 0 | K55: 0 | L55: =IF('Shooter Information'!$E$3-('Shooter Information'!$G$3-RANK(K55,K$4:K$78,1))<0,0,'Shooter Information'!$E$3-('Shooter Information'!$G$3-RANK(K55,K$4:K$78,1))) -> 0 | M55: 0
A56: 53 | B56: ='Shooter Information'!B58 -> 0 | C56: ='Shooter Information'!C58 -> 0 | K56: 0 | L56: =IF('Shooter Information'!$E$3-('Shooter Information'!$G$3-RANK(K56,K$4:K$78,1))<0,0,'Shooter Information'!$E$3-('Shooter Information'!$G$3-RANK(K56,K$4:K$78,1))) -> 0 | M56: 0
A57: 54 | B57: ='Shooter Information'!B59 -> 0 | C57: ='Shooter Information'!C59 -> 0 | K57: 0 | L57: =IF('Shooter Information'!$E$3-('Shooter Information'!$G$3-RANK(K57,K$4:K$78,1))<0,0,'Shooter Information'!$E$3-('Shooter Information'!$G$3-RANK(K57,K$4:K$78,1))) -> 0 | M57: 0
A58: 55 | B58: ='Shooter Information'!B60 -> 0 | C58: ='Shooter Information'!C60 -> 0 | K58: 0 | L58: =IF('Shooter Information'!$E$3-('Shooter Information'!$G$3-RANK(K58,K$4:K$78,1))<0,0,'Shooter Information'!$E$3-('Shooter Information'!$G$3-RANK(K58,K$4:K$78,1))) -> 0 | M58: 0
A59: 56 | B59: ='Shooter Information'!B61 -> 0 | C59: ='Shooter Information'!C61 -> 0 | K59: 0 | L59: =IF('Shooter Information'!$E$3-('Shooter Information'!$G$3-RANK(K59,K$4:K$78,1))<0,0,'Shooter Information'!$E$3-('Shooter Information'!$G$3-RANK(K59,K$4:K$78,1))) -> 0 | M59: 0
A60: 57 | B60: ='Shooter Information'!B62 -> 0 | C60: ='Shooter Information'!C62 -> 0 | K60: 0 | L60: =IF('Shooter Information'!$E$3-('Shooter Information'!$G$3-RANK(K60,K$4:K$78,1))<0,0,'Shooter Information'!$E$3-('Shooter Information'!$G$3-RANK(K60,K$4:K$78,1))) -> 0 | M60: 0
A61: 58 | B61: ='Shooter Information'!B63 -> 0 | C61: ='Shooter Information'!C63 -> 0 | K61: 0 | L61: =IF('Shooter Information'!$E$3-('Shooter Information'!$G$3-RANK(K61,K$4:K$78,1))<0,0,'Shooter Information'!$E$3-('Shooter Information'!$G$3-RANK(K61,K$4:K$78,1))) -> 0 | M61: 0
A62: 59 | B62: ='Shooter Information'!B64 -> 0 | C62: ='Shooter Information'!C64 -> 0 | K62: 0 | L62: =IF('Shooter Information'!$E$3-('Shooter Information'!$G$3-RANK(K62,K$4:K$78,1))<0,0,'Shooter Information'!$E$3-('Shooter Information'!$G$3-RANK(K62,K$4:K$78,1))) -> 0 | M62: 0
A63: 60 | B63: ='Shooter Information'!B65 -> 0 | C63: ='Shooter Information'!C65 -> 0 | K63: 0 | L63: =IF('Shooter Information'!$E$3-('Shooter Information'!$G$3-RANK(K63,K$4:K$78,1))<0,0,'Shooter Information'!$E$3-('Shooter Information'!$G$3-RANK(K63,K$4:K$78,1))) -> 0 | M63: 0
A64: 61 | B64: ='Shooter Information'!B66 -> 0 | C64: ='Shooter Information'!C66 -> 0 | K64: =(D64*5)+E64-F64+(G64*10)+(H64*30)+(I64*999)+(J64*999.99) -> 0 | L64: =IF('Shooter Information'!$E$3-('Shooter Information'!$G$3-RANK(K64,K$4:K$78,1))<0,0,'Shooter Information'!$E$3-('Shooter Information'!$G$3-RANK(K64,K$4:K$78,1))) -> 0 | M64: =(SUM(D64+G64+H64+I64+J64)) -> 0
A65: 62 | B65: ='Shooter Information'!B67 -> 0 | C65: ='Shooter Information'!C67 -> 0 | K65: 0 | L65: =IF('Shooter Information'!$E$3-('Shooter Information'!$G$3-RANK(K65,K$4:K$78,1))<0,0,'Shooter Information'!$E$3-('Shooter Information'!$G$3-RANK(K65,K$4:K$78,1))) -> 0 | M65: 0
A66: 63 | B66: ='Shooter Information'!B68 -> 0 | C66: ='Shooter Information'!C68 -> 0 | K66: 0 | L66: =IF('Shooter Information'!$E$3-('Shooter Information'!$G$3-RANK(K66,K$4:K$78,1))<0,0,'Shooter Information'!$E$3-('Shooter Information'!$G$3-RANK(K66,K$4:K$78,1))) -> 0 | M66: 0
A67: 64 | B67: ='Shooter Information'!B69 -> 0 | C67: ='Shooter Information'!C69 -> 0 | K67: 0 | L67: =IF('Shooter Information'!$E$3-('Shooter Information'!$G$3-RANK(K67,K$4:K$78,1))<0,0,'Shooter Information'!$E$3-('Shooter Information'!$G$3-RANK(K67,K$4:K$78,1))) -> 0 | M67: 0
A68: 65 | B68: ='Shooter Information'!B70 -> 0 | C68: ='Shooter Information'!C70 -> 0 | K68: 0 | L68: =IF('Shooter Information'!$E$3-('Shooter Information'!$G$3-RANK(K68,K$4:K$78,1))<0,0,'Shooter Information'!$E$3-('Shooter Information'!$G$3-RANK(K68,K$4:K$78,1))) -> 0 | M68: 0
A69: 66 | B69: ='Shooter Information'!B71 -> 0 | C69: ='Shooter Information'!C71 -> 0 | K69: 0 | L69: =IF('Shooter Information'!$E$3-('Shooter Information'!$G$3-RANK(K69,K$4:K$78,1))<0,0,'Shooter Information'!$E$3-('Shooter Information'!$G$3-RANK(K69,K$4:K$78,1))) -> 0 | M69: 0
A70: 67 | B70: ='Shooter Information'!B72 -> 0 | C70: ='Shooter Information'!C72 -> 0 | K70: 0 | L70: =IF('Shooter Information'!$E$3-('Shooter Information'!$G$3-RANK(K70,K$4:K$78,1))<0,0,'Shooter Information'!$E$3-('Shooter Information'!$G$3-RANK(K70,K$4:K$78,1))) -> 0 | M70: 0
A71: 68 | B71: ='Shooter Information'!B73 -> 0 | C71: ='Shooter Information'!C73 -> 0 | K71: 0 | L71: =IF('Shooter Information'!$E$3-('Shooter Information'!$G$3-RANK(K71,K$4:K$78,1))<0,0,'Shooter Information'!$E$3-('Shooter Information'!$G$3-RANK(K71,K$4:K$78,1))) -> 0 | M71: 0
A72: 69 | B72: ='Shooter Information'!B74 -> 0 | C72: ='Shooter Information'!C74 -> 0 | K72: 0 | L72: =IF('Shooter Information'!$E$3-('Shooter Information'!$G$3-RANK(K72,K$4:K$78,1))<0,0,'Shooter Information'!$E$3-('Shooter Information'!$G$3-RANK(K72,K$4:K$78,1))) -> 0 | M72: 0
A73: 70 | B73: ='Shooter Information'!B75 -> 0 | C73: ='Shooter Information'!C75 -> 0 | K73: 0 | L73: =IF('Shooter Information'!$E$3-('Shooter Information'!$G$3-RANK(K73,K$4:K$78,1))<0,0,'Shooter Information'!$E$3-('Shooter Information'!$G$3-RANK(K73,K$4:K$78,1))) -> 0 | M73: 0
A74: 71 | B74: ='Shooter Information'!B76 -> 0 | C74: ='Shooter Information'!C76 -> 0 | K74: 0 | L74: =IF('Shooter Information'!$E$3-('Shooter Information'!$G$3-RANK(K74,K$4:K$78,1))<0,0,'Shooter Information'!$E$3-('Shooter Information'!$G$3-RANK(K74,K$4:K$78,1))) -> 0 | M74: 0
A75: 72 | B75: ='Shooter Information'!B77 -> 0 | C75: ='Shooter Information'!C77 -> 0 | K75: 0 | L75: =IF('Shooter Information'!$E$3-('Shooter Information'!$G$3-RANK(K75,K$4:K$78,1))<0,0,'Shooter Information'!$E$3-('Shooter Information'!$G$3-RANK(K75,K$4:K$78,1))) -> 0 | M75: 0
A76: 73 | B76: ='Shooter Information'!B78 -> 0 | C76: ='Shooter Information'!C78 -> 0 | K76: 0 | L76: =IF('Shooter Information'!$E$3-('Shooter Information'!$G$3-RANK(K76,K$4:K$78,1))<0,0,'Shooter Information'!$E$3-('Shooter Information'!$G$3-RANK(K76,K$4:K$78,1))) -> 0 | M76: 0
A77: 74 | B77: ='Shooter Information'!B79 -> 0 | C77: ='Shooter Information'!C79 -> 0 | K77: 0 | L77: =IF('Shooter Information'!$E$3-('Shooter Information'!$G$3-RANK(K77,K$4:K$78,1))<0,0,'Shooter Information'!$E$3-('Shooter Information'!$G$3-RANK(K77,K$4:K$78,1))) -> 0 | M77: 0
A78: 75 | B78: ='Shooter Information'!B80 -> 0 | C78: ='Shooter Information'!C80 -> 0 | K78: 0 | L78: =IF('Shooter Information'!$E$3-('Shooter Information'!$G$3-RANK(K78,K$4:K$78,1))<0,0,'Shooter Information'!$E$3-('Shooter Information'!$G$3-RANK(K78,K$4:K$78,1))) -> 0 | M78: 0

Sheet Stage 4
B1: CAS SCORE SHEET | D1: Date: | E1: ='Shooter Information'!$E$2 -> Wednesday April 9th, 2014
B2: Stage 4
A3: Roster # | B3: Shooter | C3: Class | D3: Misses | E3: Raw Time | F3: Bonus | G3: 10 Sec | H3: 30 Sec | I3: DNF | J3: DQ | K3: Total | L3: Rank | M3: Penalties
A4: =ROW()-3 -> 1 | B4: ='Shooter Information'!B6 -> Striker | C4: ='Shooter Information'!C6 -> 0 | I4: 1 | K4: =(D4*5)+E4-F4+(G4*10)+(H4*30)+(I4*999)+(J4*999.99) -> 999 | L4: =IF('Shooter Information'!$E$3-('Shooter Information'!$G$3-RANK(K4,K$4:K$78,1))<0,0,'Shooter Information'!$E$3-('Shooter Information'!$G$3-RANK(K4,K$4:K$78,1))) -> 4 | M4: =(SUM(D4+G4+H4+I4+J4)) -> 1
A5: =ROW()-3 -> 2 | B5: ='Shooter Information'!B7 -> Doc Deadwood | C5: ='Shooter Information'!C7 -> 0 | E5: 41.76 | K5: =(D5*5)+E5-F5+(G5*10)+(H5*30)+(I5*999)+(J5*999.99) -> 41.76 | L5: =IF('Shooter Information'!$E$3-('Shooter Information'!$G$3-RANK(K5,K$4:K$78,1))<0,0,'Shooter Information'!$E$3-('Shooter Information'!$G$3-RANK(K5,K$4:K$78,1))) -> 3 | M5: =(SUM(D5+G5+H5+I5+J5)) -> 0
A6: 3 | B6: ='Shooter Information'!B8 -> Cold Blue Mike | C6: ='Shooter Information'!C8 -> 0 | E6: 38.81 | K6: 38.81 | L6: =IF('Shooter Information'!$E$3-('Shooter Information'!$G$3-RANK(K6,K$4:K$78,1))<0,0,'Shooter Information'!$E$3-('Shooter Information'!$G$3-RANK(K6,K$4:K$78,1))) -> 2 | M6: 0
A7: 4 | B7: ='Shooter Information'!B9 -> B.S. Walker | C7: ='Shooter Information'!C9 -> 0 | E7: 32.7 | K7: 32.7 | L7: =IF('Shooter Information'!$E$3-('Shooter Information'!$G$3-RANK(K7,K$4:K$78,1))<0,0,'Shooter Information'!$E$3-('Shooter Information'!$G$3-RANK(K7,K$4:K$78,1))) -> 1 | M7: 0
A8: 5 | B8: ='Shooter Information'!B10 -> 0 | C8: ='Shooter Information'!C10 -> 0 | K8: 0 | L8: =IF('Shooter Information'!$E$3-('Shooter Information'!$G$3-RANK(K8,K$4:K$78,1))<0,0,'Shooter Information'!$E$3-('Shooter Information'!$G$3-RANK(K8,K$4:K$78,1))) -> 0 | M8: 0
A9: 6 | B9: ='Shooter Information'!B11 -> 0 | C9: ='Shooter Information'!C11 -> 0 | K9: 0 | L9: =IF('Shooter Information'!$E$3-('Shooter Information'!$G$3-RANK(K9,K$4:K$78,1))<0,0,'Shooter Information'!$E$3-('Shooter Information'!$G$3-RANK(K9,K$4:K$78,1))) -> 0 | M9: 0
A10: 7 | B10: ='Shooter Information'!B12 -> 0 | C10: ='Shooter Information'!C12 -> 0 | K10: 0 | L10: =IF('Shooter Information'!$E$3-('Shooter Information'!$G$3-RANK(K10,K$4:K$78,1))<0,0,'Shooter Information'!$E$3-('Shooter Information'!$G$3-RANK(K10,K$4:K$78,1))) -> 0 | M10: 0
A11: 8 | B11: ='Shooter Information'!B13 -> 0 | C11: ='Shooter Information'!C13 -> 0 | K11: 0 | L11: =IF('Shooter Information'!$E$3-('Shooter Information'!$G$3-RANK(K11,K$4:K$78,1))<0,0,'Shooter Information'!$E$3-('Shooter Information'!$G$3-RANK(K11,K$4:K$78,1))) -> 0 | M11: 0
A12: 9 | B12: ='Shooter Information'!B14 -> 0 | C12: ='Shooter Information'!C14 -> 0 | K12: 0 | L12: =IF('Shooter Information'!$E$3-('Shooter Information'!$G$3-RANK(K12,K$4:K$78,1))<0,0,'Shooter Information'!$E$3-('Shooter Information'!$G$3-RANK(K12,K$4:K$78,1))) -> 0 | M12: 0
A13: 10 | B13: ='Shooter Information'!B15 -> 0 | C13: ='Shooter Information'!C15 -> 0 | K13: 0 | L13: =IF('Shooter Information'!$E$3-('Shooter Information'!$G$3-RANK(K13,K$4:K$78,1))<0,0,'Shooter Information'!$E$3-('Shooter Information'!$G$3-RANK(K13,K$4:K$78,1))) -> 0 | M13: 0
A14: 11 | B14: ='Shooter Information'!B16 -> 0 | C14: ='Shooter Information'!C16 -> 0 | K14: 0 | L14: =IF('Shooter Information'!$E$3-('Shooter Information'!$G$3-RANK(K14,K$4:K$78,1))<0,0,'Shooter Information'!$E$3-('Shooter Information'!$G$3-RANK(K14,K$4:K$78,1))) -> 0 | M14: 0
A15: 12 | B15: ='Shooter Information'!B17 -> 0 | C15: ='Shooter Information'!C17 -> 0 | K15: 0 | L15: =IF('Shooter Information'!$E$3-('Shooter Information'!$G$3-RANK(K15,K$4:K$78,1))<0,0,'Shooter Information'!$E$3-('Shooter Information'!$G$3-RANK(K15,K$4:K$78,1))) -> 0 | M15: 0
A16: 13 | B16: ='Shooter Information'!B18 -> 0 | C16: ='Shooter Information'!C18 -> 0 | K16: 0 | L16: =IF('Shooter Information'!$E$3-('Shooter Information'!$G$3-RANK(K16,K$4:K$78,1))<0,0,'Shooter Information'!$E$3-('Shooter Information'!$G$3-RANK(K16,K$4:K$78,1))) -> 0 | M16: 0
A17: 14 | B17: ='Shooter Information'!B19 -> 0 | C17: ='Shooter Information'!C19 -> 0 | K17: 0 | L17: =IF('Shooter Information'!$E$3-('Shooter Information'!$G$3-RANK(K17,K$4:K$78,1))<0,0,'Shooter Information'!$E$3-('Shooter Information'!$G$3-RANK(K17,K$4:K$78,1))) -> 0 | M17: 0
A18: 15 | B18: ='Shooter Information'!B20 -> 0 | C18: ='Shooter Information'!C20 -> 0 | K18: 0 | L18: =IF('Shooter Information'!$E$3-('Shooter Information'!$G$3-RANK(K18,K$4:K$78,1))<0,0,'Shooter Information'!$E$3-('Shooter Information'!$G$3-RANK(K18,K$4:K$78,1))) -> 0 | M18: 0
A19: 16 | B19: ='Shooter Information'!B21 -> 0 | C19: ='Shooter Information'!C21 -> 0 | K19: 0 | L19: =IF('Shooter Information'!$E$3-('Shooter Information'!$G$3-RANK(K19,K$4:K$78,1))<0,0,'Shooter Information'!$E$3-('Shooter Information'!$G$3-RANK(K19,K$4:K$78,1))) -> 0 | M19: 0
A20: 17 | B20: ='Shooter Information'!B22 -> 0 | C20: ='Shooter Information'!C22 -> 0 | K20: 0 | L20: =IF('Shooter Information'!$E$3-('Shooter Information'!$G$3-RANK(K20,K$4:K$78,1))<0,0,'Shooter Information'!$E$3-('Shooter Information'!$G$3-RANK(K20,K$4:K$78,1))) -> 0 | M20: 0
A21: 18 | B21: ='Shooter Information'!B23 -> 0 | C21: ='Shooter Information'!C23 -> 0 | K21: 0 | L21: =IF('Shooter Information'!$E$3-('Shooter Information'!$G$3-RANK(K21,K$4:K$78,1))<0,0,'Shooter Information'!$E$3-('Shooter Information'!$G$3-RANK(K21,K$4:K$78,1))) -> 0 | M21: 0
A22: 19 | B22: ='Shooter Information'!B24 -> 0 | C22: ='Shooter Information'!C24 -> 0 | K22: 0 | L22: =IF('Shooter Information'!$E$3-('Shooter Information'!$G$3-RANK(K22,K$4:K$78,1))<0,0,'Shooter Information'!$E$3-('Shooter Information'!$G$3-RANK(K22,K$4:K$78,1))) -> 0 | M22: 0
A23: 20 | B23: ='Shooter Information'!B25 -> 0 | C23: ='Shooter Information'!C25 -> 0 | K23: 0 | L23: =IF('Shooter Information'!$E$3-('Shooter Information'!$G$3-RANK(K23,K$4:K$78,1))<0,0,'Shooter Information'!$E$3-('Shooter Information'!$G$3-RANK(K23,K$4:K$78,1))) -> 0 | M23: 0
A24: 21 | B24: ='Shooter Information'!B26 -> 0 | C24: ='Shooter Information'!C26 -> 0 | K24: 0 | L24: =IF('Shooter Information'!$E$3-('Shooter Information'!$G$3-RANK(K24,K$4:K$78,1))<0,0,'Shooter Information'!$E$3-('Shooter Information'!$G$3-RANK(K24,K$4:K$78,1))) -> 0 | M24: 0
A25: 22 | B25: ='Shooter Information'!B27 -> 0 | C25: ='Shooter Information'!C27 -> 0 | K25: 0 | L25: =IF('Shooter Information'!$E$3-('Shooter Information'!$G$3-RANK(K25,K$4:K$78,1))<0,0,'Shooter Information'!$E$3-('Shooter Information'!$G$3-RANK(K25,K$4:K$78,1))) -> 0 | M25: 0
A26: 23 | B26: ='Shooter Information'!B28 -> 0 | C26: ='Shooter Information'!C28 -> 0 | K26: 0 | L26: =IF('Shooter Information'!$E$3-('Shooter Information'!$G$3-RANK(K26,K$4:K$78,1))<0,0,'Shooter Information'!$E$3-('Shooter Information'!$G$3-RANK(K26,K$4:K$78,1))) -> 0 | M26: 0
A27: 24 | B27: ='Shooter Information'!B29 -> 0 | C27: ='Shooter Information'!C29 -> 0 | K27: 0 | L27: =IF('Shooter Information'!$E$3-('Shooter Information'!$G$3-RANK(K27,K$4:K$78,1))<0,0,'Shooter Information'!$E$3-('Shooter Information'!$G$3-RANK(K27,K$4:K$78,1))) -> 0 | M27: 0
A28: 25 | B28: ='Shooter Information'!B30 -> 0 | C28: ='Shooter Information'!C30 -> 0 | K28: 0 | L28: =IF('Shooter Information'!$E$3-('Shooter Information'!$G$3-RANK(K28,K$4:K$78,1))<0,0,'Shooter Information'!$E$3-('Shooter Information'!$G$3-RANK(K28,K$4:K$78,1))) -> 0 | M28: 0
A29: 26 | B29: ='Shooter Information'!B31 -> 0 | C29: ='Shooter Information'!C31 -> 0 | K29: 0 | L29: =IF('Shooter Information'!$E$3-('Shooter Information'!$G$3-RANK(K29,K$4:K$78,1))<0,0,'Shooter Information'!$E$3-('Shooter Information'!$G$3-RANK(K29,K$4:K$78,1))) -> 0 | M29: 0
A30: 27 | B30: ='Shooter Information'!B32 -> 0 | C30: ='Shooter Information'!C32 -> 0 | K30: 0 | L30: =IF('Shooter Information'!$E$3-('Shooter Information'!$G$3-RANK(K30,K$4:K$78,1))<0,0,'Shooter Information'!$E$3-('Shooter Information'!$G$3-RANK(K30,K$4:K$78,1))) -> 0 | M30: 0
A31: 28 | B31: ='Shooter Information'!B33 -> 0 | C31: ='Shooter Information'!C33 -> 0 | K31: 0 | L31: =IF('Shooter Information'!$E$3-('Shooter Information'!$G$3-RANK(K31,K$4:K$78,1))<0,0,'Shooter Information'!$E$3-('Shooter Information'!$G$3-RANK(K31,K$4:K$78,1))) -> 0 | M31: 0
A32: 29 | B32: ='Shooter Information'!B34 -> 0 | C32: ='Shooter Information'!C34 -> 0 | K32: 0 | L32: =IF('Shooter Information'!$E$3-('Shooter Information'!$G$3-RANK(K32,K$4:K$78,1))<0,0,'Shooter Information'!$E$3-('Shooter Information'!$G$3-RANK(K32,K$4:K$78,1))) -> 0 | M32: 0
A33: 30 | B33: ='Shooter Information'!B35 -> 0 | C33: ='Shooter Information'!C35 -> 0 | K33: 0 | L33: =IF('Shooter Information'!$E$3-('Shooter Information'!$G$3-RANK(K33,K$4:K$78,1))<0,0,'Shooter Information'!$E$3-('Shooter Information'!$G$3-RANK(K33,K$4:K$78,1))) -> 0 | M33: 0
A34: 31 | B34: ='Shooter Information'!B36 -> 0 | C34: ='Shooter Information'!C36 -> 0 | K34: 0 | L34: =IF('Shooter Information'!$E$3-('Shooter Information'!$G$3-RANK(K34,K$4:K$78,1))<0,0,'Shooter Information'!$E$3-('Shooter Information'!$G$3-RANK(K34,K$4:K$78,1))) -> 0 | M34: 0
A35: 32 | B35: ='Shooter Information'!B37 -> 0 | C35: ='Shooter Information'!C37 -> 0 | K35: 0 | L35: =IF('Shooter Information'!$E$3-('Shooter Information'!$G$3-RANK(K35,K$4:K$78,1))<0,0,'Shooter Information'!$E$3-('Shooter Information'!$G$3-RANK(K35,K$4:K$78,1))) -> 0 | M35: 0
A36: 33 | B36: ='Shooter Information'!B38 -> 0 | C36: ='Shooter Information'!C38 -> 0 | K36: 0 | L36: =IF('Shooter Information'!$E$3-('Shooter Information'!$G$3-RANK(K36,K$4:K$78,1))<0,0,'Shooter Information'!$E$3-('Shooter Information'!$G$3-RANK(K36,K$4:K$78,1))) -> 0 | M36: 0
A37: 34 | B37: ='Shooter Information'!B39 -> 0 | C37: ='Shooter Information'!C39 -> 0 | K37: 0 | L37: =IF('Shooter Information'!$E$3-('Shooter Information'!$G$3-RANK(K37,K$4:K$78,1))<0,0,'Shooter Information'!$E$3-('Shooter Information'!$G$3-RANK(K37,K$4:K$78,1))) -> 0 | M37: 0
A38: 35 | B38: ='Shooter Information'!B40 -> 0 | C38: ='Shooter Information'!C40 -> 0 | K38: 0 | L38: =IF('Shooter Information'!$E$3-('Shooter Information'!$G$3-RANK(K38,K$4:K$78,1))<0,0,'Shooter Information'!$E$3-('Shooter Information'!$G$3-RANK(K38,K$4:K$78,1))) -> 0 | M38: 0
A39: 36 | B39: ='Shooter Information'!B41 -> 0 | C39: ='Shooter Information'!C41 -> 0 | K39: 0 | L39: =IF('Shooter Information'!$E$3-('Shooter Information'!$G$3-RANK(K39,K$4:K$78,1))<0,0,'Shooter Information'!$E$3-('Shooter Information'!$G$3-RANK(K39,K$4:K$78,1))) -> 0 | M39: 0
A40: 37 | B40: ='Shooter Information'!B42 -> 0 | C40: ='Shooter Information'!C42 -> 0 | K40: 0 | L40: =IF('Shooter Information'!$E$3-('Shooter Information'!$G$3-RANK(K40,K$4:K$78,1))<0,0,'Shooter Information'!$E$3-('Shooter Information'!$G$3-RANK(K40,K$4:K$78,1))) -> 0 | M40: 0
A41: 38 | B41: ='Shooter Information'!B43 -> 0 | C41: ='Shooter Information'!C43 -> 0 | K41: 0 | L41: =IF('Shooter Information'!$E$3-('Shooter Information'!$G$3-RANK(K41,K$4:K$78,1))<0,0,'Shooter Information'!$E$3-('Shooter Information'!$G$3-RANK(K41,K$4:K$78,1))) -> 0 | M41: 0
A42: 39 | B42: ='Shooter Information'!B44 -> 0 | C42: ='Shooter Information'!C44 -> 0 | K42: 0 | L42: =IF('Shooter Information'!$E$3-('Shooter Information'!$G$3-RANK(K42,K$4:K$78,1))<0,0,'Shooter Information'!$E$3-('Shooter Information'!$G$3-RANK(K42,K$4:K$78,1))) -> 0 | M42: 0
A43: 40 | B43: ='Shooter Information'!B45 -> 0 | C43: ='Shooter Information'!C45 -> 0 | K43: 0 | L43: =IF('Shooter Information'!$E$3-('Shooter Information'!$G$3-RANK(K43,K$4:K$78,1))<0,0,'Shooter Information'!$E$3-('Shooter Information'!$G$3-RANK(K43,K$4:K$78,1))) -> 0 | M43: 0
A44: 41 | B44: ='Shooter Information'!B46 -> 0 | C44: ='Shooter Information'!C46 -> 0 | K44: 0 | L44: =IF('Shooter Information'!$E$3-('Shooter Information'!$G$3-RANK(K44,K$4:K$78,1))<0,0,'Shooter Information'!$E$3-('Shooter Information'!$G$3-RANK(K44,K$4:K$78,1))) -> 0 | M44: 0
A45: 42 | B45: ='Shooter Information'!B47 -> 0 | C45: ='Shooter Information'!C47 -> 0 | K45: 0 | L45: =IF('Shooter Information'!$E$3-('Shooter Information'!$G$3-RANK(K45,K$4:K$78,1))<0,0,'Shooter Information'!$E$3-('Shooter Information'!$G$3-RANK(K45,K$4:K$78,1))) -> 0 | M45: 0
A46: 43 | B46: ='Shooter Information'!B48 -> 0 | C46: ='Shooter Information'!C48 -> 0 | K46: 0 | L46: =IF('Shooter Information'!$E$3-('Shooter Information'!$G$3-RANK(K46,K$4:K$78,1))<0,0,'Shooter Information'!$E$3-('Shooter Information'!$G$3-RANK(K46,K$4:K$78,1))) -> 0 | M46: 0
A47: 44 | B47: ='Shooter Information'!B49 -> 0 | C47: ='Shooter Information'!C49 -> 0 | K47: 0 | L47: =IF('Shooter Information'!$E$3-('Shooter Information'!$G$3-RANK(K47,K$4:K$78,1))<0,0,'Shooter Information'!$E$3-('Shooter Information'!$G$3-RANK(K47,K$4:K$78,1))) -> 0 | M47: 0
A48: 45 | B48: ='Shooter Information'!B50 -> 0 | C48: ='Shooter Information'!C50 -> 0 | K48: 0 | L48: =IF('Shooter Information'!$E$3-('Shooter Information'!$G$3-RANK(K48,K$4:K$78,1))<0,0,'Shooter Information'!$E$3-('Shooter Information'!$G$3-RANK(K48,K$4:K$78,1))) -> 0 | M48: 0
A49: 46 | B49: ='Shooter Information'!B51 -> 0 | C49: ='Shooter Information'!C51 -> 0 | K49: =(D49*5)+E49-F49+(G49*10)+(H49*30)+(I49*999)+(J49*999.99) -> 0 | L49: =IF('Shooter Information'!$E$3-('Shooter Information'!$G$3-RANK(K49,K$4:K$78,1))<0,0,'Shooter Information'!$E$3-('Shooter Information'!$G$3-RANK(K49,K$4:K$78,1))) -> 0 | M49: 0
A50: 47 | B50: ='Shooter Information'!B52 -> 0 | C50: ='Shooter Information'!C52 -> 0 | K50: 0 | L50: =IF('Shooter Information'!$E$3-('Shooter Information'!$G$3-RANK(K50,K$4:K$78,1))<0,0,'Shooter Information'!$E$3-('Shooter Information'!$G$3-RANK(K50,K$4:K$78,1))) -> 0 | M50: 0
A51: 48 | B51: ='Shooter Information'!B53 -> 0 | C51: ='Shooter Information'!C53 -> 0 | K51: 0 | L51: =IF('Shooter Information'!$E$3-('Shooter Information'!$G$3-RANK(K51,K$4:K$78,1))<0,0,'Shooter Information'!$E$3-('Shooter Information'!$G$3-RANK(K51,K$4:K$78,1))) -> 0 | M51: 0
A52: 49 | B52: ='Shooter Information'!B54 -> 0 | C52: ='Shooter Information'!C54 -> 0 | K52: 0 | L52: =IF('Shooter Information'!$E$3-('Shooter Information'!$G$3-RANK(K52,K$4:K$78,1))<0,0,'Shooter Information'!$E$3-('Shooter Information'!$G$3-RANK(K52,K$4:K$78,1))) -> 0 | M52: 0
A53: 50 | B53: ='Shooter Information'!B55 -> 0 | C53: ='Shooter Information'!C55 -> 0 | K53: 0 | L53: =IF('Shooter Information'!$E$3-('Shooter Information'!$G$3-RANK(K53,K$4:K$78,1))<0,0,'Shooter Information'!$E$3-('Shooter Information'!$G$3-RANK(K53,K$4:K$78,1))) -> 0 | M53: 0
A54: 51 | B54: ='Shooter Information'!B56 -> 0 | C54: ='Shooter Information'!C56 -> 0 | K54: 0 | L54: =IF('Shooter Information'!$E$3-('Shooter Information'!$G$3-RANK(K54,K$4:K$78,1))<0,0,'Shooter Information'!$E$3-('Shooter Information'!$G$3-RANK(K54,K$4:K$78,1))) -> 0 | M54: 0
A55: 52 | B55: ='Shooter Information'!B57 -> 0 | C55: ='Shooter Information'!C57 -> 0 | K55: 0 | L55: =IF('Shooter Information'!$E$3-('Shooter Information'!$G$3-RANK(K55,K$4:K$78,1))<0,0,'Shooter Information'!$E$3-('Shooter Information'!$G$3-RANK(K55,K$4:K$78,1))) -> 0 | M55: 0
A56: 53 | B56: ='Shooter Information'!B58 -> 0 | C56: ='Shooter Information'!C58 -> 0 | K56: 0 | L56: =IF('Shooter Information'!$E$3-('Shooter Information'!$G$3-RANK(K56,K$4:K$78,1))<0,0,'Shooter Information'!$E$3-('Shooter Information'!$G$3-RANK(K56,K$4:K$78,1))) -> 0 | M56: 0
A57: 54 | B57: ='Shooter Information'!B59 -> 0 | C57: ='Shooter Information'!C59 -> 0 | K57: 0 | L57: =IF('Shooter Information'!$E$3-('Shooter Information'!$G$3-RANK(K57,K$4:K$78,1))<0,0,'Shooter Information'!$E$3-('Shooter Information'!$G$3-RANK(K57,K$4:K$78,1))) -> 0 | M57: 0
A58: 55 | B58: ='Shooter Information'!B60 -> 0 | C58: ='Shooter Information'!C60 -> 0 | K58: 0 | L58: =IF('Shooter Information'!$E$3-('Shooter Information'!$G$3-RANK(K58,K$4:K$78,1))<0,0,'Shooter Information'!$E$3-('Shooter Information'!$G$3-RANK(K58,K$4:K$78,1))) -> 0 | M58: 0
A59: 56 | B59: ='Shooter Information'!B61 -> 0 | C59: ='Shooter Information'!C61 -> 0 | K59: 0 | L59: =IF('Shooter Information'!$E$3-('Shooter Information'!$G$3-RANK(K59,K$4:K$78,1))<0,0,'Shooter Information'!$E$3-('Shooter Information'!$G$3-RANK(K59,K$4:K$78,1))) -> 0 | M59: 0
A60: 57 | B60: ='Shooter Information'!B62 -> 0 | C60: ='Shooter Information'!C62 -> 0 | K60: 0 | L60: =IF('Shooter Information'!$E$3-('Shooter Information'!$G$3-RANK(K60,K$4:K$78,1))<0,0,'Shooter Information'!$E$3-('Shooter Information'!$G$3-RANK(K60,K$4:K$78,1))) -> 0 | M60: 0
A61: 58 | B61: ='Shooter Information'!B63 -> 0 | C61: ='Shooter Information'!C63 -> 0 | K61: 0 | L61: =IF('Shooter Information'!$E$3-('Shooter Information'!$G$3-RANK(K61,K$4:K$78,1))<0,0,'Shooter Information'!$E$3-('Shooter Information'!$G$3-RANK(K61,K$4:K$78,1))) -> 0 | M61: 0
A62: 59 | B62: ='Shooter Information'!B64 -> 0 | C62: ='Shooter Information'!C64 -> 0 | K62: 0 | L62: =IF('Shooter Information'!$E$3-('Shooter Information'!$G$3-RANK(K62,K$4:K$78,1))<0,0,'Shooter Information'!$E$3-('Shooter Information'!$G$3-RANK(K62,K$4:K$78,1))) -> 0 | M62: 0
A63: 60 | B63: ='Shooter Information'!B65 -> 0 | C63: ='Shooter Information'!C65 -> 0 | K63: 0 | L63: =IF('Shooter Information'!$E$3-('Shooter Information'!$G$3-RANK(K63,K$4:K$78,1))<0,0,'Shooter Information'!$E$3-('Shooter Information'!$G$3-RANK(K63,K$4:K$78,1))) -> 0 | M63: 0
A64: 61 | B64: ='Shooter Information'!B66 -> 0 | C64: ='Shooter Information'!C66 -> 0 | K64: =(D64*5)+E64-F64+(G64*10)+(H64*30)+(I64*999)+(J64*999.99) -> 0 | L64: =IF('Shooter Information'!$E$3-('Shooter Information'!$G$3-RANK(K64,K$4:K$78,1))<0,0,'Shooter Information'!$E$3-('Shooter Information'!$G$3-RANK(K64,K$4:K$78,1))) -> 0 | M64: =(SUM(D64+G64+H64+I64+J64)) -> 0
A65: 62 | B65: ='Shooter Information'!B67 -> 0 | C65: ='Shooter Information'!C67 -> 0 | K65: 0 | L65: =IF('Shooter Information'!$E$3-('Shooter Information'!$G$3-RANK(K65,K$4:K$78,1))<0,0,'Shooter Information'!$E$3-('Shooter Information'!$G$3-RANK(K65,K$4:K$78,1))) -> 0 | M65: 0
A66: 63 | B66: ='Shooter Information'!B68 -> 0 | C66: ='Shooter Information'!C68 -> 0 | K66: 0 | L66: =IF('Shooter Information'!$E$3-('Shooter Information'!$G$3-RANK(K66,K$4:K$78,1))<0,0,'Shooter Information'!$E$3-('Shooter Information'!$G$3-RANK(K66,K$4:K$78,1))) -> 0 | M66: 0
A67: 64 | B67: ='Shooter Information'!B69 -> 0 | C67: ='Shooter Information'!C69 -> 0 | K67: 0 | L67: =IF('Shooter Information'!$E$3-('Shooter Information'!$G$3-RANK(K67,K$4:K$78,1))<0,0,'Shooter Information'!$E$3-('Shooter Information'!$G$3-RANK(K67,K$4:K$78,1))) -> 0 | M67: 0
A68: 65 | B68: ='Shooter Information'!B70 -> 0 | C68: ='Shooter Information'!C70 -> 0 | K68: 0 | L68: =IF('Shooter Information'!$E$3-('Shooter Information'!$G$3-RANK(K68,K$4:K$78,1))<0,0,'Shooter Information'!$E$3-('Shooter Information'!$G$3-RANK(K68,K$4:K$78,1))) -> 0 | M68: 0
A69: 66 | B69: ='Shooter Information'!B71 -> 0 | C69: ='Shooter Information'!C71 -> 0 | K69: 0 | L69: =IF('Shooter Information'!$E$3-('Shooter Information'!$G$3-RANK(K69,K$4:K$78,1))<0,0,'Shooter Information'!$E$3-('Shooter Information'!$G$3-RANK(K69,K$4:K$78,1))) -> 0 | M69: 0
A70: 67 | B70: ='Shooter Information'!B72 -> 0 | C70: ='Shooter Information'!C72 -> 0 | K70: 0 | L70: =IF('Shooter Information'!$E$3-('Shooter Information'!$G$3-RANK(K70,K$4:K$78,1))<0,0,'Shooter Information'!$E$3-('Shooter Information'!$G$3-RANK(K70,K$4:K$78,1))) -> 0 | M70: 0
A71: 68 | B71: ='Shooter Information'!B73 -> 0 | C71: ='Shooter Information'!C73 -> 0 | K71: 0 | L71: =IF('Shooter Information'!$E$3-('Shooter Information'!$G$3-RANK(K71,K$4:K$78,1))<0,0,'Shooter Information'!$E$3-('Shooter Information'!$G$3-RANK(K71,K$4:K$78,1))) -> 0 | M71: 0
A72: 69 | B72: ='Shooter Information'!B74 -> 0 | C72: ='Shooter Information'!C74 -> 0 | K72: 0 | L72: =IF('Shooter Information'!$E$3-('Shooter Information'!$G$3-RANK(K72,K$4:K$78,1))<0,0,'Shooter Information'!$E$3-('Shooter Information'!$G$3-RANK(K72,K$4:K$78,1))) -> 0 | M72: 0
A73: 70 | B73: ='Shooter Information'!B75 -> 0 | C73: ='Shooter Information'!C75 -> 0 | K73: 0 | L73: =IF('Shooter Information'!$E$3-('Shooter Information'!$G$3-RANK(K73,K$4:K$78,1))<0,0,'Shooter Information'!$E$3-('Shooter Information'!$G$3-RANK(K73,K$4:K$78,1))) -> 0 | M73: 0
A74: 71 | B74: ='Shooter Information'!B76 -> 0 | C74: ='Shooter Information'!C76 -> 0 | K74: 0 | L74: =IF('Shooter Information'!$E$3-('Shooter Information'!$G$3-RANK(K74,K$4:K$78,1))<0,0,'Shooter Information'!$E$3-('Shooter Information'!$G$3-RANK(K74,K$4:K$78,1))) -> 0 | M74: 0
A75: 72 | B75: ='Shooter Information'!B77 -> 0 | C75: ='Shooter Information'!C77 -> 0 | K75: 0 | L75: =IF('Shooter Information'!$E$3-('Shooter Information'!$G$3-RANK(K75,K$4:K$78,1))<0,0,'Shooter Information'!$E$3-('Shooter Information'!$G$3-RANK(K75,K$4:K$78,1))) -> 0 | M75: 0
A76: 73 | B76: ='Shooter Information'!B78 -> 0 | C76: ='Shooter Information'!C78 -> 0 | K76: 0 | L76: =IF('Shooter Information'!$E$3-('Shooter Information'!$G$3-RANK(K76,K$4:K$78,1))<0,0,'Shooter Information'!$E$3-('Shooter Information'!$G$3-RANK(K76,K$4:K$78,1))) -> 0 | M76: 0
A77: 74 | B77: ='Shooter Information'!B79 -> 0 | C77: ='Shooter Information'!C79 -> 0 | K77: 0 | L77: =IF('Shooter Information'!$E$3-('Shooter Information'!$G$3-RANK(K77,K$4:K$78,1))<0,0,'Shooter Information'!$E$3-('Shooter Information'!$G$3-RANK(K77,K$4:K$78,1))) -> 0 | M77: 0
A78: 75 | B78: ='Shooter Information'!B80 -> 0 | C78: ='Shooter Information'!C80 -> 0 | K78: 0 | L78: =IF('Shooter Information'!$E$3-('Shooter Information'!$G$3-RANK(K78,K$4:K$78,1))<0,0,'Shooter Information'!$E$3-('Shooter Information'!$G$3-RANK(K78,K$4:K$78,1))) -> 0 | M78: 0

Sheet Stage 5
B1: CAS SCORE SHEET | D1: Date: | E1: ='Shooter Information'!$E$2 -> Wednesday April 9th, 2014
B2: Stage 5
A3: Roster # | B3: Shooter | C3: Class | D3: Misses | E3: Raw Time | F3: Bonus | G3: 10 Sec | H3: 30 Sec | I3: DNF | J3: DQ | K3: Total | L3: Rank | M3: Penalties
A4: =ROW()-3 -> 1 | B4: ='Shooter Information'!B6 -> Striker | C4: ='Shooter Information'!C6 -> 0 | I4: 1 | K4: =(D4*5)+E4-F4+(G4*10)+(H4*30)+(I4*999)+(J4*999.99) -> 999 | L4: =IF('Shooter Information'!$E$3-('Shooter Information'!$G$3-RANK(K4,K$4:K$78,1))<0,0,'Shooter Information'!$E$3-('Shooter Information'!$G$3-RANK(K4,K$4:K$78,1))) -> 4 | M4: =(SUM(D4+G4+H4+I4+J4)) -> 1
A5: =ROW()-3 -> 2 | B5: ='Shooter Information'!B7 -> Doc Deadwood | C5: ='Shooter Information'!C7 -> 0 | D5: 1 | E5: 55.11 | K5: =(D5*5)+E5-F5+(G5*10)+(H5*30)+(I5*999)+(J5*999.99) -> 60.11 | L5: =IF('Shooter Information'!$E$3-('Shooter Information'!$G$3-RANK(K5,K$4:K$78,1))<0,0,'Shooter Information'!$E$3-('Shooter Information'!$G$3-RANK(K5,K$4:K$78,1))) -> 3 | M5: =(SUM(D5+G5+H5+I5+J5)) -> 1
A6: 3 | B6: ='Shooter Information'!B8 -> Cold Blue Mike | C6: ='Shooter Information'!C8 -> 0 | D6: 1 | E6: 30.9 | K6: 35.9 | L6: =IF('Shooter Information'!$E$3-('Shooter Information'!$G$3-RANK(K6,K$4:K$78,1))<0,0,'Shooter Information'!$E$3-('Shooter Information'!$G$3-RANK(K6,K$4:K$78,1))) -> 1 | M6: 1
A7: 4 | B7: ='Shooter Information'!B9 -> B.S. Walker | C7: ='Shooter Information'!C9 -> 0 | D7: 1 | E7: 33.89 | K7: 38.89 | L7: =IF('Shooter Information'!$E$3-('Shooter Information'!$G$3-RANK(K7,K$4:K$78,1))<0,0,'Shooter Information'!$E$3-('Shooter Information'!$G$3-RANK(K7,K$4:K$78,1))) -> 2 | M7: 1
A8: 5 | B8: ='Shooter Information'!B10 -> 0 | C8: ='Shooter Information'!C10 -> 0 | K8: 0 | L8: =IF('Shooter Information'!$E$3-('Shooter Information'!$G$3-RANK(K8,K$4:K$78,1))<0,0,'Shooter Information'!$E$3-('Shooter Information'!$G$3-RANK(K8,K$4:K$78,1))) -> 0 | M8: 0
A9: 6 | B9: ='Shooter Information'!B11 -> 0 | C9: ='Shooter Information'!C11 -> 0 | K9: 0 | L9: =IF('Shooter Information'!$E$3-('Shooter Information'!$G$3-RANK(K9,K$4:K$78,1))<0,0,'Shooter Information'!$E$3-('Shooter Information'!$G$3-RANK(K9,K$4:K$78,1))) -> 0 | M9: 0
A10: 7 | B10: ='Shooter Information'!B12 -> 0 | C10: ='Shooter Information'!C12 -> 0 | K10: 0 | L10: =IF('Shooter Information'!$E$3-('Shooter Information'!$G$3-RANK(K10,K$4:K$78,1))<0,0,'Shooter Information'!$E$3-('Shooter Information'!$G$3-RANK(K10,K$4:K$78,1))) -> 0 | M10: 0
A11: 8 | B11: ='Shooter Information'!B13 -> 0 | C11: ='Shooter Information'!C13 -> 0 | K11: 0 | L11: =IF('Shooter Information'!$E$3-('Shooter Information'!$G$3-RANK(K11,K$4:K$78,1))<0,0,'Shooter Information'!$E$3-('Shooter Information'!$G$3-RANK(K11,K$4:K$78,1))) -> 0 | M11: 0
A12: 9 | B12: ='Shooter Information'!B14 -> 0 | C12: ='Shooter Information'!C14 -> 0 | K12: 0 | L12: =IF('Shooter Information'!$E$3-('Shooter Information'!$G$3-RANK(K12,K$4:K$78,1))<0,0,'Shooter Information'!$E$3-('Shooter Information'!$G$3-RANK(K12,K$4:K$78,1))) -> 0 | M12: 0
A13: 10 | B13: ='Shooter Information'!B15 -> 0 | C13: ='Shooter Information'!C15 -> 0 | K13: 0 | L13: =IF('Shooter Information'!$E$3-('Shooter Information'!$G$3-RANK(K13,K$4:K$78,1))<0,0,'Shooter Information'!$E$3-('Shooter Information'!$G$3-RANK(K13,K$4:K$78,1))) -> 0 | M13: 0
A14: 11 | B14: ='Shooter Information'!B16 -> 0 | C14: ='Shooter Information'!C16 -> 0 | K14: 0 | L14: =IF('Shooter Information'!$E$3-('Shooter Information'!$G$3-RANK(K14,K$4:K$78,1))<0,0,'Shooter Information'!$E$3-('Shooter Information'!$G$3-RANK(K14,K$4:K$78,1))) -> 0 | M14: 0
A15: 12 | B15: ='Shooter Information'!B17 -> 0 | C15: ='Shooter Information'!C17 -> 0 | K15: 0 | L15: =IF('Shooter Information'!$E$3-('Shooter Information'!$G$3-RANK(K15,K$4:K$78,1))<0,0,'Shooter Information'!$E$3-('Shooter Information'!$G$3-RANK(K15,K$4:K$78,1))) -> 0 | M15: 0
A16: 13 | B16: ='Shooter Information'!B18 -> 0 | C16: ='Shooter Information'!C18 -> 0 | K16: 0 | L16: =IF('Shooter Information'!$E$3-('Shooter Information'!$G$3-RANK(K16,K$4:K$78,1))<0,0,'Shooter Information'!$E$3-('Shooter Information'!$G$3-RANK(K16,K$4:K$78,1))) -> 0 | M16: 0
A17: 14 | B17: ='Shooter Information'!B19 -> 0 | C17: ='Shooter Information'!C19 -> 0 | K17: 0 | L17: =IF('Shooter Information'!$E$3-('Shooter Information'!$G$3-RANK(K17,K$4:K$78,1))<0,0,'Shooter Information'!$E$3-('Shooter Information'!$G$3-RANK(K17,K$4:K$78,1))) -> 0 | M17: 0
A18: 15 | B18: ='Shooter Information'!B20 -> 0 | C18: ='Shooter Information'!C20 -> 0 | K18: 0 | L18: =IF('Shooter Information'!$E$3-('Shooter Information'!$G$3-RANK(K18,K$4:K$78,1))<0,0,'Shooter Information'!$E$3-('Shooter Information'!$G$3-RANK(K18,K$4:K$78,1))) -> 0 | M18: 0
A19: 16 | B19: ='Shooter Information'!B21 -> 0 | C19: ='Shooter Information'!C21 -> 0 | K19: 0 | L19: =IF('Shooter Information'!$E$3-('Shooter Information'!$G$3-RANK(K19,K$4:K$78,1))<0,0,'Shooter Information'!$E$3-('Shooter Information'!$G$3-RANK(K19,K$4:K$78,1))) -> 0 | M19: 0
A20: 17 | B20: ='Shooter Information'!B22 -> 0 | C20: ='Shooter Information'!C22 -> 0 | K20: 0 | L20: =IF('Shooter Information'!$E$3-('Shooter Information'!$G$3-RANK(K20,K$4:K$78,1))<0,0,'Shooter Information'!$E$3-('Shooter Information'!$G$3-RANK(K20,K$4:K$78,1))) -> 0 | M20: 0
A21: 18 | B21: ='Shooter Information'!B23 -> 0 | C21: ='Shooter Information'!C23 -> 0 | K21: 0 | L21: =IF('Shooter Information'!$E$3-('Shooter Information'!$G$3-RANK(K21,K$4:K$78,1))<0,0,'Shooter Information'!$E$3-('Shooter Information'!$G$3-RANK(K21,K$4:K$78,1))) -> 0 | M21: 0
A22: 19 | B22: ='Shooter Information'!B24 -> 0 | C22: ='Shooter Information'!C24 -> 0 | K22: 0 | L22: =IF('Shooter Information'!$E$3-('Shooter Information'!$G$3-RANK(K22,K$4:K$78,1))<0,0,'Shooter Information'!$E$3-('Shooter Information'!$G$3-RANK(K22,K$4:K$78,1))) -> 0 | M22: 0
A23: 20 | B23: ='Shooter Information'!B25 -> 0 | C23: ='Shooter Information'!C25 -> 0 | K23: 0 | L23: =IF('Shooter Information'!$E$3-('Shooter Information'!$G$3-RANK(K23,K$4:K$78,1))<0,0,'Shooter Information'!$E$3-('Shooter Information'!$G$3-RANK(K23,K$4:K$78,1))) -> 0 | M23: 0
A24: 21 | B24: ='Shooter Information'!B26 -> 0 | C24: ='Shooter Information'!C26 -> 0 | K24: 0 | L24: =IF('Shooter Information'!$E$3-('Shooter Information'!$G$3-RANK(K24,K$4:K$78,1))<0,0,'Shooter Information'!$E$3-('Shooter Information'!$G$3-RANK(K24,K$4:K$78,1))) -> 0 | M24: 0
A25: 22 | B25: ='Shooter Information'!B27 -> 0 | C25: ='Shooter Information'!C27 -> 0 | K25: 0 | L25: =IF('Shooter Information'!$E$3-('Shooter Information'!$G$3-RANK(K25,K$4:K$78,1))<0,0,'Shooter Information'!$E$3-('Shooter Information'!$G$3-RANK(K25,K$4:K$78,1))) -> 0 | M25: 0
A26: 23 | B26: ='Shooter Information'!B28 -> 0 | C26: ='Shooter Information'!C28 -> 0 | K26: 0 | L26: =IF('Shooter Information'!$E$3-('Shooter Information'!$G$3-RANK(K26,K$4:K$78,1))<0,0,'Shooter Information'!$E$3-('Shooter Information'!$G$3-RANK(K26,K$4:K$78,1))) -> 0 | M26: 0
A27: 24 | B27: ='Shooter Information'!B29 -> 0 | C27: ='Shooter Information'!C29 -> 0 | K27: 0 | L27: =IF('Shooter Information'!$E$3-('Shooter Information'!$G$3-RANK(K27,K$4:K$78,1))<0,0,'Shooter Information'!$E$3-('Shooter Information'!$G$3-RANK(K27,K$4:K$78,1))) -> 0 | M27: 0
A28: 25 | B28: ='Shooter Information'!B30 -> 0 | C28: ='Shooter Information'!C30 -> 0 | K28: 0 | L28: =IF('Shooter Information'!$E$3-('Shooter Information'!$G$3-RANK(K28,K$4:K$78,1))<0,0,'Shooter Information'!$E$3-('Shooter Information'!$G$3-RANK(K28,K$4:K$78,1))) -> 0 | M28: 0
A29: 26 | B29: ='Shooter Information'!B31 -> 0 | C29: ='Shooter Information'!C31 -> 0 | K29: 0 | L29: =IF('Shooter Information'!$E$3-('Shooter Information'!$G$3-RANK(K29,K$4:K$78,1))<0,0,'Shooter Information'!$E$3-('Shooter Information'!$G$3-RANK(K29,K$4:K$78,1))) -> 0 | M29: 0
A30: 27 | B30: ='Shooter Information'!B32 -> 0 | C30: ='Shooter Information'!C32 -> 0 | K30: 0 | L30: =IF('Shooter Information'!$E$3-('Shooter Information'!$G$3-RANK(K30,K$4:K$78,1))<0,0,'Shooter Information'!$E$3-('Shooter Information'!$G$3-RANK(K30,K$4:K$78,1))) -> 0 | M30: 0
A31: 28 | B31: ='Shooter Information'!B33 -> 0 | C31: ='Shooter Information'!C33 -> 0 | K31: 0 | L31: =IF('Shooter Information'!$E$3-('Shooter Information'!$G$3-RANK(K31,K$4:K$78,1))<0,0,'Shooter Information'!$E$3-('Shooter Information'!$G$3-RANK(K31,K$4:K$78,1))) -> 0 | M31: 0
A32: 29 | B32: ='Shooter Information'!B34 -> 0 | C32: ='Shooter Information'!C34 -> 0 | K32: 0 | L32: =IF('Shooter Information'!$E$3-('Shooter Information'!$G$3-RANK(K32,K$4:K$78,1))<0,0,'Shooter Information'!$E$3-('Shooter Information'!$G$3-RANK(K32,K$4:K$78,1))) -> 0 | M32: 0
A33: 30 | B33: ='Shooter Information'!B35 -> 0 | C33: ='Shooter Information'!C35 -> 0 | K33: 0 | L33: =IF('Shooter Information'!$E$3-('Shooter Information'!$G$3-RANK(K33,K$4:K$78,1))<0,0,'Shooter Information'!$E$3-('Shooter Information'!$G$3-RANK(K33,K$4:K$78,1))) -> 0 | M33: 0
A34: 31 | B34: ='Shooter Information'!B36 -> 0 | C34: ='Shooter Information'!C36 -> 0 | K34: 0 | L34: =IF('Shooter Information'!$E$3-('Shooter Information'!$G$3-RANK(K34,K$4:K$78,1))<0,0,'Shooter Information'!$E$3-('Shooter Information'!$G$3-RANK(K34,K$4:K$78,1))) -> 0 | M34: 0
A35: 32 | B35: ='Shooter Information'!B37 -> 0 | C35: ='Shooter Information'!C37 -> 0 | K35: 0 | L35: =IF('Shooter Information'!$E$3-('Shooter Information'!$G$3-RANK(K35,K$4:K$78,1))<0,0,'Shooter Information'!$E$3-('Shooter Information'!$G$3-RANK(K35,K$4:K$78,1))) -> 0 | M35: 0
A36: 33 | B36: ='Shooter Information'!B38 -> 0 | C36: ='Shooter Information'!C38 -> 0 | K36: 0 | L36: =IF('Shooter Information'!$E$3-('Shooter Information'!$G$3-RANK(K36,K$4:K$78,1))<0,0,'Shooter Information'!$E$3-('Shooter Information'!$G$3-RANK(K36,K$4:K$78,1))) -> 0 | M36: 0
A37: 34 | B37: ='Shooter Information'!B39 -> 0 | C37: ='Shooter Information'!C39 -> 0 | K37: 0 | L37: =IF('Shooter Information'!$E$3-('Shooter Information'!$G$3-RANK(K37,K$4:K$78,1))<0,0,'Shooter Information'!$E$3-('Shooter Information'!$G$3-RANK(K37,K$4:K$78,1))) -> 0 | M37: 0
A38: 35 | B38: ='Shooter Information'!B40 -> 0 | C38: ='Shooter Information'!C40 -> 0 | K38: 0 | L38: =IF('Shooter Information'!$E$3-('Shooter Information'!$G$3-RANK(K38,K$4:K$78,1))<0,0,'Shooter Information'!$E$3-('Shooter Information'!$G$3-RANK(K38,K$4:K$78,1))) -> 0 | M38: 0
A39: 36 | B39: ='Shooter Information'!B41 -> 0 | C39: ='Shooter Information'!C41 -> 0 | K39: 0 | L39: =IF('Shooter Information'!$E$3-('Shooter Information'!$G$3-RANK(K39,K$4:K$78,1))<0,0,'Shooter Information'!$E$3-('Shooter Information'!$G$3-RANK(K39,K$4:K$78,1))) -> 0 | M39: 0
A40: 37 | B40: ='Shooter Information'!B42 -> 0 | C40: ='Shooter Information'!C42 -> 0 | K40: 0 | L40: =IF('Shooter Information'!$E$3-('Shooter Information'!$G$3-RANK(K40,K$4:K$78,1))<0,0,'Shooter Information'!$E$3-('Shooter Information'!$G$3-RANK(K40,K$4:K$78,1))) -> 0 | M40: 0
A41: 38 | B41: ='Shooter Information'!B43 -> 0 | C41: ='Shooter Information'!C43 -> 0 | K41: 0 | L41: =IF('Shooter Information'!$E$3-('Shooter Information'!$G$3-RANK(K41,K$4:K$78,1))<0,0,'Shooter Information'!$E$3-('Shooter Information'!$G$3-RANK(K41,K$4:K$78,1))) -> 0 | M41: 0
A42: 39 | B42: ='Shooter Information'!B44 -> 0 | C42: ='Shooter Information'!C44 -> 0 | K42: 0 | L42: =IF('Shooter Information'!$E$3-('Shooter Information'!$G$3-RANK(K42,K$4:K$78,1))<0,0,'Shooter Information'!$E$3-('Shooter Information'!$G$3-RANK(K42,K$4:K$78,1))) -> 0 | M42: 0
A43: 40 | B43: ='Shooter Information'!B45 -> 0 | C43: ='Shooter Information'!C45 -> 0 | K43: 0 | L43: =IF('Shooter Information'!$E$3-('Shooter Information'!$G$3-RANK(K43,K$4:K$78,1))<0,0,'Shooter Information'!$E$3-('Shooter Information'!$G$3-RANK(K43,K$4:K$78,1))) -> 0 | M43: 0
A44: 41 | B44: ='Shooter Information'!B46 -> 0 | C44: ='Shooter Information'!C46 -> 0 | K44: 0 | L44: =IF('Shooter Information'!$E$3-('Shooter Information'!$G$3-RANK(K44,K$4:K$78,1))<0,0,'Shooter Information'!$E$3-('Shooter Information'!$G$3-RANK(K44,K$4:K$78,1))) -> 0 | M44: 0
A45: 42 | B45: ='Shooter Information'!B47 -> 0 | C45: ='Shooter Information'!C47 -> 0 | K45: 0 | L45: =IF('Shooter Information'!$E$3-('Shooter Information'!$G$3-RANK(K45,K$4:K$78,1))<0,0,'Shooter Information'!$E$3-('Shooter Information'!$G$3-RANK(K45,K$4:K$78,1))) -> 0 | M45: 0
A46: 43 | B46: ='Shooter Information'!B48 -> 0 | C46: ='Shooter Information'!C48 -> 0 | K46: 0 | L46: =IF('Shooter Information'!$E$3-('Shooter Information'!$G$3-RANK(K46,K$4:K$78,1))<0,0,'Shooter Information'!$E$3-('Shooter Information'!$G$3-RANK(K46,K$4:K$78,1))) -> 0 | M46: 0
A47: 44 | B47: ='Shooter Information'!B49 -> 0 | C47: ='Shooter Information'!C49 -> 0 | K47: 0 | L47: =IF('Shooter Information'!$E$3-('Shooter Information'!$G$3-RANK(K47,K$4:K$78,1))<0,0,'Shooter Information'!$E$3-('Shooter Information'!$G$3-RANK(K47,K$4:K$78,1))) -> 0 | M47: 0
A48: 45 | B48: ='Shooter Information'!B50 -> 0 | C48: ='Shooter Information'!C50 -> 0 | K48: 0 | L48: =IF('Shooter Information'!$E$3-('Shooter Information'!$G$3-RANK(K48,K$4:K$78,1))<0,0,'Shooter Information'!$E$3-('Shooter Information'!$G$3-RANK(K48,K$4:K$78,1))) -> 0 | M48: 0
A49: 46 | B49: ='Shooter Information'!B51 -> 0 | C49: ='Shooter Information'!C51 -> 0 | K49: =(D49*5)+E49-F49+(G49*10)+(H49*30)+(I49*999)+(J49*999.99) -> 0 | L49: =IF('Shooter Information'!$E$3-('Shooter Information'!$G$3-RANK(K49,K$4:K$78,1))<0,0,'Shooter Information'!$E$3-('Shooter Information'!$G$3-RANK(K49,K$4:K$78,1))) -> 0 | M49: 0
A50: 47 | B50: ='Shooter Information'!B52 -> 0 | C50: ='Shooter Information'!C52 -> 0 | K50: 0 | L50: =IF('Shooter Information'!$E$3-('Shooter Information'!$G$3-RANK(K50,K$4:K$78,1))<0,0,'Shooter Information'!$E$3-('Shooter Information'!$G$3-RANK(K50,K$4:K$78,1))) -> 0 | M50: 0
A51: 48 | B51: ='Shooter Information'!B53 -> 0 | C51: ='Shooter Information'!C53 -> 0 | K51: 0 | L51: =IF('Shooter Information'!$E$3-('Shooter Information'!$G$3-RANK(K51,K$4:K$78,1))<0,0,'Shooter Information'!$E$3-('Shooter Information'!$G$3-RANK(K51,K$4:K$78,1))) -> 0 | M51: 0
A52: 49 | B52: ='Shooter Information'!B54 -> 0 | C52: ='Shooter Information'!C54 -> 0 | K52: 0 | L52: =IF('Shooter Information'!$E$3-('Shooter Information'!$G$3-RANK(K52,K$4:K$78,1))<0,0,'Shooter Information'!$E$3-('Shooter Information'!$G$3-RANK(K52,K$4:K$78,1))) -> 0 | M52: 0
A53: 50 | B53: ='Shooter Information'!B55 -> 0 | C53: ='Shooter Information'!C55 -> 0 | K53: 0 | L53: =IF('Shooter Information'!$E$3-('Shooter Information'!$G$3-RANK(K53,K$4:K$78,1))<0,0,'Shooter Information'!$E$3-('Shooter Information'!$G$3-RANK(K53,K$4:K$78,1))) -> 0 | M53: 0
A54: 51 | B54: ='Shooter Information'!B56 -> 0 | C54: ='Shooter Information'!C56 -> 0 | K54: 0 | L54: =IF('Shooter Information'!$E$3-('Shooter Information'!$G$3-RANK(K54,K$4:K$78,1))<0,0,'Shooter Information'!$E$3-('Shooter Information'!$G$3-RANK(K54,K$4:K$78,1))) -> 0 | M54: 0
A55: 52 | B55: ='Shooter Information'!B57 -> 0 | C55: ='Shooter Information'!C57 -> 0 | K55: 0 | L55: =IF('Shooter Information'!$E$3-('Shooter Information'!$G$3-RANK(K55,K$4:K$78,1))<0,0,'Shooter Information'!$E$3-('Shooter Information'!$G$3-RANK(K55,K$4:K$78,1))) -> 0 | M55: 0
A56: 53 | B56: ='Shooter Information'!B58 -> 0 | C56: ='Shooter Information'!C58 -> 0 | K56: 0 | L56: =IF('Shooter Information'!$E$3-('Shooter Information'!$G$3-RANK(K56,K$4:K$78,1))<0,0,'Shooter Information'!$E$3-('Shooter Information'!$G$3-RANK(K56,K$4:K$78,1))) -> 0 | M56: 0
A57: 54 | B57: ='Shooter Information'!B59 -> 0 | C57: ='Shooter Information'!C59 -> 0 | K57: 0 | L57: =IF('Shooter Information'!$E$3-('Shooter Information'!$G$3-RANK(K57,K$4:K$78,1))<0,0,'Shooter Information'!$E$3-('Shooter Information'!$G$3-RANK(K57,K$4:K$78,1))) -> 0 | M57: 0
A58: 55 | B58: ='Shooter Information'!B60 -> 0 | C58: ='Shooter Information'!C60 -> 0 | K58: 0 | L58: =IF('Shooter Information'!$E$3-('Shooter Information'!$G$3-RANK(K58,K$4:K$78,1))<0,0,'Shooter Information'!$E$3-('Shooter Information'!$G$3-RANK(K58,K$4:K$78,1))) -> 0 | M58: 0
A59: 56 | B59: ='Shooter Information'!B61 -> 0 | C59: ='Shooter Information'!C61 -> 0 | K59: 0 | L59: =IF('Shooter Information'!$E$3-('Shooter Information'!$G$3-RANK(K59,K$4:K$78,1))<0,0,'Shooter Information'!$E$3-('Shooter Information'!$G$3-RANK(K59,K$4:K$78,1))) -> 0 | M59: 0
A60: 57 | B60: ='Shooter Information'!B62 -> 0 | C60: ='Shooter Information'!C62 -> 0 | K60: 0 | L60: =IF('Shooter Information'!$E$3-('Shooter Information'!$G$3-RANK(K60,K$4:K$78,1))<0,0,'Shooter Information'!$E$3-('Shooter Information'!$G$3-RANK(K60,K$4:K$78,1))) -> 0 | M60: 0
A61: 58 | B61: ='Shooter Information'!B63 -> 0 | C61: ='Shooter Information'!C63 -> 0 | K61: 0 | L61: =IF('Shooter Information'!$E$3-('Shooter Information'!$G$3-RANK(K61,K$4:K$78,1))<0,0,'Shooter Information'!$E$3-('Shooter Information'!$G$3-RANK(K61,K$4:K$78,1))) -> 0 | M61: 0
A62: 59 | B62: ='Shooter Information'!B64 -> 0 | C62: ='Shooter Information'!C64 -> 0 | K62: 0 | L62: =IF('Shooter Information'!$E$3-('Shooter Information'!$G$3-RANK(K62,K$4:K$78,1))<0,0,'Shooter Information'!$E$3-('Shooter Information'!$G$3-RANK(K62,K$4:K$78,1))) -> 0 | M62: 0
A63: 60 | B63: ='Shooter Information'!B65 -> 0 | C63: ='Shooter Information'!C65 -> 0 | K63: 0 | L63: =IF('Shooter Information'!$E$3-('Shooter Information'!$G$3-RANK(K63,K$4:K$78,1))<0,0,'Shooter Information'!$E$3-('Shooter Information'!$G$3-RANK(K63,K$4:K$78,1))) -> 0 | M63: 0
A64: 61 | B64: ='Shooter Information'!B66 -> 0 | C64: ='Shooter Information'!C66 -> 0 | K64: =(D64*5)+E64-F64+(G64*10)+(H64*30)+(I64*999)+(J64*999.99) -> 0 | L64: =IF('Shooter Information'!$E$3-('Shooter Information'!$G$3-RANK(K64,K$4:K$78,1))<0,0,'Shooter Information'!$E$3-('Shooter Information'!$G$3-RANK(K64,K$4:K$78,1))) -> 0 | M64: =(SUM(D64+G64+H64+I64+J64)) -> 0
A65: 62 | B65: ='Shooter Information'!B67 -> 0 | C65: ='Shooter Information'!C67 -> 0 | K65: 0 | L65: =IF('Shooter Information'!$E$3-('Shooter Information'!$G$3-RANK(K65,K$4:K$78,1))<0,0,'Shooter Information'!$E$3-('Shooter Information'!$G$3-RANK(K65,K$4:K$78,1))) -> 0 | M65: 0
A66: 63 | B66: ='Shooter Information'!B68 -> 0 | C66: ='Shooter Information'!C68 -> 0 | K66: 0 | L66: =IF('Shooter Information'!$E$3-('Shooter Information'!$G$3-RANK(K66,K$4:K$78,1))<0,0,'Shooter Information'!$E$3-('Shooter Information'!$G$3-RANK(K66,K$4:K$78,1))) -> 0 | M66: 0
A67: 64 | B67: ='Shooter Information'!B69 -> 0 | C67: ='Shooter Information'!C69 -> 0 | K67: 0 | L67: =IF('Shooter Information'!$E$3-('Shooter Information'!$G$3-RANK(K67,K$4:K$78,1))<0,0,'Shooter Information'!$E$3-('Shooter Information'!$G$3-RANK(K67,K$4:K$78,1))) -> 0 | M67: 0
A68: 65 | B68: ='Shooter Information'!B70 -> 0 | C68: ='Shooter Information'!C70 -> 0 | K68: 0 | L68: =IF('Shooter Information'!$E$3-('Shooter Information'!$G$3-RANK(K68,K$4:K$78,1))<0,0,'Shooter Information'!$E$3-('Shooter Information'!$G$3-RANK(K68,K$4:K$78,1))) -> 0 | M68: 0
A69: 66 | B69: ='Shooter Information'!B71 -> 0 | C69: ='Shooter Information'!C71 -> 0 | K69: 0 | L69: =IF('Shooter Information'!$E$3-('Shooter Information'!$G$3-RANK(K69,K$4:K$78,1))<0,0,'Shooter Information'!$E$3-('Shooter Information'!$G$3-RANK(K69,K$4:K$78,1))) -> 0 | M69: 0
A70: 67 | B70: ='Shooter Information'!B72 -> 0 | C70: ='Shooter Information'!C72 -> 0 | K70: 0 | L70: =IF('Shooter Information'!$E$3-('Shooter Information'!$G$3-RANK(K70,K$4:K$78,1))<0,0,'Shooter Information'!$E$3-('Shooter Information'!$G$3-RANK(K70,K$4:K$78,1))) -> 0 | M70: 0
A71: 68 | B71: ='Shooter Information'!B73 -> 0 | C71: ='Shooter Information'!C73 -> 0 | K71: 0 | L71: =IF('Shooter Information'!$E$3-('Shooter Information'!$G$3-RANK(K71,K$4:K$78,1))<0,0,'Shooter Information'!$E$3-('Shooter Information'!$G$3-RANK(K71,K$4:K$78,1))) -> 0 | M71: 0
A72: 69 | B72: ='Shooter Information'!B74 -> 0 | C72: ='Shooter Information'!C74 -> 0 | K72: 0 | L72: =IF('Shooter Information'!$E$3-('Shooter Information'!$G$3-RANK(K72,K$4:K$78,1))<0,0,'Shooter Information'!$E$3-('Shooter Information'!$G$3-RANK(K72,K$4:K$78,1))) -> 0 | M72: 0
A73: 70 | B73: ='Shooter Information'!B75 -> 0 | C73: ='Shooter Information'!C75 -> 0 | K73: 0 | L73: =IF('Shooter Information'!$E$3-('Shooter Information'!$G$3-RANK(K73,K$4:K$78,1))<0,0,'Shooter Information'!$E$3-('Shooter Information'!$G$3-RANK(K73,K$4:K$78,1))) -> 0 | M73: 0
A74: 71 | B74: ='Shooter Information'!B76 -> 0 | C74: ='Shooter Information'!C76 -> 0 | K74: 0 | L74: =IF('Shooter Information'!$E$3-('Shooter Information'!$G$3-RANK(K74,K$4:K$78,1))<0,0,'Shooter Information'!$E$3-('Shooter Information'!$G$3-RANK(K74,K$4:K$78,1))) -> 0 | M74: 0
A75: 72 | B75: ='Shooter Information'!B77 -> 0 | C75: ='Shooter Information'!C77 -> 0 | K75: 0 | L75: =IF('Shooter Information'!$E$3-('Shooter Information'!$G$3-RANK(K75,K$4:K$78,1))<0,0,'Shooter Information'!$E$3-('Shooter Information'!$G$3-RANK(K75,K$4:K$78,1))) -> 0 | M75: 0
A76: 73 | B76: ='Shooter Information'!B78 -> 0 | C76: ='Shooter Information'!C78 -> 0 | K76: 0 | L76: =IF('Shooter Information'!$E$3-('Shooter Information'!$G$3-RANK(K76,K$4:K$78,1))<0,0,'Shooter Information'!$E$3-('Shooter Information'!$G$3-RANK(K76,K$4:K$78,1))) -> 0 | M76: 0
A77: 74 | B77: ='Shooter Information'!B79 -> 0 | C77: ='Shooter Information'!C79 -> 0 | K77: 0 | L77: =IF('Shooter Information'!$E$3-('Shooter Information'!$G$3-RANK(K77,K$4:K$78,1))<0,0,'Shooter Information'!$E$3-('Shooter Information'!$G$3-RANK(K77,K$4:K$78,1))) -> 0 | M77: 0
A78: 75 | B78: ='Shooter Information'!B80 -> 0 | C78: ='Shooter Information'!C80 -> 0 | K78: 0 | L78: =IF('Shooter Information'!$E$3-('Shooter Information'!$G$3-RANK(K78,K$4:K$78,1))<0,0,'Shooter Information'!$E$3-('Shooter Information'!$G$3-RANK(K78,K$4:K$78,1))) -> 0 | M78: 0

Sheet Stage 6
B1: CAS SCORE SHEET | D1: Date: | E1: ='Shooter Information'!$E$2 -> Wednesday April 9th, 2014
B2: Stage 6
A3: Roster # | B3: Shooter | C3: Class | D3: Misses | E3: Raw Time | F3: Bonus | G3: 10 Sec | H3: 30 Sec | I3: DNF | J3: DQ | K3: Total | L3: Rank | M3: Penalties
A4: =ROW()-3 -> 1 | B4: ='Shooter Information'!B6 -> Striker | C4: ='Shooter Information'!C6 -> 0 | I4: 1 | K4: =(D4*5)+E4-F4+(G4*10)+(H4*30)+(I4*999)+(J4*999.99) -> 999 | L4: =IF('Shooter Information'!$E$3-('Shooter Information'!$G$3-RANK(K4,K$4:K$78,1))<0,0,'Shooter Information'!$E$3-('Shooter Information'!$G$3-RANK(K4,K$4:K$78,1))) -> 4 | M4: =(SUM(D4+G4+H4+I4+J4)) -> 1
A5: =ROW()-3 -> 2 | B5: ='Shooter Information'!B7 -> Doc Deadwood | C5: ='Shooter Information'!C7 -> 0 | E5: 36.69 | K5: =(D5*5)+E5-F5+(G5*10)+(H5*30)+(I5*999)+(J5*999.99) -> 36.69 | L5: =IF('Shooter Information'!$E$3-('Shooter Information'!$G$3-RANK(K5,K$4:K$78,1))<0,0,'Shooter Information'!$E$3-('Shooter Information'!$G$3-RANK(K5,K$4:K$78,1))) -> 2 | M5: =(SUM(D5+G5+H5+I5+J5)) -> 0
A6: 3 | B6: ='Shooter Information'!B8 -> Cold Blue Mike | C6: ='Shooter Information'!C8 -> 0 | E6: 38.08 | K6: 38.08 | L6: =IF('Shooter Information'!$E$3-('Shooter Information'!$G$3-RANK(K6,K$4:K$78,1))<0,0,'Shooter Information'!$E$3-('Shooter Information'!$G$3-RANK(K6,K$4:K$78,1))) -> 3 | M6: 0
A7: 4 | B7: ='Shooter Information'!B9 -> B.S. Walker | C7: ='Shooter Information'!C9 -> 0 | D7: 1 | E7: 28.18 | K7: 33.18 | L7: =IF('Shooter Information'!$E$3-('Shooter Information'!$G$3-RANK(K7,K$4:K$78,1))<0,0,'Shooter Information'!$E$3-('Shooter Information'!$G$3-RANK(K7,K$4:K$78,1))) -> 1 | M7: 1
A8: 5 | B8: ='Shooter Information'!B10 -> 0 | C8: ='Shooter Information'!C10 -> 0 | K8: 0 | L8: =IF('Shooter Information'!$E$3-('Shooter Information'!$G$3-RANK(K8,K$4:K$78,1))<0,0,'Shooter Information'!$E$3-('Shooter Information'!$G$3-RANK(K8,K$4:K$78,1))) -> 0 | M8: 0
A9: 6 | B9: ='Shooter Information'!B11 -> 0 | C9: ='Shooter Information'!C11 -> 0 | K9: 0 | L9: =IF('Shooter Information'!$E$3-('Shooter Information'!$G$3-RANK(K9,K$4:K$78,1))<0,0,'Shooter Information'!$E$3-('Shooter Information'!$G$3-RANK(K9,K$4:K$78,1))) -> 0 | M9: 0
A10: 7 | B10: ='Shooter Information'!B12 -> 0 | C10: ='Shooter Information'!C12 -> 0 | K10: 0 | L10: =IF('Shooter Information'!$E$3-('Shooter Information'!$G$3-RANK(K10,K$4:K$78,1))<0,0,'Shooter Information'!$E$3-('Shooter Information'!$G$3-RANK(K10,K$4:K$78,1))) -> 0 | M10: 0
A11: 8 | B11: ='Shooter Information'!B13 -> 0 | C11: ='Shooter Information'!C13 -> 0 | K11: 0 | L11: =IF('Shooter Information'!$E$3-('Shooter Information'!$G$3-RANK(K11,K$4:K$78,1))<0,0,'Shooter Information'!$E$3-('Shooter Information'!$G$3-RANK(K11,K$4:K$78,1))) -> 0 | M11: 0
A12: 9 | B12: ='Shooter Information'!B14 -> 0 | C12: ='Shooter Information'!C14 -> 0 | K12: 0 | L12: =IF('Shooter Information'!$E$3-('Shooter Information'!$G$3-RANK(K12,K$4:K$78,1))<0,0,'Shooter Information'!$E$3-('Shooter Information'!$G$3-RANK(K12,K$4:K$78,1))) -> 0 | M12: 0
A13: 10 | B13: ='Shooter Information'!B15 -> 0 | C13: ='Shooter Information'!C15 -> 0 | K13: 0 | L13: =IF('Shooter Information'!$E$3-('Shooter Information'!$G$3-RANK(K13,K$4:K$78,1))<0,0,'Shooter Information'!$E$3-('Shooter Information'!$G$3-RANK(K13,K$4:K$78,1))) -> 0 | M13: 0
A14: 11 | B14: ='Shooter Information'!B16 -> 0 | C14: ='Shooter Information'!C16 -> 0 | K14: 0 | L14: =IF('Shooter Information'!$E$3-('Shooter Information'!$G$3-RANK(K14,K$4:K$78,1))<0,0,'Shooter Information'!$E$3-('Shooter Information'!$G$3-RANK(K14,K$4:K$78,1))) -> 0 | M14: 0
A15: 12 | B15: ='Shooter Information'!B17 -> 0 | C15: ='Shooter Information'!C17 -> 0 | K15: 0 | L15: =IF('Shooter Information'!$E$3-('Shooter Information'!$G$3-RANK(K15,K$4:K$78,1))<0,0,'Shooter Information'!$E$3-('Shooter Information'!$G$3-RANK(K15,K$4:K$78,1))) -> 0 | M15: 0
A16: 13 | B16: ='Shooter Information'!B18 -> 0 | C16: ='Shooter Information'!C18 -> 0 | K16: 0 | L16: =IF('Shooter Information'!$E$3-('Shooter Information'!$G$3-RANK(K16,K$4:K$78,1))<0,0,'Shooter Information'!$E$3-('Shooter Information'!$G$3-RANK(K16,K$4:K$78,1))) -> 0 | M16: 0
A17: 14 | B17: ='Shooter Information'!B19 -> 0 | C17: ='Shooter Information'!C19 -> 0 | K17: 0 | L17: =IF('Shooter Information'!$E$3-('Shooter Information'!$G$3-RANK(K17,K$4:K$78,1))<0,0,'Shooter Information'!$E$3-('Shooter Information'!$G$3-RANK(K17,K$4:K$78,1))) -> 0 | M17: 0
A18: 15 | B18: ='Shooter Information'!B20 -> 0 | C18: ='Shooter Information'!C20 -> 0 | K18: 0 | L18: =IF('Shooter Information'!$E$3-('Shooter Information'!$G$3-RANK(K18,K$4:K$78,1))<0,0,'Shooter Information'!$E$3-('Shooter Information'!$G$3-RANK(K18,K$4:K$78,1))) -> 0 | M18: 0
A19: 16 | B19: ='Shooter Information'!B21 -> 0 | C19: ='Shooter Information'!C21 -> 0 | K19: 0 | L19: =IF('Shooter Information'!$E$3-('Shooter Information'!$G$3-RANK(K19,K$4:K$78,1))<0,0,'Shooter Information'!$E$3-('Shooter Information'!$G$3-RANK(K19,K$4:K$78,1))) -> 0 | M19: 0
A20: 17 | B20: ='Shooter Information'!B22 -> 0 | C20: ='Shooter Information'!C22 -> 0 | K20: 0 | L20: =IF('Shooter Information'!$E$3-('Shooter Information'!$G$3-RANK(K20,K$4:K$78,1))<0,0,'Shooter Information'!$E$3-('Shooter Information'!$G$3-RANK(K20,K$4:K$78,1))) -> 0 | M20: 0
A21: 18 | B21: ='Shooter Information'!B23 -> 0 | C21: ='Shooter Information'!C23 -> 0 | K21: 0 | L21: =IF('Shooter Information'!$E$3-('Shooter Information'!$G$3-RANK(K21,K$4:K$78,1))<0,0,'Shooter Information'!$E$3-('Shooter Information'!$G$3-RANK(K21,K$4:K$78,1))) -> 0 | M21: 0
A22: 19 | B22: ='Shooter Information'!B24 -> 0 | C22: ='Shooter Information'!C24 -> 0 | K22: 0 | L22: =IF('Shooter Information'!$E$3-('Shooter Information'!$G$3-RANK(K22,K$4:K$78,1))<0,0,'Shooter Information'!$E$3-('Shooter Information'!$G$3-RANK(K22,K$4:K$78,1))) -> 0 | M22: 0
A23: 20 | B23: ='Shooter Information'!B25 -> 0 | C23: ='Shooter Information'!C25 -> 0 | K23: 0 | L23: =IF('Shooter Information'!$E$3-('Shooter Information'!$G$3-RANK(K23,K$4:K$78,1))<0,0,'Shooter Information'!$E$3-('Shooter Information'!$G$3-RANK(K23,K$4:K$78,1))) -> 0 | M23: 0
A24: 21 | B24: ='Shooter Information'!B26 -> 0 | C24: ='Shooter Information'!C26 -> 0 | K24: 0 | L24: =IF('Shooter Information'!$E$3-('Shooter Information'!$G$3-RANK(K24,K$4:K$78,1))<0,0,'Shooter Information'!$E$3-('Shooter Information'!$G$3-RANK(K24,K$4:K$78,1))) -> 0 | M24: 0
A25: 22 | B25: ='Shooter Information'!B27 -> 0 | C25: ='Shooter Information'!C27 -> 0 | K25: 0 | L25: =IF('Shooter Information'!$E$3-('Shooter Information'!$G$3-RANK(K25,K$4:K$78,1))<0,0,'Shooter Information'!$E$3-('Shooter Information'!$G$3-RANK(K25,K$4:K$78,1))) -> 0 | M25: 0
A26: 23 | B26: ='Shooter Information'!B28 -> 0 | C26: ='Shooter Information'!C28 -> 0 | K26: 0 | L26: =IF('Shooter Information'!$E$3-('Shooter Information'!$G$3-RANK(K26,K$4:K$78,1))<0,0,'Shooter Information'!$E$3-('Shooter Information'!$G$3-RANK(K26,K$4:K$78,1))) -> 0 | M26: 0
A27: 24 | B27: ='Shooter Information'!B29 -> 0 | C27: ='Shooter Information'!C29 -> 0 | K27: 0 | L27: =IF('Shooter Information'!$E$3-('Shooter Information'!$G$3-RANK(K27,K$4:K$78,1))<0,0,'Shooter Information'!$E$3-('Shooter Information'!$G$3-RANK(K27,K$4:K$78,1))) -> 0 | M27: 0
A28: 25 | B28: ='Shooter Information'!B30 -> 0 | C28: ='Shooter Information'!C30 -> 0 | K28: 0 | L28: =IF('Shooter Information'!$E$3-('Shooter Information'!$G$3-RANK(K28,K$4:K$78,1))<0,0,'Shooter Information'!$E$3-('Shooter Information'!$G$3-RANK(K28,K$4:K$78,1))) -> 0 | M28: 0
A29: 26 | B29: ='Shooter Information'!B31 -> 0 | C29: ='Shooter Information'!C31 -> 0 | K29: 0 | L29: =IF('Shooter Information'!$E$3-('Shooter Information'!$G$3-RANK(K29,K$4:K$78,1))<0,0,'Shooter Information'!$E$3-('Shooter Information'!$G$3-RANK(K29,K$4:K$78,1))) -> 0 | M29: 0
A30: 27 | B30: ='Shooter Information'!B32 -> 0 | C30: ='Shooter Information'!C32 -> 0 | K30: 0 | L30: =IF('Shooter Information'!$E$3-('Shooter Information'!$G$3-RANK(K30,K$4:K$78,1))<0,0,'Shooter Information'!$E$3-('Shooter Information'!$G$3-RANK(K30,K$4:K$78,1))) -> 0 | M30: 0
A31: 28 | B31: ='Shooter Information'!B33 -> 0 | C31: ='Shooter Information'!C33 -> 0 | K31: 0 | L31: =IF('Shooter Information'!$E$3-('Shooter Information'!$G$3-RANK(K31,K$4:K$78,1))<0,0,'Shooter Information'!$E$3-('Shooter Information'!$G$3-RANK(K31,K$4:K$78,1))) -> 0 | M31: 0
A32: 29 | B32: ='Shooter Information'!B34 -> 0 | C32: ='Shooter Information'!C34 -> 0 | K32: 0 | L32: =IF('Shooter Information'!$E$3-('Shooter Information'!$G$3-RANK(K32,K$4:K$78,1))<0,0,'Shooter Information'!$E$3-('Shooter Information'!$G$3-RANK(K32,K$4:K$78,1))) -> 0 | M32: 0
A33: 30 | B33: ='Shooter Information'!B35 -> 0 | C33: ='Shooter Information'!C35 -> 0 | K33: 0 | L33: =IF('Shooter Information'!$E$3-('Shooter Information'!$G$3-RANK(K33,K$4:K$78,1))<0,0,'Shooter Information'!$E$3-('Shooter Information'!$G$3-RANK(K33,K$4:K$78,1))) -> 0 | M33: 0
A34: 31 | B34: ='Shooter Information'!B36 -> 0 | C34: ='Shooter Information'!C36 -> 0 | K34: 0 | L34: =IF('Shooter Information'!$E$3-('Shooter Information'!$G$3-RANK(K34,K$4:K$78,1))<0,0,'Shooter Information'!$E$3-('Shooter Information'!$G$3-RANK(K34,K$4:K$78,1))) -> 0 | M34: 0
A35: 32 | B35: ='Shooter Information'!B37 -> 0 | C35: ='Shooter Information'!C37 -> 0 | K35: 0 | L35: =IF('Shooter Information'!$E$3-('Shooter Information'!$G$3-RANK(K35,K$4:K$78,1))<0,0,'Shooter Information'!$E$3-('Shooter Information'!$G$3-RANK(K35,K$4:K$78,1))) -> 0 | M35: 0
A36: 33 | B36: ='Shooter Information'!B38 -> 0 | C36: ='Shooter Information'!C38 -> 0 | K36: 0 | L36: =IF('Shooter Information'!$E$3-('Shooter Information'!$G$3-RANK(K36,K$4:K$78,1))<0,0,'Shooter Information'!$E$3-('Shooter Information'!$G$3-RANK(K36,K$4:K$78,1))) -> 0 | M36: 0
A37: 34 | B37: ='Shooter Information'!B39 -> 0 | C37: ='Shooter Information'!C39 -> 0 | K37: 0 | L37: =IF('Shooter Information'!$E$3-('Shooter Information'!$G$3-RANK(K37,K$4:K$78,1))<0,0,'Shooter Information'!$E$3-('Shooter Information'!$G$3-RANK(K37,K$4:K$78,1))) -> 0 | M37: 0
A38: 35 | B38: ='Shooter Information'!B40 -> 0 | C38: ='Shooter Information'!C40 -> 0 | K38: 0 | L38: =IF('Shooter Information'!$E$3-('Shooter Information'!$G$3-RANK(K38,K$4:K$78,1))<0,0,'Shooter Information'!$E$3-('Shooter Information'!$G$3-RANK(K38,K$4:K$78,1))) -> 0 | M38: 0
A39: 36 | B39: ='Shooter Information'!B41 -> 0 | C39: ='Shooter Information'!C41 -> 0 | K39: 0 | L39: =IF('Shooter Information'!$E$3-('Shooter Information'!$G$3-RANK(K39,K$4:K$78,1))<0,0,'Shooter Information'!$E$3-('Shooter Information'!$G$3-RANK(K39,K$4:K$78,1))) -> 0 | M39: 0
A40: 37 | B40: ='Shooter Information'!B42 -> 0 | C40: ='Shooter Information'!C42 -> 0 | K40: 0 | L40: =IF('Shooter Information'!$E$3-('Shooter Information'!$G$3-RANK(K40,K$4:K$78,1))<0,0,'Shooter Information'!$E$3-('Shooter Information'!$G$3-RANK(K40,K$4:K$78,1))) -> 0 | M40: 0
A41: 38 | B41: ='Shooter Information'!B43 -> 0 | C41: ='Shooter Information'!C43 -> 0 | K41: 0 | L41: =IF('Shooter Information'!$E$3-('Shooter Information'!$G$3-RANK(K41,K$4:K$78,1))<0,0,'Shooter Information'!$E$3-('Shooter Information'!$G$3-RANK(K41,K$4:K$78,1))) -> 0 | M41: 0
A42: 39 | B42: ='Shooter Information'!B44 -> 0 | C42: ='Shooter Information'!C44 -> 0 | K42: 0 | L42: =IF('Shooter Information'!$E$3-('Shooter Information'!$G$3-RANK(K42,K$4:K$78,1))<0,0,'Shooter Information'!$E$3-('Shooter Information'!$G$3-RANK(K42,K$4:K$78,1))) -> 0 | M42: 0
A43: 40 | B43: ='Shooter Information'!B45 -> 0 | C43: ='Shooter Information'!C45 -> 0 | K43: 0 | L43: =IF('Shooter Information'!$E$3-('Shooter Information'!$G$3-RANK(K43,K$4:K$78,1))<0,0,'Shooter Information'!$E$3-('Shooter Information'!$G$3-RANK(K43,K$4:K$78,1))) -> 0 | M43: 0
A44: 41 | B44: ='Shooter Information'!B46 -> 0 | C44: ='Shooter Information'!C46 -> 0 | K44: 0 | L44: =IF('Shooter Information'!$E$3-('Shooter Information'!$G$3-RANK(K44,K$4:K$78,1))<0,0,'Shooter Information'!$E$3-('Shooter Information'!$G$3-RANK(K44,K$4:K$78,1))) -> 0 | M44: 0
A45: 42 | B45: ='Shooter Information'!B47 -> 0 | C45: ='Shooter Information'!C47 -> 0 | K45: 0 | L45: =IF('Shooter Information'!$E$3-('Shooter Information'!$G$3-RANK(K45,K$4:K$78,1))<0,0,'Shooter Information'!$E$3-('Shooter Information'!$G$3-RANK(K45,K$4:K$78,1))) -> 0 | M45: 0
A46: 43 | B46: ='Shooter Information'!B48 -> 0 | C46: ='Shooter Information'!C48 -> 0 | K46: 0 | L46: =IF('Shooter Information'!$E$3-('Shooter Information'!$G$3-RANK(K46,K$4:K$78,1))<0,0,'Shooter Information'!$E$3-('Shooter Information'!$G$3-RANK(K46,K$4:K$78,1))) -> 0 | M46: 0
A47: 44 | B47: ='Shooter Information'!B49 -> 0 | C47: ='Shooter Information'!C49 -> 0 | K47: 0 | L47: =IF('Shooter Information'!$E$3-('Shooter Information'!$G$3-RANK(K47,K$4:K$78,1))<0,0,'Shooter Information'!$E$3-('Shooter Information'!$G$3-RANK(K47,K$4:K$78,1))) -> 0 | M47: 0
A48: 45 | B48: ='Shooter Information'!B50 -> 0 | C48: ='Shooter Information'!C50 -> 0 | K48: 0 | L48: =IF('Shooter Information'!$E$3-('Shooter Information'!$G$3-RANK(K48,K$4:K$78,1))<0,0,'Shooter Information'!$E$3-('Shooter Information'!$G$3-RANK(K48,K$4:K$78,1))) -> 0 | M48: 0
A49: 46 | B49: ='Shooter Information'!B51 -> 0 | C49: ='Shooter Information'!C51 -> 0 | K49: =(D49*5)+E49-F49+(G49*10)+(H49*30)+(I49*999)+(J49*999.99) -> 0 | L49: =IF('Shooter Information'!$E$3-('Shooter Information'!$G$3-RANK(K49,K$4:K$78,1))<0,0,'Shooter Information'!$E$3-('Shooter Information'!$G$3-RANK(K49,K$4:K$78,1))) -> 0 | M49: 0
A50: 47 | B50: ='Shooter Information'!B52 -> 0 | C50: ='Shooter Information'!C52 -> 0 | K50: 0 | L50: =IF('Shooter Information'!$E$3-('Shooter Information'!$G$3-RANK(K50,K$4:K$78,1))<0,0,'Shooter Information'!$E$3-('Shooter Information'!$G$3-RANK(K50,K$4:K$78,1))) -> 0 | M50: 0
A51: 48 | B51: ='Shooter Information'!B53 -> 0 | C51: ='Shooter Information'!C53 -> 0 | K51: 0 | L51: =IF('Shooter Information'!$E$3-('Shooter Information'!$G$3-RANK(K51,K$4:K$78,1))<0,0,'Shooter Information'!$E$3-('Shooter Information'!$G$3-RANK(K51,K$4:K$78,1))) -> 0 | M51: 0
A52: 49 | B52: ='Shooter Information'!B54 -> 0 | C52: ='Shooter Information'!C54 -> 0 | K52: 0 | L52: =IF('Shooter Information'!$E$3-('Shooter Information'!$G$3-RANK(K52,K$4:K$78,1))<0,0,'Shooter Information'!$E$3-('Shooter Information'!$G$3-RANK(K52,K$4:K$78,1))) -> 0 | M52: 0
A53: 50 | B53: ='Shooter Information'!B55 -> 0 | C53: ='Shooter Information'!C55 -> 0 | K53: 0 | L53: =IF('Shooter Information'!$E$3-('Shooter Information'!$G$3-RANK(K53,K$4:K$78,1))<0,0,'Shooter Information'!$E$3-('Shooter Information'!$G$3-RANK(K53,K$4:K$78,1))) -> 0 | M53: 0
A54: 51 | B54: ='Shooter Information'!B56 -> 0 | C54: ='Shooter Information'!C56 -> 0 | K54: 0 | L54: =IF('Shooter Information'!$E$3-('Shooter Information'!$G$3-RANK(K54,K$4:K$78,1))<0,0,'Shooter Information'!$E$3-('Shooter Information'!$G$3-RANK(K54,K$4:K$78,1))) -> 0 | M54: 0
A55: 52 | B55: ='Shooter Information'!B57 -> 0 | C55: ='Shooter Information'!C57 -> 0 | K55: 0 | L55: =IF('Shooter Information'!$E$3-('Shooter Information'!$G$3-RANK(K55,K$4:K$78,1))<0,0,'Shooter Information'!$E$3-('Shooter Information'!$G$3-RANK(K55,K$4:K$78,1))) -> 0 | M55: 0
A56: 53 | B56: ='Shooter Information'!B58 -> 0 | C56: ='Shooter Information'!C58 -> 0 | K56: 0 | L56: =IF('Shooter Information'!$E$3-('Shooter Information'!$G$3-RANK(K56,K$4:K$78,1))<0,0,'Shooter Information'!$E$3-('Shooter Information'!$G$3-RANK(K56,K$4:K$78,1))) -> 0 | M56: 0
A57: 54 | B57: ='Shooter Information'!B59 -> 0 | C57: ='Shooter Information'!C59 -> 0 | K57: 0 | L57: =IF('Shooter Information'!$E$3-('Shooter Information'!$G$3-RANK(K57,K$4:K$78,1))<0,0,'Shooter Information'!$E$3-('Shooter Information'!$G$3-RANK(K57,K$4:K$78,1))) -> 0 | M57: 0
A58: 55 | B58: ='Shooter Information'!B60 -> 0 | C58: ='Shooter Information'!C60 -> 0 | K58: 0 | L58: =IF('Shooter Information'!$E$3-('Shooter Information'!$G$3-RANK(K58,K$4:K$78,1))<0,0,'Shooter Information'!$E$3-('Shooter Information'!$G$3-RANK(K58,K$4:K$78,1))) -> 0 | M58: 0
A59: 56 | B59: ='Shooter Information'!B61 -> 0 | C59: ='Shooter Information'!C61 -> 0 | K59: 0 | L59: =IF('Shooter Information'!$E$3-('Shooter Information'!$G$3-RANK(K59,K$4:K$78,1))<0,0,'Shooter Information'!$E$3-('Shooter Information'!$G$3-RANK(K59,K$4:K$78,1))) -> 0 | M59: 0
A60: 57 | B60: ='Shooter Information'!B62 -> 0 | C60: ='Shooter Information'!C62 -> 0 | K60: 0 | L60: =IF('Shooter Information'!$E$3-('Shooter Information'!$G$3-RANK(K60,K$4:K$78,1))<0,0,'Shooter Information'!$E$3-('Shooter Information'!$G$3-RANK(K60,K$4:K$78,1))) -> 0 | M60: 0
A61: 58 | B61: ='Shooter Information'!B63 -> 0 | C61: ='Shooter Information'!C63 -> 0 | K61: 0 | L61: =IF('Shooter Information'!$E$3-('Shooter Information'!$G$3-RANK(K61,K$4:K$78,1))<0,0,'Shooter Information'!$E$3-('Shooter Information'!$G$3-RANK(K61,K$4:K$78,1))) -> 0 | M61: 0
A62: 59 | B62: ='Shooter Information'!B64 -> 0 | C62: ='Shooter Information'!C64 -> 0 | K62: 0 | L62: =IF('Shooter Information'!$E$3-('Shooter Information'!$G$3-RANK(K62,K$4:K$78,1))<0,0,'Shooter Information'!$E$3-('Shooter Information'!$G$3-RANK(K62,K$4:K$78,1))) -> 0 | M62: 0
A63: 60 | B63: ='Shooter Information'!B65 -> 0 | C63: ='Shooter Information'!C65 -> 0 | K63: 0 | L63: =IF('Shooter Information'!$E$3-('Shooter Information'!$G$3-RANK(K63,K$4:K$78,1))<0,0,'Shooter Information'!$E$3-('Shooter Information'!$G$3-RANK(K63,K$4:K$78,1))) -> 0 | M63: 0
A64: 61 | B64: ='Shooter Information'!B66 -> 0 | C64: ='Shooter Information'!C66 -> 0 | K64: =(D64*5)+E64-F64+(G64*10)+(H64*30)+(I64*999)+(J64*999.99) -> 0 | L64: =IF('Shooter Information'!$E$3-('Shooter Information'!$G$3-RANK(K64,K$4:K$78,1))<0,0,'Shooter Information'!$E$3-('Shooter Information'!$G$3-RANK(K64,K$4:K$78,1))) -> 0 | M64: =(SUM(D64+G64+H64+I64+J64)) -> 0
A65: 62 | B65: ='Shooter Information'!B67 -> 0 | C65: ='Shooter Information'!C67 -> 0 | K65: 0 | L65: =IF('Shooter Information'!$E$3-('Shooter Information'!$G$3-RANK(K65,K$4:K$78,1))<0,0,'Shooter Information'!$E$3-('Shooter Information'!$G$3-RANK(K65,K$4:K$78,1))) -> 0 | M65: 0
A66: 63 | B66: ='Shooter Information'!B68 -> 0 | C66: ='Shooter Information'!C68 -> 0 | K66: 0 | L66: =IF('Shooter Information'!$E$3-('Shooter Information'!$G$3-RANK(K66,K$4:K$78,1))<0,0,'Shooter Information'!$E$3-('Shooter Information'!$G$3-RANK(K66,K$4:K$78,1))) -> 0 | M66: 0
A67: 64 | B67: ='Shooter Information'!B69 -> 0 | C67: ='Shooter Information'!C69 -> 0 | K67: 0 | L67: =IF('Shooter Information'!$E$3-('Shooter Information'!$G$3-RANK(K67,K$4:K$78,1))<0,0,'Shooter Information'!$E$3-('Shooter Information'!$G$3-RANK(K67,K$4:K$78,1))) -> 0 | M67: 0
A68: 65 | B68: ='Shooter Information'!B70 -> 0 | C68: ='Shooter Information'!C70 -> 0 | K68: 0 | L68: =IF('Shooter Information'!$E$3-('Shooter Information'!$G$3-RANK(K68,K$4:K$78,1))<0,0,'Shooter Information'!$E$3-('Shooter Information'!$G$3-RANK(K68,K$4:K$78,1))) -> 0 | M68: 0
A69: 66 | B69: ='Shooter Information'!B71 -> 0 | C69: ='Shooter Information'!C71 -> 0 | K69: 0 | L69: =IF('Shooter Information'!$E$3-('Shooter Information'!$G$3-RANK(K69,K$4:K$78,1))<0,0,'Shooter Information'!$E$3-('Shooter Information'!$G$3-RANK(K69,K$4:K$78,1))) -> 0 | M69: 0
A70: 67 | B70: ='Shooter Information'!B72 -> 0 | C70: ='Shooter Information'!C72 -> 0 | K70: 0 | L70: =IF('Shooter Information'!$E$3-('Shooter Information'!$G$3-RANK(K70,K$4:K$78,1))<0,0,'Shooter Information'!$E$3-('Shooter Information'!$G$3-RANK(K70,K$4:K$78,1))) -> 0 | M70: 0
A71: 68 | B71: ='Shooter Information'!B73 -> 0 | C71: ='Shooter Information'!C73 -> 0 | K71: 0 | L71: =IF('Shooter Information'!$E$3-('Shooter Information'!$G$3-RANK(K71,K$4:K$78,1))<0,0,'Shooter Information'!$E$3-('Shooter Information'!$G$3-RANK(K71,K$4:K$78,1))) -> 0 | M71: 0
A72: 69 | B72: ='Shooter Information'!B74 -> 0 | C72: ='Shooter Information'!C74 -> 0 | K72: 0 | L72: =IF('Shooter Information'!$E$3-('Shooter Information'!$G$3-RANK(K72,K$4:K$78,1))<0,0,'Shooter Information'!$E$3-('Shooter Information'!$G$3-RANK(K72,K$4:K$78,1))) -> 0 | M72: 0
A73: 70 | B73: ='Shooter Information'!B75 -> 0 | C73: ='Shooter Information'!C75 -> 0 | K73: 0 | L73: =IF('Shooter Information'!$E$3-('Shooter Information'!$G$3-RANK(K73,K$4:K$78,1))<0,0,'Shooter Information'!$E$3-('Shooter Information'!$G$3-RANK(K73,K$4:K$78,1))) -> 0 | M73: 0
A74: 71 | B74: ='Shooter Information'!B76 -> 0 | C74: ='Shooter Information'!C76 -> 0 | K74: 0 | L74: =IF('Shooter Information'!$E$3-('Shooter Information'!$G$3-RANK(K74,K$4:K$78,1))<0,0,'Shooter Information'!$E$3-('Shooter Information'!$G$3-RANK(K74,K$4:K$78,1))) -> 0 | M74: 0
A75: 72 | B75: ='Shooter Information'!B77 -> 0 | C75: ='Shooter Information'!C77 -> 0 | K75: 0 | L75: =IF('Shooter Information'!$E$3-('Shooter Information'!$G$3-RANK(K75,K$4:K$78,1))<0,0,'Shooter Information'!$E$3-('Shooter Information'!$G$3-RANK(K75,K$4:K$78,1))) -> 0 | M75: 0
A76: 73 | B76: ='Shooter Information'!B78 -> 0 | C76: ='Shooter Information'!C78 -> 0 | K76: 0 | L76: =IF('Shooter Information'!$E$3-('Shooter Information'!$G$3-RANK(K76,K$4:K$78,1))<0,0,'Shooter Information'!$E$3-('Shooter Information'!$G$3-RANK(K76,K$4:K$78,1))) -> 0 | M76: 0
A77: 74 | B77: ='Shooter Information'!B79 -> 0 | C77: ='Shooter Information'!C79 -> 0 | K77: 0 | L77: =IF('Shooter Information'!$E$3-('Shooter Information'!$G$3-RANK(K77,K$4:K$78,1))<0,0,'Shooter Information'!$E$3-('Shooter Information'!$G$3-RANK(K77,K$4:K$78,1))) -> 0 | M77: 0
A78: 75 | B78: ='Shooter Information'!B80 -> 0 | C78: ='Shooter Information'!C80 -> 0 | K78: 0 | L78: =IF('Shooter Information'!$E$3-('Shooter Information'!$G$3-RANK(K78,K$4:K$78,1))<0,0,'Shooter Information'!$E$3-('Shooter Information'!$G$3-RANK(K78,K$4:K$78,1))) -> 0 | M78: 0

Sheet Score Summary
A1: ='Shooter Information'!$E$1 -> Cavalier Cowboys
A2: SCORE SUMMARY SHEET
A3: ='Shooter Information'!$E$2 -> Wednesday April 9th, 2014
A4: Finish | B4: Shooter | C4: Class | D4: Stage 1 | E4: Rank 1 | F4: Stage 2 | G4: Rank 2 | H4: Stage 3 | I4: Rank 3 | J4: Stage 4 | K4: Rank 4 | L4: Stage 5 | M4: Rank 5 | N4: Stage 6 | O4: Rank 6 | P4: Grand Total | Q4: Rank Total | R4: CAD | T4: Time Sort | U4: Rank Sort | V4: Class Sort | W4: Orig Sort
A5: =IF(ISBLANK('Shooter Information'!B9),,ROW()-4) -> 1 | B5: ='Shooter Information'!B9 -> B.S. Walker | C5: ='Shooter Information'!C9 -> 0 | D5: =+'Stage 1'!K7 -> 23.61 | E5: =+'Stage 1'!L7 -> 2 | F5: =+'Stage 2'!K7 -> 30.24 | G5: =+'Stage 2'!L7 -> 2 | H5: =+'Stage 3'!K7 -> 29.59 | I5: =+'Stage 3'!L7 -> 1 | J5: =+'Stage 4'!K7 -> 32.7 | K5: =+'Stage 4'!L7 -> 1 | L5: =+'Stage 5'!K7 -> 38.89 | M5: =+'Stage 5'!L7 -> 2 | N5: =+'Stage 6'!K7 -> 33.18 | O5: =+'Stage 6'!L7 -> 1 | P5: =+D5+F5+H5+J5+L5+N5 -> 188.21 | Q5: =+E5+G5+I5+K5+M5+O5 -> 9 | R5: =IF(ISBLANK('Shooter Information'!B9),,IF(SUM('Stage 1'!M7,'Stage 2'!M7,'Stage 3'!M7,'Stage 4'!M7,'Stage 5'!M7,'Stage 6'!M7)=0,"Yes","No")) -> No | T5: =IF(P5=0,99999,P5) -> 188.21 | U5: =IF(Q5=0,99999,Q5) -> 9 | V5: =IF(ISBLANK('Shooter Information'!C9),"ZZZZZZZZZZ",C5) -> ZZZZZZZZZZ | W5: =CELL("row",'Shooter Information'!B9) -> 9
A6: =IF(ISBLANK('Shooter Information'!B8),,ROW()-4) -> 2 | B6: ='Shooter Information'!B8 -> Cold Blue Mike | C6: ='Shooter Information'!C8 -> 0 | D6: =+'Stage 1'!K6 -> 24.07 | E6: =+'Stage 1'!L6 -> 3 | F6: =+'Stage 2'!K6 -> 31.3 | G6: =+'Stage 2'!L6 -> 3 | H6: =+'Stage 3'!K6 -> 36.17 | I6: =+'Stage 3'!L6 -> 2 | J6: =+'Stage 4'!K6 -> 38.81 | K6: =+'Stage 4'!L6 -> 2 | L6: =+'Stage 5'!K6 -> 35.9 | M6: =+'Stage 5'!L6 -> 1 | N6: =+'Stage 6'!K6 -> 38.08 | O6: =+'Stage 6'!L6 -> 3 | P6: =+D6+F6+H6+J6+L6+N6 -> 204.33 | Q6: =+E6+G6+I6+K6+M6+O6 -> 14 | R6: =IF(ISBLANK('Shooter Information'!B8),,IF(SUM('Stage 1'!M6,'Stage 2'!M6,'Stage 3'!M6,'Stage 4'!M6,'Stage 5'!M6,'Stage 6'!M6)=0,"Yes","No")) -> No | T6: =IF(P6=0,99999,P6) -> 204.33 | U6: =IF(Q6=0,99999,Q6) -> 14 | V6: =IF(ISBLANK('Shooter Information'!C8),"ZZZZZZZZZZ",C6) -> ZZZZZZZZZZ | W6: =CELL("row",'Shooter Information'!B8) -> 8
A7: =IF(ISBLANK('Shooter Information'!B6),,ROW()-4) -> 3 | B7: ='Shooter Information'!B6 -> Striker | C7: ='Shooter Information'!C6 -> 0 | D7: =+'Stage 1'!K4 -> 22.75 | E7: =+'Stage 1'!L4 -> 1 | F7: =+'Stage 2'!K4 -> 27.22 | G7: =+'Stage 2'!L4 -> 1 | H7: =+'Stage 3'!K4 -> 999 | I7: =+'Stage 3'!L4 -> 4 | J7: =+'Stage 4'!K4 -> 999 | K7: =+'Stage 4'!L4 -> 4 | L7: =+'Stage 5'!K4 -> 999 | M7: =+'Stage 5'!L4 -> 4 | N7: =+'Stage 6'!K4 -> 999 | O7: =+'Stage 6'!L4 -> 4 | P7: =+D7+F7+H7+J7+L7+N7 -> 4045.97 | Q7: =+E7+G7+I7+K7+M7+O7 -> 18 | R7: =IF(ISBLANK('Shooter Information'!B6),,IF(SUM('Stage 1'!M4,'Stage 2'!M4,'Stage 3'!M4,'Stage 4'!M4,'Stage 5'!M4,'Stage 6'!M4)=0,"Yes","No")) -> No | T7: =IF(P7=0,99999,P7) -> 4045.97 | U7: =IF(Q7=0,99999,Q7) -> 18 | V7: =IF(ISBLANK('Shooter Information'!C6),"ZZZZZZZZZZ",C7) -> ZZZZZZZZZZ | W7: =CELL("row",'Shooter Information'!B6) -> 6
A8: =IF(ISBLANK('Shooter Information'!B7),,ROW()-4) -> 4 | B8: ='Shooter Information'!B7 -> Doc Deadwood | C8: ='Shooter Information'!C7 -> 0 | D8: =+'Stage 1'!K5 -> 31.73 | E8: =+'Stage 1'!L5 -> 4 | F8: =+'Stage 2'!K5 -> 46.81 | G8: =+'Stage 2'!L5 -> 4 | H8: =+'Stage 3'!K5 -> 44.43 | I8: =+'Stage 3'!L5 -> 3 | J8: =+'Stage 4'!K5 -> 41.76 | K8: =+'Stage 4'!L5 -> 3 | L8: =+'Stage 5'!K5 -> 60.11 | M8: =+'Stage 5'!L5 -> 3 | N8: =+'Stage 6'!K5 -> 36.69 | O8: =+'Stage 6'!L5 -> 2 | P8: =+D8+F8+H8+J8+L8+N8 -> 261.53 | Q8: =+E8+G8+I8+K8+M8+O8 -> 19 | R8: =IF(ISBLANK('Shooter Information'!B7),,IF(SUM('Stage 1'!M5,'Stage 2'!M5,'Stage 3'!M5,'Stage 4'!M5,'Stage 5'!M5,'Stage 6'!M5)=0,"Yes","No")) -> No | T8: =IF(P8=0,99999,P8) -> 261.53 | U8: =IF(Q8=0,99999,Q8) -> 19 | V8: =IF(ISBLANK('Shooter Information'!C7),"ZZZZZZZZZZ",C8) -> ZZZZZZZZZZ | W8: =CELL("row",'Shooter Information'!B7) -> 7
A9: =IF(ISBLANK('Shooter Information'!B10),,ROW()-4) -> 0 | B9: ='Shooter Information'!B10 -> 0 | C9: ='Shooter Information'!C10 -> 0 | D9: =+'Stage 1'!K8 -> 0 | E9: =+'Stage 1'!L8 -> 0 | F9: =+'Stage 2'!K8 -> 0 | G9: =+'Stage 2'!L8 -> 0 | H9: =+'Stage 3'!K8 -> 0 | I9: =+'Stage 3'!L8 -> 0 | J9: =+'Stage 4'!K8 -> 0 | K9: =+'Stage 4'!L8 -> 0 | L9: =+'Stage 5'!K8 -> 0 | M9: =+'Stage 5'!L8 -> 0 | N9: =+'Stage 6'!K8 -> 0 | O9: =+'Stage 6'!L8 -> 0 | P9: =+D9+F9+H9+J9+L9+N9 -> 0 | Q9: =+E9+G9+I9+K9+M9+O9 -> 0 | R9: =IF(ISBLANK('Shooter Information'!B10),,IF(SUM('Stage 1'!M8,'Stage 2'!M8,'Stage 3'!M8,'Stage 4'!M8,'Stage 5'!M8,'Stage 6'!M8)=0,"Yes","No")) -> 0 | T9: =IF(P9=0,99999,P9) -> 99999 | U9: =IF(Q9=0,99999,Q9) -> 99999 | V9: =IF(ISBLANK('Shooter Information'!C10),"ZZZZZZZZZZ",C9) -> ZZZZZZZZZZ | W9: =CELL("row",'Shooter Information'!B10) -> 10
A10: =IF(ISBLANK('Shooter Information'!B11),,ROW()-4) -> 0 | B10: ='Shooter Information'!B11 -> 0 | C10: ='Shooter Information'!C11 -> 0 | D10: =+'Stage 1'!K9 -> 0 | E10: =+'Stage 1'!L9 -> 0 | F10: =+'Stage 2'!K9 -> 0 | G10: =+'Stage 2'!L9 -> 0 | H10: =+'Stage 3'!K9 -> 0 | I10: =+'Stage 3'!L9 -> 0 | J10: =+'Stage 4'!K9 -> 0 | K10: =+'Stage 4'!L9 -> 0 | L10: =+'Stage 5'!K9 -> 0 | M10: =+'Stage 5'!L9 -> 0 | N10: =+'Stage 6'!K9 -> 0 | O10: =+'Stage 6'!L9 -> 0 | P10: =+D10+F10+H10+J10+L10+N10 -> 0 | Q10: =+E10+G10+I10+K10+M10+O10 -> 0 | R10: =IF(ISBLANK('Shooter Information'!B11),,IF(SUM('Stage 1'!M9,'Stage 2'!M9,'Stage 3'!M9,'Stage 4'!M9,'Stage 5'!M9,'Stage 6'!M9)=0,"Yes","No")) -> 0 | T10: =IF(P10=0,99999,P10) -> 99999 | U10: =IF(Q10=0,99999,Q10) -> 99999 | V10: =IF(ISBLANK('Shooter Information'!C11),"ZZZZZZZZZZ",C10) -> ZZZZZZZZZZ | W10: =CELL("row",'Shooter Information'!B11) -> 11
A11: =IF(ISBLANK('Shooter Information'!B12),,ROW()-4) -> 0 | B11: ='Shooter Information'!B12 -> 0 | C11: ='Shooter Information'!C12 -> 0 | D11: =+'Stage 1'!K10 -> 0 | E11: =+'Stage 1'!L10 -> 0 | F11: =+'Stage 2'!K10 -> 0 | G11: =+'Stage 2'!L10 -> 0 | H11: =+'Stage 3'!K10 -> 0 | I11: =+'Stage 3'!L10 -> 0 | J11: =+'Stage 4'!K10 -> 0 | K11: =+'Stage 4'!L10 -> 0 | L11: =+'Stage 5'!K10 -> 0 | M11: =+'Stage 5'!L10 -> 0 | N11: =+'Stage 6'!K10 -> 0 | O11: =+'Stage 6'!L10 -> 0 | P11: =+D11+F11+H11+J11+L11+N11 -> 0 | Q11: =+E11+G11+I11+K11+M11+O11 -> 0 | R11: =IF(ISBLANK('Shooter Information'!B12),,IF(SUM('Stage 1'!M10,'Stage 2'!M10,'Stage 3'!M10,'Stage 4'!M10,'Stage 5'!M10,'Stage 6'!M10)=0,"Yes","No")) -> 0 | T11: =IF(P11=0,99999,P11) -> 99999 | U11: =IF(Q11=0,99999,Q11) -> 99999 | V11: =IF(ISBLANK('Shooter Information'!C12),"ZZZZZZZZZZ",C11) -> ZZZZZZZZZZ | W11: =CELL("row",'Shooter Information'!B12) -> 12
A12: =IF(ISBLANK('Shooter Information'!B13),,ROW()-4) -> 0 | B12: ='Shooter Information'!B13 -> 0 | C12: ='Shooter Information'!C13 -> 0 | D12: =+'Stage 1'!K11 -> 0 | E12: =+'Stage 1'!L11 -> 0 | F12: =+'Stage 2'!K11 -> 0 | G12: =+'Stage 2'!L11 -> 0 | H12: =+'Stage 3'!K11 -> 0 | I12: =+'Stage 3'!L11 -> 0 | J12: =+'Stage 4'!K11 -> 0 | K12: =+'Stage 4'!L11 -> 0 | L12: =+'Stage 5'!K11 -> 0 | M12: =+'Stage 5'!L11 -> 0 | N12: =+'Stage 6'!K11 -> 0 | O12: =+'Stage 6'!L11 -> 0 | P12: =+D12+F12+H12+J12+L12+N12 -> 0 | Q12: =+E12+G12+I12+K12+M12+O12 -> 0 | R12: =IF(ISBLANK('Shooter Information'!B13),,IF(SUM('Stage 1'!M11,'Stage 2'!M11,'Stage 3'!M11,'Stage 4'!M11,'Stage 5'!M11,'Stage 6'!M11)=0,"Yes","No")) -> 0 | T12: =IF(P12=0,99999,P12) -> 99999 | U12: =IF(Q12=0,99999,Q12) -> 99999 | V12: =IF(ISBLANK('Shooter Information'!C13),"ZZZZZZZZZZ",C12) -> ZZZZZZZZZZ | W12: =CELL("row",'Shooter Information'!B13) -> 13
A13: =IF(ISBLANK('Shooter Information'!B14),,ROW()-4) -> 0 | B13: ='Shooter Information'!B14 -> 0 | C13: ='Shooter Information'!C14 -> 0 | D13: =+'Stage 1'!K12 -> 0 | E13: =+'Stage 1'!L12 -> 0 | F13: =+'Stage 2'!K12 -> 0 | G13: =+'Stage 2'!L12 -> 0 | H13: =+'Stage 3'!K12 -> 0 | I13: =+'Stage 3'!L12 -> 0 | J13: =+'Stage 4'!K12 -> 0 | K13: =+'Stage 4'!L12 -> 0 | L13: =+'Stage 5'!K12 -> 0 | M13: =+'Stage 5'!L12 -> 0 | N13: =+'Stage 6'!K12 -> 0 | O13: =+'Stage 6'!L12 -> 0 | P13: =+D13+F13+H13+J13+L13+N13 -> 0 | Q13: =+E13+G13+I13+K13+M13+O13 -> 0 | R13: =IF(ISBLANK('Shooter Information'!B14),,IF(SUM('Stage 1'!M12,'Stage 2'!M12,'Stage 3'!M12,'Stage 4'!M12,'Stage 5'!M12,'Stage 6'!M12)=0,"Yes","No")) -> 0 | T13: =IF(P13=0,99999,P13) -> 99999 | U13: =IF(Q13=0,99999,Q13) -> 99999 | V13: =IF(ISBLANK('Shooter Information'!C14),"ZZZZZZZZZZ",C13) -> ZZZZZZZZZZ | W13: =CELL("row",'Shooter Information'!B14) -> 14
A14: =IF(ISBLANK('Shooter Information'!B15),,ROW()-4) -> 0 | B14: ='Shooter Information'!B15 -> 0 | C14: ='Shooter Information'!C15 -> 0 | D14: =+'Stage 1'!K13 -> 0 | E14: =+'Stage 1'!L13 -> 0 | F14: =+'Stage 2'!K13 -> 0 | G14: =+'Stage 2'!L13 -> 0 | H14: =+'Stage 3'!K13 -> 0 | I14: =+'Stage 3'!L13 -> 0 | J14: =+'Stage 4'!K13 -> 0 | K14: =+'Stage 4'!L13 -> 0 | L14: =+'Stage 5'!K13 -> 0 | M14: =+'Stage 5'!L13 -> 0 | N14: =+'Stage 6'!K13 -> 0 | O14: =+'Stage 6'!L13 -> 0 | P14: =+D14+F14+H14+J14+L14+N14 -> 0 | Q14: =+E14+G14+I14+K14+M14+O14 -> 0 | R14: =IF(ISBLANK('Shooter Information'!B15),,IF(SUM('Stage 1'!M13,'Stage 2'!M13,'Stage 3'!M13,'Stage 4'!M13,'Stage 5'!M13,'Stage 6'!M13)=0,"Yes","No")) -> 0 | T14: =IF(P14=0,99999,P14) -> 99999 | U14: =IF(Q14=0,99999,Q14) -> 99999 | V14: =IF(ISBLANK('Shooter Information'!C15),"ZZZZZZZZZZ",C14) -> ZZZZZZZZZZ | W14: =CELL("row",'Shooter Information'!B15) -> 15
A15: =IF(ISBLANK('Shooter Information'!B16),,ROW()-4) -> 0 | B15: ='Shooter Information'!B16 -> 0 | C15: ='Shooter Information'!C16 -> 0 | D15: =+'Stage 1'!K14 -> 0 | E15: =+'Stage 1'!L14 -> 0 | F15: =+'Stage 2'!K14 -> 0 | G15: =+'Stage 2'!L14 -> 0 | H15: =+'Stage 3'!K14 -> 0 | I15: =+'Stage 3'!L14 -> 0 | J15: =+'Stage 4'!K14 -> 0 | K15: =+'Stage 4'!L14 -> 0 | L15: =+'Stage 5'!K14 -> 0 | M15: =+'Stage 5'!L14 -> 0 | N15: =+'Stage 6'!K14 -> 0 | O15: =+'Stage 6'!L14 -> 0 | P15: =+D15+F15+H15+J15+L15+N15 -> 0 | Q15: =+E15+G15+I15+K15+M15+O15 -> 0 | R15: =IF(ISBLANK('Shooter Information'!B16),,IF(SUM('Stage 1'!M14,'Stage 2'!M14,'Stage 3'!M14,'Stage 4'!M14,'Stage 5'!M14,'Stage 6'!M14)=0,"Yes","No")) -> 0 | T15: =IF(P15=0,99999,P15) -> 99999 | U15: =IF(Q15=0,99999,Q15) -> 99999 | V15: =IF(ISBLANK('Shooter Information'!C16),"ZZZZZZZZZZ",C15) -> ZZZZZZZZZZ | W15: =CELL("row",'Shooter Information'!B16) -> 16
A16: =IF(ISBLANK('Shooter Information'!B17),,ROW()-4) -> 0 | B16: ='Shooter Information'!B17 -> 0 | C16: ='Shooter Information'!C17 -> 0 | D16: =+'Stage 1'!K15 -> 0 | E16: =+'Stage 1'!L15 -> 0 | F16: =+'Stage 2'!K15 -> 0 | G16: =+'Stage 2'!L15 -> 0 | H16: =+'Stage 3'!K15 -> 0 | I16: =+'Stage 3'!L15 -> 0 | J16: =+'Stage 4'!K15 -> 0 | K16: =+'Stage 4'!L15 -> 0 | L16: =+'Stage 5'!K15 -> 0 | M16: =+'Stage 5'!L15 -> 0 | N16: =+'Stage 6'!K15 -> 0 | O16: =+'Stage 6'!L15 -> 0 | P16: =+D16+F16+H16+J16+L16+N16 -> 0 | Q16: =+E16+G16+I16+K16+M16+O16 -> 0 | R16: =IF(ISBLANK('Shooter Information'!B17),,IF(SUM('Stage 1'!M15,'Stage 2'!M15,'Stage 3'!M15,'Stage 4'!M15,'Stage 5'!M15,'Stage 6'!M15)=0,"Yes","No")) -> 0 | T16: =IF(P16=0,99999,P16) -> 99999 | U16: =IF(Q16=0,99999,Q16) -> 99999 | V16: =IF(ISBLANK('Shooter Information'!C17),"ZZZZZZZZZZ",C16) -> ZZZZZZZZZZ | W16: =CELL("row",'Shooter Information'!B17) -> 17
A17: =IF(ISBLANK('Shooter Information'!B18),,ROW()-4) -> 0 | B17: ='Shooter Information'!B18 -> 0 | C17: ='Shooter Information'!C18 -> 0 | D17: =+'Stage 1'!K16 -> 0 | E17: =+'Stage 1'!L16 -> 0 | F17: =+'Stage 2'!K16 -> 0 | G17: =+'Stage 2'!L16 -> 0 | H17: =+'Stage 3'!K16 -> 0 | I17: =+'Stage 3'!L16 -> 0 | J17: =+'Stage 4'!K16 -> 0 | K17: =+'Stage 4'!L16 -> 0 | L17: =+'Stage 5'!K16 -> 0 | M17: =+'Stage 5'!L16 -> 0 | N17: =+'Stage 6'!K16 -> 0 | O17: =+'Stage 6'!L16 -> 0 | P17: =+D17+F17+H17+J17+L17+N17 -> 0 | Q17: =+E17+G17+I17+K17+M17+O17 -> 0 | R17: =IF(ISBLANK('Shooter Information'!B18),,IF(SUM('Stage 1'!M16,'Stage 2'!M16,'Stage 3'!M16,'Stage 4'!M16,'Stage 5'!M16,'Stage 6'!M16)=0,"Yes","No")) -> 0 | T17: =IF(P17=0,99999,P17) -> 99999 | U17: =IF(Q17=0,99999,Q17) -> 99999 | V17: =IF(ISBLANK('Shooter Information'!C18),"ZZZZZZZZZZ",C17) -> ZZZZZZZZZZ | W17: =CELL("row",'Shooter Information'!B18) -> 18
A18: =IF(ISBLANK('Shooter Information'!B19),,ROW()-4) -> 0 | B18: ='Shooter Information'!B19 -> 0 | C18: ='Shooter Information'!C19 -> 0 | D18: =+'Stage 1'!K17 -> 0 | E18: =+'Stage 1'!L17 -> 0 | F18: =+'Stage 2'!K17 -> 0 | G18: =+'Stage 2'!L17 -> 0 | H18: =+'Stage 3'!K17 -> 0 | I18: =+'Stage 3'!L17 -> 0 | J18: =+'Stage 4'!K17 -> 0 | K18: =+'Stage 4'!L17 -> 0 | L18: =+'Stage 5'!K17 -> 0 | M18: =+'Stage 5'!L17 -> 0 | N18: =+'Stage 6'!K17 -> 0 | O18: =+'Stage 6'!L17 -> 0 | P18: =+D18+F18+H18+J18+L18+N18 -> 0 | Q18: =+E18+G18+I18+K18+M18+O18 -> 0 | R18: =IF(ISBLANK('Shooter Information'!B19),,IF(SUM('Stage 1'!M17,'Stage 2'!M17,'Stage 3'!M17,'Stage 4'!M17,'Stage 5'!M17,'Stage 6'!M17)=0,"Yes","No")) -> 0 | T18: =IF(P18=0,99999,P18) -> 99999 | U18: =IF(Q18=0,99999,Q18) -> 99999 | V18: =IF(ISBLANK('Shooter Information'!C19),"ZZZZZZZZZZ",C18) -> ZZZZZZZZZZ | W18: =CELL("row",'Shooter Information'!B19) -> 19
A19: =IF(ISBLANK('Shooter Information'!B20),,ROW()-4) -> 0 | B19: ='Shooter Information'!B20 -> 0 | C19: ='Shooter Information'!C20 -> 0 | D19: =+'Stage 1'!K18 -> 0 | E19: =+'Stage 1'!L18 -> 0 | F19: =+'Stage 2'!K18 -> 0 | G19: =+'Stage 2'!L18 -> 0 | H19: =+'Stage 3'!K18 -> 0 | I19: =+'Stage 3'!L18 -> 0 | J19: =+'Stage 4'!K18 -> 0 | K19: =+'Stage 4'!L18 -> 0 | L19: =+'Stage 5'!K18 -> 0 | M19: =+'Stage 5'!L18 -> 0 | N19: =+'Stage 6'!K18 -> 0 | O19: =+'Stage 6'!L18 -> 0 | P19: =+D19+F19+H19+J19+L19+N19 -> 0 | Q19: =+E19+G19+I19+K19+M19+O19 -> 0 | R19: =IF(ISBLANK('Shooter Information'!B20),,IF(SUM('Stage 1'!M18,'Stage 2'!M18,'Stage 3'!M18,'Stage 4'!M18,'Stage 5'!M18,'Stage 6'!M18)=0,"Yes","No")) -> 0 | T19: =IF(P19=0,99999,P19) -> 99999 | U19: =IF(Q19=0,99999,Q19) -> 99999 | V19: =IF(ISBLANK('Shooter Information'!C20),"ZZZZZZZZZZ",C19) -> ZZZZZZZZZZ | W19: =CELL("row",'Shooter Information'!B20) -> 20
A20: =IF(ISBLANK('Shooter Information'!B21),,ROW()-4) -> 0 | B20: ='Shooter Information'!B21 -> 0 | C20: ='Shooter Information'!C21 -> 0 | D20: =+'Stage 1'!K19 -> 0 | E20: =+'Stage 1'!L19 -> 0 | F20: =+'Stage 2'!K19 -> 0 | G20: =+'Stage 2'!L19 -> 0 | H20: =+'Stage 3'!K19 -> 0 | I20: =+'Stage 3'!L19 -> 0 | J20: =+'Stage 4'!K19 -> 0 | K20: =+'Stage 4'!L19 -> 0 | L20: =+'Stage 5'!K19 -> 0 | M20: =+'Stage 5'!L19 -> 0 | N20: =+'Stage 6'!K19 -> 0 | O20: =+'Stage 6'!L19 -> 0 | P20: =+D20+F20+H20+J20+L20+N20 -> 0 | Q20: =+E20+G20+I20+K20+M20+O20 -> 0 | R20: =IF(ISBLANK('Shooter Information'!B21),,IF(SUM('Stage 1'!M19,'Stage 2'!M19,'Stage 3'!M19,'Stage 4'!M19,'Stage 5'!M19,'Stage 6'!M19)=0,"Yes","No")) -> 0 | T20: =IF(P20=0,99999,P20) -> 99999 | U20: =IF(Q20=0,99999,Q20) -> 99999 | V20: =IF(ISBLANK('Shooter Information'!C21),"ZZZZZZZZZZ",C20) -> ZZZZZZZZZZ | W20: =CELL("row",'Shooter Information'!B21) -> 21
A21: =IF(ISBLANK('Shooter Information'!B22),,ROW()-4) -> 0 | B21: ='Shooter Information'!B22 -> 0 | C21: ='Shooter Information'!C22 -> 0 | D21: =+'Stage 1'!K20 -> 0 | E21: =+'Stage 1'!L20 -> 0 | F21: =+'Stage 2'!K20 -> 0 | G21: =+'Stage 2'!L20 -> 0 | H21: =+'Stage 3'!K20 -> 0 | I21: =+'Stage 3'!L20 -> 0 | J21: =+'Stage 4'!K20 -> 0 | K21: =+'Stage 4'!L20 -> 0 | L21: =+'Stage 5'!K20 -> 0 | M21: =+'Stage 5'!L20 -> 0 | N21: =+'Stage 6'!K20 -> 0 | O21: =+'Stage 6'!L20 -> 0 | P21: =+D21+F21+H21+J21+L21+N21 -> 0 | Q21: =+E21+G21+I21+K21+M21+O21 -> 0 | R21: =IF(ISBLANK('Shooter Information'!B22),,IF(SUM('Stage 1'!M20,'Stage 2'!M20,'Stage 3'!M20,'Stage 4'!M20,'Stage 5'!M20,'Stage 6'!M20)=0,"Yes","No")) -> 0 | T21: =IF(P21=0,99999,P21) -> 99999 | U21: =IF(Q21=0,99999,Q21) -> 99999 | V21: =IF(ISBLANK('Shooter Information'!C22),"ZZZZZZZZZZ",C21) -> ZZZZZZZZZZ | W21: =CELL("row",'Shooter Information'!B22) -> 22
A22: =IF(ISBLANK('Shooter Information'!B23),,ROW()-4) -> 0 | B22: ='Shooter Information'!B23 -> 0 | C22: ='Shooter Information'!C23 -> 0 | D22: =+'Stage 1'!K21 -> 0 | E22: =+'Stage 1'!L21 -> 0 | F22: =+'Stage 2'!K21 -> 0 | G22: =+'Stage 2'!L21 -> 0 | H22: =+'Stage 3'!K21 -> 0 | I22: =+'Stage 3'!L21 -> 0 | J22: =+'Stage 4'!K21 -> 0 | K22: =+'Stage 4'!L21 -> 0 | L22: =+'Stage 5'!K21 -> 0 | M22: =+'Stage 5'!L21 -> 0 | N22: =+'Stage 6'!K21 -> 0 | O22: =+'Stage 6'!L21 -> 0 | P22: =+D22+F22+H22+J22+L22+N22 -> 0 | Q22: =+E22+G22+I22+K22+M22+O22 -> 0 | R22: =IF(ISBLANK('Shooter Information'!B23),,IF(SUM('Stage 1'!M21,'Stage 2'!M21,'Stage 3'!M21,'Stage 4'!M21,'Stage 5'!M21,'Stage 6'!M21)=0,"Yes","No")) -> 0 | T22: =IF(P22=0,99999,P22) -> 99999 | U22: =IF(Q22=0,99999,Q22) -> 99999 | V22: =IF(ISBLANK('Shooter Information'!C23),"ZZZZZZZZZZ",C22) -> ZZZZZZZZZZ | W22: =CELL("row",'Shooter Information'!B23) -> 23
A23: =IF(ISBLANK('Shooter Information'!B24),,ROW()-4) -> 0 | B23: ='Shooter Information'!B24 -> 0 | C23: ='Shooter Information'!C24 -> 0 | D23: =+'Stage 1'!K22 -> 0 | E23: =+'Stage 1'!L22 -> 0 | F23: =+'Stage 2'!K22 -> 0 | G23: =+'Stage 2'!L22 -> 0 | H23: =+'Stage 3'!K22 -> 0 | I23: =+'Stage 3'!L22 -> 0 | J23: =+'Stage 4'!K22 -> 0 | K23: =+'Stage 4'!L22 -> 0 | L23: =+'Stage 5'!K22 -> 0 | M23: =+'Stage 5'!L22 -> 0 | N23: =+'Stage 6'!K22 -> 0 | O23: =+'Stage 6'!L22 -> 0 | P23: =+D23+F23+H23+J23+L23+N23 -> 0 | Q23: =+E23+G23+I23+K23+M23+O23 -> 0 | R23: =IF(ISBLANK('Shooter Information'!B24),,IF(SUM('Stage 1'!M22,'Stage 2'!M22,'Stage 3'!M22,'Stage 4'!M22,'Stage 5'!M22,'Stage 6'!M22)=0,"Yes","No")) -> 0 | T23: =IF(P23=0,99999,P23) -> 99999 | U23: =IF(Q23=0,99999,Q23) -> 99999 | V23: =IF(ISBLANK('Shooter Information'!C24),"ZZZZZZZZZZ",C23) -> ZZZZZZZZZZ | W23: =CELL("row",'Shooter Information'!B24) -> 24
A24: =IF(ISBLANK('Shooter Information'!B25),,ROW()-4) -> 0 | B24: ='Shooter Information'!B25 -> 0 | C24: ='Shooter Information'!C25 -> 0 | D24: =+'Stage 1'!K23 -> 0 | E24: =+'Stage 1'!L23 -> 0 | F24: =+'Stage 2'!K23 -> 0 | G24: =+'Stage 2'!L23 -> 0 | H24: =+'Stage 3'!K23 -> 0 | I24: =+'Stage 3'!L23 -> 0 | J24: =+'Stage 4'!K23 -> 0 | K24: =+'Stage 4'!L23 -> 0 | L24: =+'Stage 5'!K23 -> 0 | M24: =+'Stage 5'!L23 -> 0 | N24: =+'Stage 6'!K23 -> 0 | O24: =+'Stage 6'!L23 -> 0 | P24: =+D24+F24+H24+J24+L24+N24 -> 0 | Q24: =+E24+G24+I24+K24+M24+O24 -> 0 | R24: =IF(ISBLANK('Shooter Information'!B25),,IF(SUM('Stage 1'!M23,'Stage 2'!M23,'Stage 3'!M23,'Stage 4'!M23,'Stage 5'!M23,'Stage 6'!M23)=0,"Yes","No")) -> 0 | T24: =IF(P24=0,99999,P24) -> 99999 | U24: =IF(Q24=0,99999,Q24) -> 99999 | V24: =IF(ISBLANK('Shooter Information'!C25),"ZZZZZZZZZZ",C24) -> ZZZZZZZZZZ | W24: =CELL("row",'Shooter Information'!B25) -> 25
A25: =IF(ISBLANK('Shooter Information'!B26),,ROW()-4) -> 0 | B25: ='Shooter Information'!B26 -> 0 | C25: ='Shooter Information'!C26 -> 0 | D25: =+'Stage 1'!K24 -> 0 | E25: =+'Stage 1'!L24 -> 0 | F25: =+'Stage 2'!K24 -> 0 | G25: =+'Stage 2'!L24 -> 0 | H25: =+'Stage 3'!K24 -> 0 | I25: =+'Stage 3'!L24 -> 0 | J25: =+'Stage 4'!K24 -> 0 | K25: =+'Stage 4'!L24 -> 0 | L25: =+'Stage 5'!K24 -> 0 | M25: =+'Stage 5'!L24 -> 0 | N25: =+'Stage 6'!K24 -> 0 | O25: =+'Stage 6'!L24 -> 0 | P25: =+D25+F25+H25+J25+L25+N25 -> 0 | Q25: =+E25+G25+I25+K25+M25+O25 -> 0 | R25: =IF(ISBLANK('Shooter Information'!B26),,IF(SUM('Stage 1'!M24,'Stage 2'!M24,'Stage 3'!M24,'Stage 4'!M24,'Stage 5'!M24,'Stage 6'!M24)=0,"Yes","No")) -> 0 | T25: =IF(P25=0,99999,P25) -> 99999 | U25: =IF(Q25=0,99999,Q25) -> 99999 | V25: =IF(ISBLANK('Shooter Information'!C26),"ZZZZZZZZZZ",C25) -> ZZZZZZZZZZ | W25: =CELL("row",'Shooter Information'!B26) -> 26
A26: =IF(ISBLANK('Shooter Information'!B27),,ROW()-4) -> 0 | B26: ='Shooter Information'!B27 -> 0 | C26: ='Shooter Information'!C27 -> 0 | D26: =+'Stage 1'!K25 -> 0 | E26: =+'Stage 1'!L25 -> 0 | F26: =+'Stage 2'!K25 -> 0 | G26: =+'Stage 2'!L25 -> 0 | H26: =+'Stage 3'!K25 -> 0 | I26: =+'Stage 3'!L25 -> 0 | J26: =+'Stage 4'!K25 -> 0 | K26: =+'Stage 4'!L25 -> 0 | L26: =+'Stage 5'!K25 -> 0 | M26: =+'Stage 5'!L25 -> 0 | N26: =+'Stage 6'!K25 -> 0 | O26: =+'Stage 6'!L25 -> 0 | P26: =+D26+F26+H26+J26+L26+N26 -> 0 | Q26: =+E26+G26+I26+K26+M26+O26 -> 0 | R26: =IF(ISBLANK('Shooter Information'!B27),,IF(SUM('Stage 1'!M25,'Stage 2'!M25,'Stage 3'!M25,'Stage 4'!M25,'Stage 5'!M25,'Stage 6'!M25)=0,"Yes","No")) -> 0 | T26: =IF(P26=0,99999,P26) -> 99999 | U26: =IF(Q26=0,99999,Q26) -> 99999 | V26: =IF(ISBLANK('Shooter Information'!C27),"ZZZZZZZZZZ",C26) -> ZZZZZZZZZZ | W26: =CELL("row",'Shooter Information'!B27) -> 27
A27: =IF(ISBLANK('Shooter Information'!B28),,ROW()-4) -> 0 | B27: ='Shooter Information'!B28 -> 0 | C27: ='Shooter Information'!C28 -> 0 | D27: =+'Stage 1'!K26 -> 0 | E27: =+'Stage 1'!L26 -> 0 | F27: =+'Stage 2'!K26 -> 0 | G27: =+'Stage 2'!L26 -> 0 | H27: =+'Stage 3'!K26 -> 0 | I27: =+'Stage 3'!L26 -> 0 | J27: =+'Stage 4'!K26 -> 0 | K27: =+'Stage 4'!L26 -> 0 | L27: =+'Stage 5'!K26 -> 0 | M27: =+'Stage 5'!L26 -> 0 | N27: =+'Stage 6'!K26 -> 0 | O27: =+'Stage 6'!L26 -> 0 | P27: =+D27+F27+H27+J27+L27+N27 -> 0 | Q27: =+E27+G27+I27+K27+M27+O27 -> 0 | R27: =IF(ISBLANK('Shooter Information'!B28),,IF(SUM('Stage 1'!M26,'Stage 2'!M26,'Stage 3'!M26,'Stage 4'!M26,'Stage 5'!M26,'Stage 6'!M26)=0,"Yes","No")) -> 0 | T27: =IF(P27=0,99999,P27) -> 99999 | U27: =IF(Q27=0,99999,Q27) -> 99999 | V27: =IF(ISBLANK('Shooter Information'!C28),"ZZZZZZZZZZ",C27) -> ZZZZZZZZZZ | W27: =CELL("row",'Shooter Information'!B28) -> 28
A28: =IF(ISBLANK('Shooter Information'!B29),,ROW()-4) -> 0 | B28: ='Shooter Information'!B29 -> 0 | C28: ='Shooter Information'!C29 -> 0 | D28: =+'Stage 1'!K27 -> 0 | E28: =+'Stage 1'!L27 -> 0 | F28: =+'Stage 2'!K27 -> 0 | G28: =+'Stage 2'!L27 -> 0 | H28: =+'Stage 3'!K27 -> 0 | I28: =+'Stage 3'!L27 -> 0 | J28: =+'Stage 4'!K27 -> 0 | K28: =+'Stage 4'!L27 -> 0 | L28: =+'Stage 5'!K27 -> 0 | M28: =+'Stage 5'!L27 -> 0 | N28: =+'Stage 6'!K27 -> 0 | O28: =+'Stage 6'!L27 -> 0 | P28: =+D28+F28+H28+J28+L28+N28 -> 0 | Q28: =+E28+G28+I28+K28+M28+O28 -> 0 | R28: =IF(ISBLANK('Shooter Information'!B29),,IF(SUM('Stage 1'!M27,'Stage 2'!M27,'Stage 3'!M27,'Stage 4'!M27,'Stage 5'!M27,'Stage 6'!M27)=0,"Yes","No")) -> 0 | T28: =IF(P28=0,99999,P28) -> 99999 | U28: =IF(Q28=0,99999,Q28) -> 99999 | V28: =IF(ISBLANK('Shooter Information'!C29),"ZZZZZZZZZZ",C28) -> ZZZZZZZZZZ | W28: =CELL("row",'Shooter Information'!B29) -> 29
A29: =IF(ISBLANK('Shooter Information'!B30),,ROW()-4) -> 0 | B29: ='Shooter Information'!B30 -> 0 | C29: ='Shooter Information'!C30 -> 0 | D29: =+'Stage 1'!K28 -> 0 | E29: =+'Stage 1'!L28 -> 0 | F29: =+'Stage 2'!K28 -> 0 | G29: =+'Stage 2'!L28 -> 0 | H29: =+'Stage 3'!K28 -> 0 | I29: =+'Stage 3'!L28 -> 0 | J29: =+'Stage 4'!K28 -> 0 | K29: =+'Stage 4'!L28 -> 0 | L29: =+'Stage 5'!K28 -> 0 | M29: =+'Stage 5'!L28 -> 0 | N29: =+'Stage 6'!K28 -> 0 | O29: =+'Stage 6'!L28 -> 0 | P29: =+D29+F29+H29+J29+L29+N29 -> 0 | Q29: =+E29+G29+I29+K29+M29+O29 -> 0 | R29: =IF(ISBLANK('Shooter Information'!B30),,IF(SUM('Stage 1'!M28,'Stage 2'!M28,'Stage 3'!M28,'Stage 4'!M28,'Stage 5'!M28,'Stage 6'!M28)=0,"Yes","No")) -> 0 | T29: =IF(P29=0,99999,P29) -> 99999 | U29: =IF(Q29=0,99999,Q29) -> 99999 | V29: =IF(ISBLANK('Shooter Information'!C30),"ZZZZZZZZZZ",C29) -> ZZZZZZZZZZ | W29: =CELL("row",'Shooter Information'!B30) -> 30
A30: =IF(ISBLANK('Shooter Information'!B31),,ROW()-4) -> 0 | B30: ='Shooter Information'!B31 -> 0 | C30: ='Shooter Information'!C31 -> 0 | D30: =+'Stage 1'!K29 -> 0 | E30: =+'Stage 1'!L29 -> 0 | F30: =+'Stage 2'!K29 -> 0 | G30: =+'Stage 2'!L29 -> 0 | H30: =+'Stage 3'!K29 -> 0 | I30: =+'Stage 3'!L29 -> 0 | J30: =+'Stage 4'!K29 -> 0 | K30: =+'Stage 4'!L29 -> 0 | L30: =+'Stage 5'!K29 -> 0 | M30: =+'Stage 5'!L29 -> 0 | N30: =+'Stage 6'!K29 -> 0 | O30: =+'Stage 6'!L29 -> 0 | P30: =+D30+F30+H30+J30+L30+N30 -> 0 | Q30: =+E30+G30+I30+K30+M30+O30 -> 0 | R30: =IF(ISBLANK('Shooter Information'!B31),,IF(SUM('Stage 1'!M29,'Stage 2'!M29,'Stage 3'!M29,'Stage 4'!M29,'Stage 5'!M29,'Stage 6'!M29)=0,"Yes","No")) -> 0 | T30: =IF(P30=0,99999,P30) -> 99999 | U30: =IF(Q30=0,99999,Q30) -> 99999 | V30: =IF(ISBLANK('Shooter Information'!C31),"ZZZZZZZZZZ",C30) -> ZZZZZZZZZZ | W30: =CELL("row",'Shooter Information'!B31) -> 31
A31: =IF(ISBLANK('Shooter Information'!B32),,ROW()-4) -> 0 | B31: ='Shooter Information'!B32 -> 0 | C31: ='Shooter Information'!C32 -> 0 | D31: =+'Stage 1'!K30 -> 0 | E31: =+'Stage 1'!L30 -> 0 | F31: =+'Stage 2'!K30 -> 0 | G31: =+'Stage 2'!L30 -> 0 | H31: =+'Stage 3'!K30 -> 0 | I31: =+'Stage 3'!L30 -> 0 | J31: =+'Stage 4'!K30 -> 0 | K31: =+'Stage 4'!L30 -> 0 | L31: =+'Stage 5'!K30 -> 0 | M31: =+'Stage 5'!L30 -> 0 | N31: =+'Stage 6'!K30 -> 0 | O31: =+'Stage 6'!L30 -> 0 | P31: =+D31+F31+H31+J31+L31+N31 -> 0 | Q31: =+E31+G31+I31+K31+M31+O31 -> 0 | R31: =IF(ISBLANK('Shooter Information'!B32),,IF(SUM('Stage 1'!M30,'Stage 2'!M30,'Stage 3'!M30,'Stage 4'!M30,'Stage 5'!M30,'Stage 6'!M30)=0,"Yes","No")) -> 0 | T31: =IF(P31=0,99999,P31) -> 99999 | U31: =IF(Q31=0,99999,Q31) -> 99999 | V31: =IF(ISBLANK('Shooter Information'!C32),"ZZZZZZZZZZ",C31) -> ZZZZZZZZZZ | W31: =CELL("row",'Shooter Information'!B32) -> 32
A32: =IF(ISBLANK('Shooter Information'!B33),,ROW()-4) -> 0 | B32: ='Shooter Information'!B33 -> 0 | C32: ='Shooter Information'!C33 -> 0 | D32: =+'Stage 1'!K31 -> 0 | E32: =+'Stage 1'!L31 -> 0 | F32: =+'Stage 2'!K31 -> 0 | G32: =+'Stage 2'!L31 -> 0 | H32: =+'Stage 3'!K31 -> 0 | I32: =+'Stage 3'!L31 -> 0 | J32: =+'Stage 4'!K31 -> 0 | K32: =+'Stage 4'!L31 -> 0 | L32: =+'Stage 5'!K31 -> 0 | M32: =+'Stage 5'!L31 -> 0 | N32: =+'Stage 6'!K31 -> 0 | O32: =+'Stage 6'!L31 -> 0 | P32: =+D32+F32+H32+J32+L32+N32 -> 0 | Q32: =+E32+G32+I32+K32+M32+O32 -> 0 | R32: =IF(ISBLANK('Shooter Information'!B33),,IF(SUM('Stage 1'!M31,'Stage 2'!M31,'Stage 3'!M31,'Stage 4'!M31,'Stage 5'!M31,'Stage 6'!M31)=0,"Yes","No")) -> 0 | T32: =IF(P32=0,99999,P32) -> 99999 | U32: =IF(Q32=0,99999,Q32) -> 99999 | V32: =IF(ISBLANK('Shooter Information'!C33),"ZZZZZZZZZZ",C32) -> ZZZZZZZZZZ | W32: =CELL("row",'Shooter Information'!B33) -> 33
A33: =IF(ISBLANK('Shooter Information'!B34),,ROW()-4) -> 0 | B33: ='Shooter Information'!B34 -> 0 | C33: ='Shooter Information'!C34 -> 0 | D33: =+'Stage 1'!K32 -> 0 | E33: =+'Stage 1'!L32 -> 0 | F33: =+'Stage 2'!K32 -> 0 | G33: =+'Stage 2'!L32 -> 0 | H33: =+'Stage 3'!K32 -> 0 | I33: =+'Stage 3'!L32 -> 0 | J33: =+'Stage 4'!K32 -> 0 | K33: =+'Stage 4'!L32 -> 0 | L33: =+'Stage 5'!K32 -> 0 | M33: =+'Stage 5'!L32 -> 0 | N33: =+'Stage 6'!K32 -> 0 | O33: =+'Stage 6'!L32 -> 0 | P33: =+D33+F33+H33+J33+L33+N33 -> 0 | Q33: =+E33+G33+I33+K33+M33+O33 -> 0 | R33: =IF(ISBLANK('Shooter Information'!B34),,IF(SUM('Stage 1'!M32,'Stage 2'!M32,'Stage 3'!M32,'Stage 4'!M32,'Stage 5'!M32,'Stage 6'!M32)=0,"Yes","No")) -> 0 | T33: =IF(P33=0,99999,P33) -> 99999 | U33: =IF(Q33=0,99999,Q33) -> 99999 | V33: =IF(ISBLANK('Shooter Information'!C34),"ZZZZZZZZZZ",C33) -> ZZZZZZZZZZ | W33: =CELL("row",'Shooter Information'!B34) -> 34
A34: =IF(ISBLANK('Shooter Information'!B35),,ROW()-4) -> 0 | B34: ='Shooter Information'!B35 -> 0 | C34: ='Shooter Information'!C35 -> 0 | D34: =+'Stage 1'!K33 -> 0 | E34: =+'Stage 1'!L33 -> 0 | F34: =+'Stage 2'!K33 -> 0 | G34: =+'Stage 2'!L33 -> 0 | H34: =+'Stage 3'!K33 -> 0 | I34: =+'Stage 3'!L33 -> 0 | J34: =+'Stage 4'!K33 -> 0 | K34: =+'Stage 4'!L33 -> 0 | L34: =+'Stage 5'!K33 -> 0 | M34: =+'Stage 5'!L33 -> 0 | N34: =+'Stage 6'!K33 -> 0 | O34: =+'Stage 6'!L33 -> 0 | P34: =+D34+F34+H34+J34+L34+N34 -> 0 | Q34: =+E34+G34+I34+K34+M34+O34 -> 0 | R34: =IF(ISBLANK('Shooter Information'!B35),,IF(SUM('Stage 1'!M33,'Stage 2'!M33,'Stage 3'!M33,'Stage 4'!M33,'Stage 5'!M33,'Stage 6'!M33)=0,"Yes","No")) -> 0 | T34: =IF(P34=0,99999,P34) -> 99999 | U34: =IF(Q34=0,99999,Q34) -> 99999 | V34: =IF(ISBLANK('Shooter Information'!C35),"ZZZZZZZZZZ",C34) -> ZZZZZZZZZZ | W34: =CELL("row",'Shooter Information'!B35) -> 35
A35: =IF(ISBLANK('Shooter Information'!B36),,ROW()-4) -> 0 | B35: ='Shooter Information'!B36 -> 0 | C35: ='Shooter Information'!C36 -> 0 | D35: =+'Stage 1'!K34 -> 0 | E35: =+'Stage 1'!L34 -> 0 | F35: =+'Stage 2'!K34 -> 0 | G35: =+'Stage 2'!L34 -> 0 | H35: =+'Stage 3'!K34 -> 0 | I35: =+'Stage 3'!L34 -> 0 | J35: =+'Stage 4'!K34 -> 0 | K35: =+'Stage 4'!L34 -> 0 | L35: =+'Stage 5'!K34 -> 0 | M35: =+'Stage 5'!L34 -> 0 | N35: =+'Stage 6'!K34 -> 0 | O35: =+'Stage 6'!L34 -> 0 | P35: =+D35+F35+H35+J35+L35+N35 -> 0 | Q35: =+E35+G35+I35+K35+M35+O35 -> 0 | R35: =IF(ISBLANK('Shooter Information'!B36),,IF(SUM('Stage 1'!M34,'Stage 2'!M34,'Stage 3'!M34,'Stage 4'!M34,'Stage 5'!M34,'Stage 6'!M34)=0,"Yes","No")) -> 0 | T35: =IF(P35=0,99999,P35) -> 99999 | U35: =IF(Q35=0,99999,Q35) -> 99999 | V35: =IF(ISBLANK('Shooter Information'!C36),"ZZZZZZZZZZ",C35) -> ZZZZZZZZZZ | W35: =CELL("row",'Shooter Information'!B36) -> 36
A36: =IF(ISBLANK('Shooter Information'!B37),,ROW()-4) -> 0 | B36: ='Shooter Information'!B37 -> 0 | C36: ='Shooter Information'!C37 -> 0 | D36: =+'Stage 1'!K35 -> 0 | E36: =+'Stage 1'!L35 -> 0 | F36: =+'Stage 2'!K35 -> 0 | G36: =+'Stage 2'!L35 -> 0 | H36: =+'Stage 3'!K35 -> 0 | I36: =+'Stage 3'!L35 -> 0 | J36: =+'Stage 4'!K35 -> 0 | K36: =+'Stage 4'!L35 -> 0 | L36: =+'Stage 5'!K35 -> 0 | M36: =+'Stage 5'!L35 -> 0 | N36: =+'Stage 6'!K35 -> 0 | O36: =+'Stage 6'!L35 -> 0 | P36: =+D36+F36+H36+J36+L36+N36 -> 0 | Q36: =+E36+G36+I36+K36+M36+O36 -> 0 | R36: =IF(ISBLANK('Shooter Information'!B37),,IF(SUM('Stage 1'!M35,'Stage 2'!M35,'Stage 3'!M35,'Stage 4'!M35,'Stage 5'!M35,'Stage 6'!M35)=0,"Yes","No")) -> 0 | T36: =IF(P36=0,99999,P36) -> 99999 | U36: =IF(Q36=0,99999,Q36) -> 99999 | V36: =IF(ISBLANK('Shooter Information'!C37),"ZZZZZZZZZZ",C36) -> ZZZZZZZZZZ | W36: =CELL("row",'Shooter Information'!B37) -> 37
A37: =IF(ISBLANK('Shooter Information'!B38),,ROW()-4) -> 0 | B37: ='Shooter Information'!B38 -> 0 | C37: ='Shooter Information'!C38 -> 0 | D37: =+'Stage 1'!K36 -> 0 | E37: =+'Stage 1'!L36 -> 0 | F37: =+'Stage 2'!K36 -> 0 | G37: =+'Stage 2'!L36 -> 0 | H37: =+'Stage 3'!K36 -> 0 | I37: =+'Stage 3'!L36 -> 0 | J37: =+'Stage 4'!K36 -> 0 | K37: =+'Stage 4'!L36 -> 0 | L37: =+'Stage 5'!K36 -> 0 | M37: =+'Stage 5'!L36 -> 0 | N37: =+'Stage 6'!K36 -> 0 | O37: =+'Stage 6'!L36 -> 0 | P37: =+D37+F37+H37+J37+L37+N37 -> 0 | Q37: =+E37+G37+I37+K37+M37+O37 -> 0 | R37: =IF(ISBLANK('Shooter Information'!B38),,IF(SUM('Stage 1'!M36,'Stage 2'!M36,'Stage 3'!M36,'Stage 4'!M36,'Stage 5'!M36,'Stage 6'!M36)=0,"Yes","No")) -> 0 | T37: =IF(P37=0,99999,P37) -> 99999 | U37: =IF(Q37=0,99999,Q37) -> 99999 | V37: =IF(ISBLANK('Shooter Information'!C38),"ZZZZZZZZZZ",C37) -> ZZZZZZZZZZ | W37: =CELL("row",'Shooter Information'!B38) -> 38
A38: =IF(ISBLANK('Shooter Information'!B39),,ROW()-4) -> 0 | B38: ='Shooter Information'!B39 -> 0 | C38: ='Shooter Information'!C39 -> 0 | D38: =+'Stage 1'!K37 -> 0 | E38: =+'Stage 1'!L37 -> 0 | F38: =+'Stage 2'!K37 -> 0 | G38: =+'Stage 2'!L37 -> 0 | H38: =+'Stage 3'!K37 -> 0 | I38: =+'Stage 3'!L37 -> 0 | J38: =+'Stage 4'!K37 -> 0 | K38: =+'Stage 4'!L37 -> 0 | L38: =+'Stage 5'!K37 -> 0 | M38: =+'Stage 5'!L37 -> 0 | N38: =+'Stage 6'!K37 -> 0 | O38: =+'Stage 6'!L37 -> 0 | P38: =+D38+F38+H38+J38+L38+N38 -> 0 | Q38: =+E38+G38+I38+K38+M38+O38 -> 0 | R38: =IF(ISBLANK('Shooter Information'!B39),,IF(SUM('Stage 1'!M37,'Stage 2'!M37,'Stage 3'!M37,'Stage 4'!M37,'Stage 5'!M37,'Stage 6'!M37)=0,"Yes","No")) -> 0 | T38: =IF(P38=0,99999,P38) -> 99999 | U38: =IF(Q38=0,99999,Q38) -> 99999 | V38: =IF(ISBLANK('Shooter Information'!C39),"ZZZZZZZZZZ",C38) -> ZZZZZZZZZZ | W38: =CELL("row",'Shooter Information'!B39) -> 39
A39: =IF(ISBLANK('Shooter Information'!B40),,ROW()-4) -> 0 | B39: ='Shooter Information'!B40 -> 0 | C39: ='Shooter Information'!C40 -> 0 | D39: =+'Stage 1'!K38 -> 0 | E39: =+'Stage 1'!L38 -> 0 | F39: =+'Stage 2'!K38 -> 0 | G39: =+'Stage 2'!L38 -> 0 | H39: =+'Stage 3'!K38 -> 0 | I39: =+'Stage 3'!L38 -> 0 | J39: =+'Stage 4'!K38 -> 0 | K39: =+'Stage 4'!L38 -> 0 | L39: =+'Stage 5'!K38 -> 0 | M39: =+'Stage 5'!L38 -> 0 | N39: =+'Stage 6'!K38 -> 0 | O39: =+'Stage 6'!L38 -> 0 | P39: =+D39+F39+H39+J39+L39+N39 -> 0 | Q39: =+E39+G39+I39+K39+M39+O39 -> 0 | R39: =IF(ISBLANK('Shooter Information'!B40),,IF(SUM('Stage 1'!M38,'Stage 2'!M38,'Stage 3'!M38,'Stage 4'!M38,'Stage 5'!M38,'Stage 6'!M38)=0,"Yes","No")) -> 0 | T39: =IF(P39=0,99999,P39) -> 99999 | U39: =IF(Q39=0,99999,Q39) -> 99999 | V39: =IF(ISBLANK('Shooter Information'!C40),"ZZZZZZZZZZ",C39) -> ZZZZZZZZZZ | W39: =CELL("row",'Shooter Information'!B40) -> 40
A40: =IF(ISBLANK('Shooter Information'!B41),,ROW()-4) -> 0 | B40: ='Shooter Information'!B41 -> 0 | C40: ='Shooter Information'!C41 -> 0 | D40: =+'Stage 1'!K39 -> 0 | E40: =+'Stage 1'!L39 -> 0 | F40: =+'Stage 2'!K39 -> 0 | G40: =+'Stage 2'!L39 -> 0 | H40: =+'Stage 3'!K39 -> 0 | I40: =+'Stage 3'!L39 -> 0 | J40: =+'Stage 4'!K39 -> 0 | K40: =+'Stage 4'!L39 -> 0 | L40: =+'Stage 5'!K39 -> 0 | M40: =+'Stage 5'!L39 -> 0 | N40: =+'Stage 6'!K39 -> 0 | O40: =+'Stage 6'!L39 -> 0 | P40: =+D40+F40+H40+J40+L40+N40 -> 0 | Q40: =+E40+G40+I40+K40+M40+O40 -> 0 | R40: =IF(ISBLANK('Shooter Information'!B41),,IF(SUM('Stage 1'!M39,'Stage 2'!M39,'Stage 3'!M39,'Stage 4'!M39,'Stage 5'!M39,'Stage 6'!M39)=0,"Yes","No")) -> 0 | T40: =IF(P40=0,99999,P40) -> 99999 | U40: =IF(Q40=0,99999,Q40) -> 99999 | V40: =IF(ISBLANK('Shooter Information'!C41),"ZZZZZZZZZZ",C40) -> ZZZZZZZZZZ | W40: =CELL("row",'Shooter Information'!B41) -> 41
A41: =IF(ISBLANK('Shooter Information'!B42),,ROW()-4) -> 0 | B41: ='Shooter Information'!B42 -> 0 | C41: ='Shooter Information'!C42 -> 0 | D41: =+'Stage 1'!K40 -> 0 | E41: =+'Stage 1'!L40 -> 0 | F41: =+'Stage 2'!K40 -> 0 | G41: =+'Stage 2'!L40 -> 0 | H41: =+'Stage 3'!K40 -> 0 | I41: =+'Stage 3'!L40 -> 0 | J41: =+'Stage 4'!K40 -> 0 | K41: =+'Stage 4'!L40 -> 0 | L41: =+'Stage 5'!K40 -> 0 | M41: =+'Stage 5'!L40 -> 0 | N41: =+'Stage 6'!K40 -> 0 | O41: =+'Stage 6'!L40 -> 0 | P41: =+D41+F41+H41+J41+L41+N41 -> 0 | Q41: =+E41+G41+I41+K41+M41+O41 -> 0 | R41: =IF(ISBLANK('Shooter Information'!B42),,IF(SUM('Stage 1'!M40,'Stage 2'!M40,'Stage 3'!M40,'Stage 4'!M40,'Stage 5'!M40,'Stage 6'!M40)=0,"Yes","No")) -> 0 | T41: =IF(P41=0,99999,P41) -> 99999 | U41: =IF(Q41=0,99999,Q41) -> 99999 | V41: =IF(ISBLANK('Shooter Information'!C42),"ZZZZZZZZZZ",C41) -> ZZZZZZZZZZ | W41: =CELL("row",'Shooter Information'!B42) -> 42
A42: =IF(ISBLANK('Shooter Information'!B43),,ROW()-4) -> 0 | B42: ='Shooter Information'!B43 -> 0 | C42: ='Shooter Information'!C43 -> 0 | D42: =+'Stage 1'!K41 -> 0 | E42: =+'Stage 1'!L41 -> 0 | F42: =+'Stage 2'!K41 -> 0 | G42: =+'Stage 2'!L41 -> 0 | H42: =+'Stage 3'!K41 -> 0 | I42: =+'Stage 3'!L41 -> 0 | J42: =+'Stage 4'!K41 -> 0 | K42: =+'Stage 4'!L41 -> 0 | L42: =+'Stage 5'!K41 -> 0 | M42: =+'Stage 5'!L41 -> 0 | N42: =+'Stage 6'!K41 -> 0 | O42: =+'Stage 6'!L41 -> 0 | P42: =+D42+F42+H42+J42+L42+N42 -> 0 | Q42: =+E42+G42+I42+K42+M42+O42 -> 0 | R42: =IF(ISBLANK('Shooter Information'!B43),,IF(SUM('Stage 1'!M41,'Stage 2'!M41,'Stage 3'!M41,'Stage 4'!M41,'Stage 5'!M41,'Stage 6'!M41)=0,"Yes","No")) -> 0 | T42: =IF(P42=0,99999,P42) -> 99999 | U42: =IF(Q42=0,99999,Q42) -> 99999 | V42: =IF(ISBLANK('Shooter Information'!C43),"ZZZZZZZZZZ",C42) -> ZZZZZZZZZZ | W42: =CELL("row",'Shooter Information'!B43) -> 43
A43: =IF(ISBLANK('Shooter Information'!B44),,ROW()-4) -> 0 | B43: ='Shooter Information'!B44 -> 0 | C43: ='Shooter Information'!C44 -> 0 | D43: =+'Stage 1'!K42 -> 0 | E43: =+'Stage 1'!L42 -> 0 | F43: =+'Stage 2'!K42 -> 0 | G43: =+'Stage 2'!L42 -> 0 | H43: =+'Stage 3'!K42 -> 0 | I43: =+'Stage 3'!L42 -> 0 | J43: =+'Stage 4'!K42 -> 0 | K43: =+'Stage 4'!L42 -> 0 | L43: =+'Stage 5'!K42 -> 0 | M43: =+'Stage 5'!L42 -> 0 | N43: =+'Stage 6'!K42 -> 0 | O43: =+'Stage 6'!L42 -> 0 | P43: =+D43+F43+H43+J43+L43+N43 -> 0 | Q43: =+E43+G43+I43+K43+M43+O43 -> 0 | R43: =IF(ISBLANK('Shooter Information'!B44),,IF(SUM('Stage 1'!M42,'Stage 2'!M42,'Stage 3'!M42,'Stage 4'!M42,'Stage 5'!M42,'Stage 6'!M42)=0,"Yes","No")) -> 0 | T43: =IF(P43=0,99999,P43) -> 99999 | U43: =IF(Q43=0,99999,Q43) -> 99999 | V43: =IF(ISBLANK('Shooter Information'!C44),"ZZZZZZZZZZ",C43) -> ZZZZZZZZZZ | W43: =CELL("row",'Shooter Information'!B44) -> 44
A44: =IF(ISBLANK('Shooter Information'!B45),,ROW()-4) -> 0 | B44: ='Shooter Information'!B45 -> 0 | C44: ='Shooter Information'!C45 -> 0 | D44: =+'Stage 1'!K43 -> 0 | E44: =+'Stage 1'!L43 -> 0 | F44: =+'Stage 2'!K43 -> 0 | G44: =+'Stage 2'!L43 -> 0 | H44: =+'Stage 3'!K43 -> 0 | I44: =+'Stage 3'!L43 -> 0 | J44: =+'Stage 4'!K43 -> 0 | K44: =+'Stage 4'!L43 -> 0 | L44: =+'Stage 5'!K43 -> 0 | M44: =+'Stage 5'!L43 -> 0 | N44: =+'Stage 6'!K43 -> 0 | O44: =+'Stage 6'!L43 -> 0 | P44: =+D44+F44+H44+J44+L44+N44 -> 0 | Q44: =+E44+G44+I44+K44+M44+O44 -> 0 | R44: =IF(ISBLANK('Shooter Information'!B45),,IF(SUM('Stage 1'!M43,'Stage 2'!M43,'Stage 3'!M43,'Stage 4'!M43,'Stage 5'!M43,'Stage 6'!M43)=0,"Yes","No")) -> 0 | T44: =IF(P44=0,99999,P44) -> 99999 | U44: =IF(Q44=0,99999,Q44) -> 99999 | V44: =IF(ISBLANK('Shooter Information'!C45),"ZZZZZZZZZZ",C44) -> ZZZZZZZZZZ | W44: =CELL("row",'Shooter Information'!B45) -> 45
A45: =IF(ISBLANK('Shooter Information'!B46),,ROW()-4) -> 0 | B45: ='Shooter Information'!B46 -> 0 | C45: ='Shooter Information'!C46 -> 0 | D45: =+'Stage 1'!K44 -> 0 | E45: =+'Stage 1'!L44 -> 0 | F45: =+'Stage 2'!K44 -> 0 | G45: =+'Stage 2'!L44 -> 0 | H45: =+'Stage 3'!K44 -> 0 | I45: =+'Stage 3'!L44 -> 0 | J45: =+'Stage 4'!K44 -> 0 | K45: =+'Stage 4'!L44 -> 0 | L45: =+'Stage 5'!K44 -> 0 | M45: =+'Stage 5'!L44 -> 0 | N45: =+'Stage 6'!K44 -> 0 | O45: =+'Stage 6'!L44 -> 0 | P45: =+D45+F45+H45+J45+L45+N45 -> 0 | Q45: =+E45+G45+I45+K45+M45+O45 -> 0 | R45: =IF(ISBLANK('Shooter Information'!B46),,IF(SUM('Stage 1'!M44,'Stage 2'!M44,'Stage 3'!M44,'Stage 4'!M44,'Stage 5'!M44,'Stage 6'!M44)=0,"Yes","No")) -> 0 | T45: =IF(P45=0,99999,P45) -> 99999 | U45: =IF(Q45=0,99999,Q45) -> 99999 | V45: =IF(ISBLANK('Shooter Information'!C46),"ZZZZZZZZZZ",C45) -> ZZZZZZZZZZ | W45: =CELL("row",'Shooter Information'!B46) -> 46
A46: =IF(ISBLANK('Shooter Information'!B47),,ROW()-4) -> 0 | B46: ='Shooter Information'!B47 -> 0 | C46: ='Shooter Information'!C47 -> 0 | D46: =+'Stage 1'!K45 -> 0 | E46: =+'Stage 1'!L45 -> 0 | F46: =+'Stage 2'!K45 -> 0 | G46: =+'Stage 2'!L45 -> 0 | H46: =+'Stage 3'!K45 -> 0 | I46: =+'Stage 3'!L45 -> 0 | J46: =+'Stage 4'!K45 -> 0 | K46: =+'Stage 4'!L45 -> 0 | L46: =+'Stage 5'!K45 -> 0 | M46: =+'Stage 5'!L45 -> 0 | N46: =+'Stage 6'!K45 -> 0 | O46: =+'Stage 6'!L45 -> 0 | P46: =+D46+F46+H46+J46+L46+N46 -> 0 | Q46: =+E46+G46+I46+K46+M46+O46 -> 0 | R46: =IF(ISBLANK('Shooter Information'!B47),,IF(SUM('Stage 1'!M45,'Stage 2'!M45,'Stage 3'!M45,'Stage 4'!M45,'Stage 5'!M45,'Stage 6'!M45)=0,"Yes","No")) -> 0 | T46: =IF(P46=0,99999,P46) -> 99999 | U46: =IF(Q46=0,99999,Q46) -> 99999 | V46: =IF(ISBLANK('Shooter Information'!C47),"ZZZZZZZZZZ",C46) -> ZZZZZZZZZZ | W46: =CELL("row",'Shooter Information'!B47) -> 47
A47: =IF(ISBLANK('Shooter Information'!B48),,ROW()-4) -> 0 | B47: ='Shooter Information'!B48 -> 0 | C47: ='Shooter Information'!C48 -> 0 | D47: =+'Stage 1'!K46 -> 0 | E47: =+'Stage 1'!L46 -> 0 | F47: =+'Stage 2'!K46 -> 0 | G47: =+'Stage 2'!L46 -> 0 | H47: =+'Stage 3'!K46 -> 0 | I47: =+'Stage 3'!L46 -> 0 | J47: =+'Stage 4'!K46 -> 0 | K47: =+'Stage 4'!L46 -> 0 | L47: =+'Stage 5'!K46 -> 0 | M47: =+'Stage 5'!L46 -> 0 | N47: =+'Stage 6'!K46 -> 0 | O47: =+'Stage 6'!L46 -> 0 | P47: =+D47+F47+H47+J47+L47+N47 -> 0 | Q47: =+E47+G47+I47+K47+M47+O47 -> 0 | R47: =IF(ISBLANK('Shooter Information'!B48),,IF(SUM('Stage 1'!M46,'Stage 2'!M46,'Stage 3'!M46,'Stage 4'!M46,'Stage 5'!M46,'Stage 6'!M46)=0,"Yes","No")) -> 0 | T47: =IF(P47=0,99999,P47) -> 99999 | U47: =IF(Q47=0,99999,Q47) -> 99999 | V47: =IF(ISBLANK('Shooter Information'!C48),"ZZZZZZZZZZ",C47) -> ZZZZZZZZZZ | W47: =CELL("row",'Shooter Information'!B48) -> 48
A48: =IF(ISBLANK('Shooter Information'!B49),,ROW()-4) -> 0 | B48: ='Shooter Information'!B49 -> 0 | C48: ='Shooter Information'!C49 -> 0 | D48: =+'Stage 1'!K47 -> 0 | E48: =+'Stage 1'!L47 -> 0 | F48: =+'Stage 2'!K47 -> 0 | G48: =+'Stage 2'!L47 -> 0 | H48: =+'Stage 3'!K47 -> 0 | I48: =+'Stage 3'!L47 -> 0 | J48: =+'Stage 4'!K47 -> 0 | K48: =+'Stage 4'!L47 -> 0 | L48: =+'Stage 5'!K47 -> 0 | M48: =+'Stage 5'!L47 -> 0 | N48: =+'Stage 6'!K47 -> 0 | O48: =+'Stage 6'!L47 -> 0 | P48: =+D48+F48+H48+J48+L48+N48 -> 0 | Q48: =+E48+G48+I48+K48+M48+O48 -> 0 | R48: =IF(ISBLANK('Shooter Information'!B49),,IF(SUM('Stage 1'!M47,'Stage 2'!M47,'Stage 3'!M47,'Stage 4'!M47,'Stage 5'!M47,'Stage 6'!M47)=0,"Yes","No")) -> 0 | T48: =IF(P48=0,99999,P48) -> 99999 | U48: =IF(Q48=0,99999,Q48) -> 99999 | V48: =IF(ISBLANK('Shooter Information'!C49),"ZZZZZZZZZZ",C48) -> ZZZZZZZZZZ | W48: =CELL("row",'Shooter Information'!B49) -> 49
A49: =IF(ISBLANK('Shooter Information'!B50),,ROW()-4) -> 0 | B49: ='Shooter Information'!B50 -> 0 | C49: ='Shooter Information'!C50 -> 0 | D49: =+'Stage 1'!K48 -> 0 | E49: =+'Stage 1'!L48 -> 0 | F49: =+'Stage 2'!K48 -> 0 | G49: =+'Stage 2'!L48 -> 0 | H49: =+'Stage 3'!K48 -> 0 | I49: =+'Stage 3'!L48 -> 0 | J49: =+'Stage 4'!K48 -> 0 | K49: =+'Stage 4'!L48 -> 0 | L49: =+'Stage 5'!K48 -> 0 | M49: =+'Stage 5'!L48 -> 0 | N49: =+'Stage 6'!K48 -> 0 | O49: =+'Stage 6'!L48 -> 0 | P49: =+D49+F49+H49+J49+L49+N49 -> 0 | Q49: =+E49+G49+I49+K49+M49+O49 -> 0 | R49: =IF(ISBLANK('Shooter Information'!B50),,IF(SUM('Stage 1'!M48,'Stage 2'!M48,'Stage 3'!M48,'Stage 4'!M48,'Stage 5'!M48,'Stage 6'!M48)=0,"Yes","No")) -> 0 | T49: =IF(P49=0,99999,P49) -> 99999 | U49: =IF(Q49=0,99999,Q49) -> 99999 | V49: =IF(ISBLANK('Shooter Information'!C50),"ZZZZZZZZZZ",C49) -> ZZZZZZZZZZ | W49: =CELL("row",'Shooter Information'!B50) -> 50
A50: =IF(ISBLANK('Shooter Information'!B51),,ROW()-4) -> 0 | B50: ='Shooter Information'!B51 -> 0 | C50: ='Shooter Information'!C51 -> 0 | D50: =+'Stage 1'!K49 -> 0 | E50: =+'Stage 1'!L49 -> 0 | F50: =+'Stage 2'!K49 -> 0 | G50: =+'Stage 2'!L49 -> 0 | H50: =+'Stage 3'!K49 -> 0 | I50: =+'Stage 3'!L49 -> 0 | J50: =+'Stage 4'!K49 -> 0 | K50: =+'Stage 4'!L49 -> 0 | L50: =+'Stage 5'!K49 -> 0 | M50: =+'Stage 5'!L49 -> 0 | N50: =+'Stage 6'!K49 -> 0 | O50: =+'Stage 6'!L49 -> 0 | P50: =+D50+F50+H50+J50+L50+N50 -> 0 | Q50: =+E50+G50+I50+K50+M50+O50 -> 0 | R50: =IF(ISBLANK('Shooter Information'!B51),,IF(SUM('Stage 1'!M49,'Stage 2'!M49,'Stage 3'!M49,'Stage 4'!M49,'Stage 5'!M49,'Stage 6'!M49)=0,"Yes","No")) -> 0 | T50: =IF(P50=0,99999,P50) -> 99999 | U50: =IF(Q50=0,99999,Q50) -> 99999 | V50: =IF(ISBLANK('Shooter Information'!C51),"ZZZZZZZZZZ",C50) -> ZZZZZZZZZZ | W50: =CELL("row",'Shooter Information'!B51) -> 51
A51: =IF(ISBLANK('Shooter Information'!B52),,ROW()-4) -> 0 | B51: ='Shooter Information'!B52 -> 0 | C51: ='Shooter Information'!C52 -> 0 | D51: =+'Stage 1'!K50 -> 0 | E51: =+'Stage 1'!L50 -> 0 | F51: =+'Stage 2'!K50 -> 0 | G51: =+'Stage 2'!L50 -> 0 | H51: =+'Stage 3'!K50 -> 0 | I51: =+'Stage 3'!L50 -> 0 | J51: =+'Stage 4'!K50 -> 0 | K51: =+'Stage 4'!L50 -> 0 | L51: =+'Stage 5'!K50 -> 0 | M51: =+'Stage 5'!L50 -> 0 | N51: =+'Stage 6'!K50 -> 0 | O51: =+'Stage 6'!L50 -> 0 | P51: =+D51+F51+H51+J51+L51+N51 -> 0 | Q51: =+E51+G51+I51+K51+M51+O51 -> 0 | R51: =IF(ISBLANK('Shooter Information'!B52),,IF(SUM('Stage 1'!M50,'Stage 2'!M50,'Stage 3'!M50,'Stage 4'!M50,'Stage 5'!M50,'Stage 6'!M50)=0,"Yes","No")) -> 0 | T51: =IF(P51=0,99999,P51) -> 99999 | U51: =IF(Q51=0,99999,Q51) -> 99999 | V51: =IF(ISBLANK('Shooter Information'!C52),"ZZZZZZZZZZ",C51) -> ZZZZZZZZZZ | W51: =CELL("row",'Shooter Information'!B52) -> 52
A52: =IF(ISBLANK('Shooter Information'!B53),,ROW()-4) -> 0 | B52: ='Shooter Information'!B53 -> 0 | C52: ='Shooter Information'!C53 -> 0 | D52: =+'Stage 1'!K51 -> 0 | E52: =+'Stage 1'!L51 -> 0 | F52: =+'Stage 2'!K51 -> 0 | G52: =+'Stage 2'!L51 -> 0 | H52: =+'Stage 3'!K51 -> 0 | I52: =+'Stage 3'!L51 -> 0 | J52: =+'Stage 4'!K51 -> 0 | K52: =+'Stage 4'!L51 -> 0 | L52: =+'Stage 5'!K51 -> 0 | M52: =+'Stage 5'!L51 -> 0 | N52: =+'Stage 6'!K51 -> 0 | O52: =+'Stage 6'!L51 -> 0 | P52: =+D52+F52+H52+J52+L52+N52 -> 0 | Q52: =+E52+G52+I52+K52+M52+O52 -> 0 | R52: =IF(ISBLANK('Shooter Information'!B53),,IF(SUM('Stage 1'!M51,'Stage 2'!M51,'Stage 3'!M51,'Stage 4'!M51,'Stage 5'!M51,'Stage 6'!M51)=0,"Yes","No")) -> 0 | T52: =IF(P52=0,99999,P52) -> 99999 | U52: =IF(Q52=0,99999,Q52) -> 99999 | V52: =IF(ISBLANK('Shooter Information'!C53),"ZZZZZZZZZZ",C52) -> ZZZZZZZZZZ | W52: =CELL("row",'Shooter Information'!B53) -> 53
A53: =IF(ISBLANK('Shooter Information'!B54),,ROW()-4) -> 0 | B53: ='Shooter Information'!B54 -> 0 | C53: ='Shooter Information'!C54 -> 0 | D53: =+'Stage 1'!K52 -> 0 | E53: =+'Stage 1'!L52 -> 0 | F53: =+'Stage 2'!K52 -> 0 | G53: =+'Stage 2'!L52 -> 0 | H53: =+'Stage 3'!K52 -> 0 | I53: =+'Stage 3'!L52 -> 0 | J53: =+'Stage 4'!K52 -> 0 | K53: =+'Stage 4'!L52 -> 0 | L53: =+'Stage 5'!K52 -> 0 | M53: =+'Stage 5'!L52 -> 0 | N53: =+'Stage 6'!K52 -> 0 | O53: =+'Stage 6'!L52 -> 0 | P53: =+D53+F53+H53+J53+L53+N53 -> 0 | Q53: =+E53+G53+I53+K53+M53+O53 -> 0 | R53: =IF(ISBLANK('Shooter Information'!B54),,IF(SUM('Stage 1'!M52,'Stage 2'!M52,'Stage 3'!M52,'Stage 4'!M52,'Stage 5'!M52,'Stage 6'!M52)=0,"Yes","No")) -> 0 | T53: =IF(P53=0,99999,P53) -> 99999 | U53: =IF(Q53=0,99999,Q53) -> 99999 | V53: =IF(ISBLANK('Shooter Information'!C54),"ZZZZZZZZZZ",C53) -> ZZZZZZZZZZ | W53: =CELL("row",'Shooter Information'!B54) -> 54
A54: =IF(ISBLANK('Shooter Information'!B55),,ROW()-4) -> 0 | B54: ='Shooter Information'!B55 -> 0 | C54: ='Shooter Information'!C55 -> 0 | D54: =+'Stage 1'!K53 -> 0 | E54: =+'Stage 1'!L53 -> 0 | F54: =+'Stage 2'!K53 -> 0 | G54: =+'Stage 2'!L53 -> 0 | H54: =+'Stage 3'!K53 -> 0 | I54: =+'Stage 3'!L53 -> 0 | J54: =+'Stage 4'!K53 -> 0 | K54: =+'Stage 4'!L53 -> 0 | L54: =+'Stage 5'!K53 -> 0 | M54: =+'Stage 5'!L53 -> 0 | N54: =+'Stage 6'!K53 -> 0 | O54: =+'Stage 6'!L53 -> 0 | P54: =+D54+F54+H54+J54+L54+N54 -> 0 | Q54: =+E54+G54+I54+K54+M54+O54 -> 0 | R54: =IF(ISBLANK('Shooter Information'!B55),,IF(SUM('Stage 1'!M53,'Stage 2'!M53,'Stage 3'!M53,'Stage 4'!M53,'Stage 5'!M53,'Stage 6'!M53)=0,"Yes","No")) -> 0 | T54: =IF(P54=0,99999,P54) -> 99999 | U54: =IF(Q54=0,99999,Q54) -> 99999 | V54: =IF(ISBLANK('Shooter Information'!C55),"ZZZZZZZZZZ",C54) -> ZZZZZZZZZZ | W54: =CELL("row",'Shooter Information'!B55) -> 55
A55: =IF(ISBLANK('Shooter Information'!B56),,ROW()-4) -> 0 | B55: ='Shooter Information'!B56 -> 0 | C55: ='Shooter Information'!C56 -> 0 | D55: =+'Stage 1'!K54 -> 0 | E55: =+'Stage 1'!L54 -> 0 | F55: =+'Stage 2'!K54 -> 0 | G55: =+'Stage 2'!L54 -> 0 | H55: =+'Stage 3'!K54 -> 0 | I55: =+'Stage 3'!L54 -> 0 | J55: =+'Stage 4'!K54 -> 0 | K55: =+'Stage 4'!L54 -> 0 | L55: =+'Stage 5'!K54 -> 0 | M55: =+'Stage 5'!L54 -> 0 | N55: =+'Stage 6'!K54 -> 0 | O55: =+'Stage 6'!L54 -> 0 | P55: =+D55+F55+H55+J55+L55+N55 -> 0 | Q55: =+E55+G55+I55+K55+M55+O55 -> 0 | R55: =IF(ISBLANK('Shooter Information'!B56),,IF(SUM('Stage 1'!M54,'Stage 2'!M54,'Stage 3'!M54,'Stage 4'!M54,'Stage 5'!M54,'Stage 6'!M54)=0,"Yes","No")) -> 0 | T55: =IF(P55=0,99999,P55) -> 99999 | U55: =IF(Q55=0,99999,Q55) -> 99999 | V55: =IF(ISBLANK('Shooter Information'!C56),"ZZZZZZZZZZ",C55) -> ZZZZZZZZZZ | W55: =CELL("row",'Shooter Information'!B56) -> 56
A56: =IF(ISBLANK('Shooter Information'!B57),,ROW()-4) -> 0 | B56: ='Shooter Information'!B57 -> 0 | C56: ='Shooter Information'!C57 -> 0 | D56: =+'Stage 1'!K55 -> 0 | E56: =+'Stage 1'!L55 -> 0 | F56: =+'Stage 2'!K55 -> 0 | G56: =+'Stage 2'!L55 -> 0 | H56: =+'Stage 3'!K55 -> 0 | I56: =+'Stage 3'!L55 -> 0 | J56: =+'Stage 4'!K55 -> 0 | K56: =+'Stage 4'!L55 -> 0 | L56: =+'Stage 5'!K55 -> 0 | M56: =+'Stage 5'!L55 -> 0 | N56: =+'Stage 6'!K55 -> 0 | O56: =+'Stage 6'!L55 -> 0 | P56: =+D56+F56+H56+J56+L56+N56 -> 0 | Q56: =+E56+G56+I56+K56+M56+O56 -> 0 | R56: =IF(ISBLANK('Shooter Information'!B57),,IF(SUM('Stage 1'!M55,'Stage 2'!M55,'Stage 3'!M55,'Stage 4'!M55,'Stage 5'!M55,'Stage 6'!M55)=0,"Yes","No")) -> 0 | T56: =IF(P56=0,99999,P56) -> 99999 | U56: =IF(Q56=0,99999,Q56) -> 99999 | V56: =IF(ISBLANK('Shooter Information'!C57),"ZZZZZZZZZZ",C56) -> ZZZZZZZZZZ | W56: =CELL("row",'Shooter Information'!B57) -> 57
A57: =IF(ISBLANK('Shooter Information'!B58),,ROW()-4) -> 0 | B57: ='Shooter Information'!B58 -> 0 | C57: ='Shooter Information'!C58 -> 0 | D57: =+'Stage 1'!K56 -> 0 | E57: =+'Stage 1'!L56 -> 0 | F57: =+'Stage 2'!K56 -> 0 | G57: =+'Stage 2'!L56 -> 0 | H57: =+'Stage 3'!K56 -> 0 | I57: =+'Stage 3'!L56 -> 0 | J57: =+'Stage 4'!K56 -> 0 | K57: =+'Stage 4'!L56 -> 0 | L57: =+'Stage 5'!K56 -> 0 | M57: =+'Stage 5'!L56 -> 0 | N57: =+'Stage 6'!K56 -> 0 | O57: =+'Stage 6'!L56 -> 0 | P57: =+D57+F57+H57+J57+L57+N57 -> 0 | Q57: =+E57+G57+I57+K57+M57+O57 -> 0 | R57: =IF(ISBLANK('Shooter Information'!B58),,IF(SUM('Stage 1'!M56,'Stage 2'!M56,'Stage 3'!M56,'Stage 4'!M56,'Stage 5'!M56,'Stage 6'!M56)=0,"Yes","No")) -> 0 | T57: =IF(P57=0,99999,P57) -> 99999 | U57: =IF(Q57=0,99999,Q57) -> 99999 | V57: =IF(ISBLANK('Shooter Information'!C58),"ZZZZZZZZZZ",C57) -> ZZZZZZZZZZ | W57: =CELL("row",'Shooter Information'!B58) -> 58
A58: =IF(ISBLANK('Shooter Information'!B59),,ROW()-4) -> 0 | B58: ='Shooter Information'!B59 -> 0 | C58: ='Shooter Information'!C59 -> 0 | D58: =+'Stage 1'!K57 -> 0 | E58: =+'Stage 1'!L57 -> 0 | F58: =+'Stage 2'!K57 -> 0 | G58: =+'Stage 2'!L57 -> 0 | H58: =+'Stage 3'!K57 -> 0 | I58: =+'Stage 3'!L57 -> 0 | J58: =+'Stage 4'!K57 -> 0 | K58: =+'Stage 4'!L57 -> 0 | L58: =+'Stage 5'!K57 -> 0 | M58: =+'Stage 5'!L57 -> 0 | N58: =+'Stage 6'!K57 -> 0 | O58: =+'Stage 6'!L57 -> 0 | P58: =+D58+F58+H58+J58+L58+N58 -> 0 | Q58: =+E58+G58+I58+K58+M58+O58 -> 0 | R58: =IF(ISBLANK('Shooter Information'!B59),,IF(SUM('Stage 1'!M57,'Stage 2'!M57,'Stage 3'!M57,'Stage 4'!M57,'Stage 5'!M57,'Stage 6'!M57)=0,"Yes","No")) -> 0 | T58: =IF(P58=0,99999,P58) -> 99999 | U58: =IF(Q58=0,99999,Q58) -> 99999 | V58: =IF(ISBLANK('Shooter Information'!C59),"ZZZZZZZZZZ",C58) -> ZZZZZZZZZZ | W58: =CELL("row",'Shooter Information'!B59) -> 59
A59: =IF(ISBLANK('Shooter Information'!B60),,ROW()-4) -> 0 | B59: ='Shooter Information'!B60 -> 0 | C59: ='Shooter Information'!C60 -> 0 | D59: =+'Stage 1'!K58 -> 0 | E59: =+'Stage 1'!L58 -> 0 | F59: =+'Stage 2'!K58 -> 0 | G59: =+'Stage 2'!L58 -> 0 | H59: =+'Stage 3'!K58 -> 0 | I59: =+'Stage 3'!L58 -> 0 | J59: =+'Stage 4'!K58 -> 0 | K59: =+'Stage 4'!L58 -> 0 | L59: =+'Stage 5'!K58 -> 0 | M59: =+'Stage 5'!L58 -> 0 | N59: =+'Stage 6'!K58 -> 0 | O59: =+'Stage 6'!L58 -> 0 | P59: =+D59+F59+H59+J59+L59+N59 -> 0 | Q59: =+E59+G59+I59+K59+M59+O59 -> 0 | R59: =IF(ISBLANK('Shooter Information'!B60),,IF(SUM('Stage 1'!M58,'Stage 2'!M58,'Stage 3'!M58,'Stage 4'!M58,'Stage 5'!M58,'Stage 6'!M58)=0,"Yes","No")) -> 0 | T59: =IF(P59=0,99999,P59) -> 99999 | U59: =IF(Q59=0,99999,Q59) -> 99999 | V59: =IF(ISBLANK('Shooter Information'!C60),"ZZZZZZZZZZ",C59) -> ZZZZZZZZZZ | W59: =CELL("row",'Shooter Information'!B60) -> 60
A60: =IF(ISBLANK('Shooter Information'!B61),,ROW()-4) -> 0 | B60: ='Shooter Information'!B61 -> 0 | C60: ='Shooter Information'!C61 -> 0 | D60: =+'Stage 1'!K59 -> 0 | E60: =+'Stage 1'!L59 -> 0 | F60: =+'Stage 2'!K59 -> 0 | G60: =+'Stage 2'!L59 -> 0 | H60: =+'Stage 3'!K59 -> 0 | I60: =+'Stage 3'!L59 -> 0 | J60: =+'Stage 4'!K59 -> 0 | K60: =+'Stage 4'!L59 -> 0 | L60: =+'Stage 5'!K59 -> 0 | M60: =+'Stage 5'!L59 -> 0 | N60: =+'Stage 6'!K59 -> 0 | O60: =+'Stage 6'!L59 -> 0 | P60: =+D60+F60+H60+J60+L60+N60 -> 0 | Q60: =+E60+G60+I60+K60+M60+O60 -> 0 | R60: =IF(ISBLANK('Shooter Information'!B61),,IF(SUM('Stage 1'!M59,'Stage 2'!M59,'Stage 3'!M59,'Stage 4'!M59,'Stage 5'!M59,'Stage 6'!M59)=0,"Yes","No")) -> 0 | T60: =IF(P60=0,99999,P60) -> 99999 | U60: =IF(Q60=0,99999,Q60) -> 99999 | V60: =IF(ISBLANK('Shooter Information'!C61),"ZZZZZZZZZZ",C60) -> ZZZZZZZZZZ | W60: =CELL("row",'Shooter Information'!B61) -> 61
A61: =IF(ISBLANK('Shooter Information'!B62),,ROW()-4) -> 0 | B61: ='Shooter Information'!B62 -> 0 | C61: ='Shooter Information'!C62 -> 0 | D61: =+'Stage 1'!K60 -> 0 | E61: =+'Stage 1'!L60 -> 0 | F61: =+'Stage 2'!K60 -> 0 | G61: =+'Stage 2'!L60 -> 0 | H61: =+'Stage 3'!K60 -> 0 | I61: =+'Stage 3'!L60 -> 0 | J61: =+'Stage 4'!K60 -> 0 | K61: =+'Stage 4'!L60 -> 0 | L61: =+'Stage 5'!K60 -> 0 | M61: =+'Stage 5'!L60 -> 0 | N61: =+'Stage 6'!K60 -> 0 | O61: =+'Stage 6'!L60 -> 0 | P61: =+D61+F61+H61+J61+L61+N61 -> 0 | Q61: =+E61+G61+I61+K61+M61+O61 -> 0 | R61: =IF(ISBLANK('Shooter Information'!B62),,IF(SUM('Stage 1'!M60,'Stage 2'!M60,'Stage 3'!M60,'Stage 4'!M60,'Stage 5'!M60,'Stage 6'!M60)=0,"Yes","No")) -> 0 | T61: =IF(P61=0,99999,P61) -> 99999 | U61: =IF(Q61=0,99999,Q61) -> 99999 | V61: =IF(ISBLANK('Shooter Information'!C62),"ZZZZZZZZZZ",C61) -> ZZZZZZZZZZ | W61: =CELL("row",'Shooter Information'!B62) -> 62
A62: =IF(ISBLANK('Shooter Information'!B63),,ROW()-4) -> 0 | B62: ='Shooter Information'!B63 -> 0 | C62: ='Shooter Information'!C63 -> 0 | D62: =+'Stage 1'!K61 -> 0 | E62: =+'Stage 1'!L61 -> 0 | F62: =+'Stage 2'!K61 -> 0 | G62: =+'Stage 2'!L61 -> 0 | H62: =+'Stage 3'!K61 -> 0 | I62: =+'Stage 3'!L61 -> 0 | J62: =+'Stage 4'!K61 -> 0 | K62: =+'Stage 4'!L61 -> 0 | L62: =+'Stage 5'!K61 -> 0 | M62: =+'Stage 5'!L61 -> 0 | N62: =+'Stage 6'!K61 -> 0 | O62: =+'Stage 6'!L61 -> 0 | P62: =+D62+F62+H62+J62+L62+N62 -> 0 | Q62: =+E62+G62+I62+K62+M62+O62 -> 0 | R62: =IF(ISBLANK('Shooter Information'!B63),,IF(SUM('Stage 1'!M61,'Stage 2'!M61,'Stage 3'!M61,'Stage 4'!M61,'Stage 5'!M61,'Stage 6'!M61)=0,"Yes","No")) -> 0 | T62: =IF(P62=0,99999,P62) -> 99999 | U62: =IF(Q62=0,99999,Q62) -> 99999 | V62: =IF(ISBLANK('Shooter Information'!C63),"ZZZZZZZZZZ",C62) -> ZZZZZZZZZZ | W62: =CELL("row",'Shooter Information'!B63) -> 63
A63: =IF(ISBLANK('Shooter Information'!B64),,ROW()-4) -> 0 | B63: ='Shooter Information'!B64 -> 0 | C63: ='Shooter Information'!C64 -> 0 | D63: =+'Stage 1'!K62 -> 0 | E63: =+'Stage 1'!L62 -> 0 | F63: =+'Stage 2'!K62 -> 0 | G63: =+'Stage 2'!L62 -> 0 | H63: =+'Stage 3'!K62 -> 0 | I63: =+'Stage 3'!L62 -> 0 | J63: =+'Stage 4'!K62 -> 0 | K63: =+'Stage 4'!L62 -> 0 | L63: =+'Stage 5'!K62 -> 0 | M63: =+'Stage 5'!L62 -> 0 | N63: =+'Stage 6'!K62 -> 0 | O63: =+'Stage 6'!L62 -> 0 | P63: =+D63+F63+H63+J63+L63+N63 -> 0 | Q63: =+E63+G63+I63+K63+M63+O63 -> 0 | R63: =IF(ISBLANK('Shooter Information'!B64),,IF(SUM('Stage 1'!M62,'Stage 2'!M62,'Stage 3'!M62,'Stage 4'!M62,'Stage 5'!M62,'Stage 6'!M62)=0,"Yes","No")) -> 0 | T63: =IF(P63=0,99999,P63) -> 99999 | U63: =IF(Q63=0,99999,Q63) -> 99999 | V63: =IF(ISBLANK('Shooter Information'!C64),"ZZZZZZZZZZ",C63) -> ZZZZZZZZZZ | W63: =CELL("row",'Shooter Information'!B64) -> 64
A64: =IF(ISBLANK('Shooter Information'!B65),,ROW()-4) -> 0 | B64: ='Shooter Information'!B65 -> 0 | C64: ='Shooter Information'!C65 -> 0 | D64: =+'Stage 1'!K63 -> 0 | E64: =+'Stage 1'!L63 -> 0 | F64: =+'Stage 2'!K63 -> 0 | G64: =+'Stage 2'!L63 -> 0 | H64: =+'Stage 3'!K63 -> 0 | I64: =+'Stage 3'!L63 -> 0 | J64: =+'Stage 4'!K63 -> 0 | K64: =+'Stage 4'!L63 -> 0 | L64: =+'Stage 5'!K63 -> 0 | M64: =+'Stage 5'!L63 -> 0 | N64: =+'Stage 6'!K63 -> 0 | O64: =+'Stage 6'!L63 -> 0 | P64: =+D64+F64+H64+J64+L64+N64 -> 0 | Q64: =+E64+G64+I64+K64+M64+O64 -> 0 | R64: =IF(ISBLANK('Shooter Information'!B65),,IF(SUM('Stage 1'!M63,'Stage 2'!M63,'Stage 3'!M63,'Stage 4'!M63,'Stage 5'!M63,'Stage 6'!M63)=0,"Yes","No")) -> 0 | T64: =IF(P64=0,99999,P64) -> 99999 | U64: =IF(Q64=0,99999,Q64) -> 99999 | V64: =IF(ISBLANK('Shooter Information'!C65),"ZZZZZZZZZZ",C64) -> ZZZZZZZZZZ | W64: =CELL("row",'Shooter Information'!B65) -> 65
A65: =IF(ISBLANK('Shooter Information'!B66),,ROW()-4) -> 0 | B65: ='Shooter Information'!B66 -> 0 | C65: ='Shooter Information'!C66 -> 0 | D65: =+'Stage 1'!K64 -> 0 | E65: =+'Stage 1'!L64 -> 0 | F65: =+'Stage 2'!K64 -> 0 | G65: =+'Stage 2'!L64 -> 0 | H65: =+'Stage 3'!K64 -> 0 | I65: =+'Stage 3'!L64 -> 0 | J65: =+'Stage 4'!K64 -> 0 | K65: =+'Stage 4'!L64 -> 0 | L65: =+'Stage 5'!K64 -> 0 | M65: =+'Stage 5'!L64 -> 0 | N65: =+'Stage 6'!K64 -> 0 | O65: =+'Stage 6'!L64 -> 0 | P65: =+D65+F65+H65+J65+L65+N65 -> 0 | Q65: =+E65+G65+I65+K65+M65+O65 -> 0 | R65: =IF(ISBLANK('Shooter Information'!B66),,IF(SUM('Stage 1'!M64,'Stage 2'!M64,'Stage 3'!M64,'Stage 4'!M64,'Stage 5'!M64,'Stage 6'!M64)=0,"Yes","No")) -> 0 | T65: =IF(P65=0,99999,P65) -> 99999 | U65: =IF(Q65=0,99999,Q65) -> 99999 | V65: =IF(ISBLANK('Shooter Information'!C66),"ZZZZZZZZZZ",C65) -> ZZZZZZZZZZ | W65: =CELL("row",'Shooter Information'!B66) -> 66
A66: =IF(ISBLANK('Shooter Information'!B67),,ROW()-4) -> 0 | B66: ='Shooter Information'!B67 -> 0 | C66: ='Shooter Information'!C67 -> 0 | D66: =+'Stage 1'!K65 -> 0 | E66: =+'Stage 1'!L65 -> 0 | F66: =+'Stage 2'!K65 -> 0 | G66: =+'Stage 2'!L65 -> 0 | H66: =+'Stage 3'!K65 -> 0 | I66: =+'Stage 3'!L65 -> 0 | J66: =+'Stage 4'!K65 -> 0 | K66: =+'Stage 4'!L65 -> 0 | L66: =+'Stage 5'!K65 -> 0 | M66: =+'Stage 5'!L65 -> 0 | N66: =+'Stage 6'!K65 -> 0 | O66: =+'Stage 6'!L65 -> 0 | P66: =+D66+F66+H66+J66+L66+N66 -> 0 | Q66: =+E66+G66+I66+K66+M66+O66 -> 0 | R66: =IF(ISBLANK('Shooter Information'!B67),,IF(SUM('Stage 1'!M65,'Stage 2'!M65,'Stage 3'!M65,'Stage 4'!M65,'Stage 5'!M65,'Stage 6'!M65)=0,"Yes","No")) -> 0 | T66: =IF(P66=0,99999,P66) -> 99999 | U66: =IF(Q66=0,99999,Q66) -> 99999 | V66: =IF(ISBLANK('Shooter Information'!C67),"ZZZZZZZZZZ",C66) -> ZZZZZZZZZZ | W66: =CELL("row",'Shooter Information'!B67) -> 67
A67: =IF(ISBLANK('Shooter Information'!B68),,ROW()-4) -> 0 | B67: ='Shooter Information'!B68 -> 0 | C67: ='Shooter Information'!C68 -> 0 | D67: =+'Stage 1'!K66 -> 0 | E67: =+'Stage 1'!L66 -> 0 | F67: =+'Stage 2'!K66 -> 0 | G67: =+'Stage 2'!L66 -> 0 | H67: =+'Stage 3'!K66 -> 0 | I67: =+'Stage 3'!L66 -> 0 | J67: =+'Stage 4'!K66 -> 0 | K67: =+'Stage 4'!L66 -> 0 | L67: =+'Stage 5'!K66 -> 0 | M67: =+'Stage 5'!L66 -> 0 | N67: =+'Stage 6'!K66 -> 0 | O67: =+'Stage 6'!L66 -> 0 | P67: =+D67+F67+H67+J67+L67+N67 -> 0 | Q67: =+E67+G67+I67+K67+M67+O67 -> 0 | R67: =IF(ISBLANK('Shooter Information'!B68),,IF(SUM('Stage 1'!M66,'Stage 2'!M66,'Stage 3'!M66,'Stage 4'!M66,'Stage 5'!M66,'Stage 6'!M66)=0,"Yes","No")) -> 0 | T67: =IF(P67=0,99999,P67) -> 99999 | U67: =IF(Q67=0,99999,Q67) -> 99999 | V67: =IF(ISBLANK('Shooter Information'!C68),"ZZZZZZZZZZ",C67) -> ZZZZZZZZZZ | W67: =CELL("row",'Shooter Information'!B68) -> 68
A68: =IF(ISBLANK('Shooter Information'!B69),,ROW()-4) -> 0 | B68: ='Shooter Information'!B69 -> 0 | C68: ='Shooter Information'!C69 -> 0 | D68: =+'Stage 1'!K67 -> 0 | E68: =+'Stage 1'!L67 -> 0 | F68: =+'Stage 2'!K67 -> 0 | G68: =+'Stage 2'!L67 -> 0 | H68: =+'Stage 3'!K67 -> 0 | I68: =+'Stage 3'!L67 -> 0 | J68: =+'Stage 4'!K67 -> 0 | K68: =+'Stage 4'!L67 -> 0 | L68: =+'Stage 5'!K67 -> 0 | M68: =+'Stage 5'!L67 -> 0 | N68: =+'Stage 6'!K67 -> 0 | O68: =+'Stage 6'!L67 -> 0 | P68: =+D68+F68+H68+J68+L68+N68 -> 0 | Q68: =+E68+G68+I68+K68+M68+O68 -> 0 | R68: =IF(ISBLANK('Shooter Information'!B69),,IF(SUM('Stage 1'!M67,'Stage 2'!M67,'Stage 3'!M67,'Stage 4'!M67,'Stage 5'!M67,'Stage 6'!M67)=0,"Yes","No")) -> 0 | T68: =IF(P68=0,99999,P68) -> 99999 | U68: =IF(Q68=0,99999,Q68) -> 99999 | V68: =IF(ISBLANK('Shooter Information'!C69),"ZZZZZZZZZZ",C68) -> ZZZZZZZZZZ | W68: =CELL("row",'Shooter Information'!B69) -> 69
A69: =IF(ISBLANK('Shooter Information'!B70),,ROW()-4) -> 0 | B69: ='Shooter Information'!B70 -> 0 | C69: ='Shooter Information'!C70 -> 0 | D69: =+'Stage 1'!K68 -> 0 | E69: =+'Stage 1'!L68 -> 0 | F69: =+'Stage 2'!K68 -> 0 | G69: =+'Stage 2'!L68 -> 0 | H69: =+'Stage 3'!K68 -> 0 | I69: =+'Stage 3'!L68 -> 0 | J69: =+'Stage 4'!K68 -> 0 | K69: =+'Stage 4'!L68 -> 0 | L69: =+'Stage 5'!K68 -> 0 | M69: =+'Stage 5'!L68 -> 0 | N69: =+'Stage 6'!K68 -> 0 | O69: =+'Stage 6'!L68 -> 0 | P69: =+D69+F69+H69+J69+L69+N69 -> 0 | Q69: =+E69+G69+I69+K69+M69+O69 -> 0 | R69: =IF(ISBLANK('Shooter Information'!B70),,IF(SUM('Stage 1'!M68,'Stage 2'!M68,'Stage 3'!M68,'Stage 4'!M68,'Stage 5'!M68,'Stage 6'!M68)=0,"Yes","No")) -> 0 | T69: =IF(P69=0,99999,P69) -> 99999 | U69: =IF(Q69=0,99999,Q69) -> 99999 | V69: =IF(ISBLANK('Shooter Information'!C70),"ZZZZZZZZZZ",C69) -> ZZZZZZZZZZ | W69: =CELL("row",'Shooter Information'!B70) -> 70
A70: =IF(ISBLANK('Shooter Information'!B71),,ROW()-4) -> 0 | B70: ='Shooter Information'!B71 -> 0 | C70: ='Shooter Information'!C71 -> 0 | D70: =+'Stage 1'!K69 -> 0 | E70: =+'Stage 1'!L69 -> 0 | F70: =+'Stage 2'!K69 -> 0 | G70: =+'Stage 2'!L69 -> 0 | H70: =+'Stage 3'!K69 -> 0 | I70: =+'Stage 3'!L69 -> 0 | J70: =+'Stage 4'!K69 -> 0 | K70: =+'Stage 4'!L69 -> 0 | L70: =+'Stage 5'!K69 -> 0 | M70: =+'Stage 5'!L69 -> 0 | N70: =+'Stage 6'!K69 -> 0 | O70: =+'Stage 6'!L69 -> 0 | P70: =+D70+F70+H70+J70+L70+N70 -> 0 | Q70: =+E70+G70+I70+K70+M70+O70 -> 0 | R70: =IF(ISBLANK('Shooter Information'!B71),,IF(SUM('Stage 1'!M69,'Stage 2'!M69,'Stage 3'!M69,'Stage 4'!M69,'Stage 5'!M69,'Stage 6'!M69)=0,"Yes","No")) -> 0 | T70: =IF(P70=0,99999,P70) -> 99999 | U70: =IF(Q70=0,99999,Q70) -> 99999 | V70: =IF(ISBLANK('Shooter Information'!C71),"ZZZZZZZZZZ",C70) -> ZZZZZZZZZZ | W70: =CELL("row",'Shooter Information'!B71) -> 71
A71: =IF(ISBLANK('Shooter Information'!B72),,ROW()-4) -> 0 | B71: ='Shooter Information'!B72 -> 0 | C71: ='Shooter Information'!C72 -> 0 | D71: =+'Stage 1'!K70 -> 0 | E71: =+'Stage 1'!L70 -> 0 | F71: =+'Stage 2'!K70 -> 0 | G71: =+'Stage 2'!L70 -> 0 | H71: =+'Stage 3'!K70 -> 0 | I71: =+'Stage 3'!L70 -> 0 | J71: =+'Stage 4'!K70 -> 0 | K71: =+'Stage 4'!L70 -> 0 | L71: =+'Stage 5'!K70 -> 0 | M71: =+'Stage 5'!L70 -> 0 | N71: =+'Stage 6'!K70 -> 0 | O71: =+'Stage 6'!L70 -> 0 | P71: =+D71+F71+H71+J71+L71+N71 -> 0 | Q71: =+E71+G71+I71+K71+M71+O71 -> 0 | R71: =IF(ISBLANK('Shooter Information'!B72),,IF(SUM('Stage 1'!M70,'Stage 2'!M70,'Stage 3'!M70,'Stage 4'!M70,'Stage 5'!M70,'Stage 6'!M70)=0,"Yes","No")) -> 0 | T71: =IF(P71=0,99999,P71) -> 99999 | U71: =IF(Q71=0,99999,Q71) -> 99999 | V71: =IF(ISBLANK('Shooter Information'!C72),"ZZZZZZZZZZ",C71) -> ZZZZZZZZZZ | W71: =CELL("row",'Shooter Information'!B72) -> 72
A72: =IF(ISBLANK('Shooter Information'!B73),,ROW()-4) -> 0 | B72: ='Shooter Information'!B73 -> 0 | C72: ='Shooter Information'!C73 -> 0 | D72: =+'Stage 1'!K71 -> 0 | E72: =+'Stage 1'!L71 -> 0 | F72: =+'Stage 2'!K71 -> 0 | G72: =+'Stage 2'!L71 -> 0 | H72: =+'Stage 3'!K71 -> 0 | I72: =+'Stage 3'!L71 -> 0 | J72: =+'Stage 4'!K71 -> 0 | K72: =+'Stage 4'!L71 -> 0 | L72: =+'Stage 5'!K71 -> 0 | M72: =+'Stage 5'!L71 -> 0 | N72: =+'Stage 6'!K71 -> 0 | O72: =+'Stage 6'!L71 -> 0 | P72: =+D72+F72+H72+J72+L72+N72 -> 0 | Q72: =+E72+G72+I72+K72+M72+O72 -> 0 | R72: =IF(ISBLANK('Shooter Information'!B73),,IF(SUM('Stage 1'!M71,'Stage 2'!M71,'Stage 3'!M71,'Stage 4'!M71,'Stage 5'!M71,'Stage 6'!M71)=0,"Yes","No")) -> 0 | T72: =IF(P72=0,99999,P72) -> 99999 | U72: =IF(Q72=0,99999,Q72) -> 99999 | V72: =IF(ISBLANK('Shooter Information'!C73),"ZZZZZZZZZZ",C72) -> ZZZZZZZZZZ | W72: =CELL("row",'Shooter Information'!B73) -> 73
A73: =IF(ISBLANK('Shooter Information'!B74),,ROW()-4) -> 0 | B73: ='Shooter Information'!B74 -> 0 | C73: ='Shooter Information'!C74 -> 0 | D73: =+'Stage 1'!K72 -> 0 | E73: =+'Stage 1'!L72 -> 0 | F73: =+'Stage 2'!K72 -> 0 | G73: =+'Stage 2'!L72 -> 0 | H73: =+'Stage 3'!K72 -> 0 | I73: =+'Stage 3'!L72 -> 0 | J73: =+'Stage 4'!K72 -> 0 | K73: =+'Stage 4'!L72 -> 0 | L73: =+'Stage 5'!K72 -> 0 | M73: =+'Stage 5'!L72 -> 0 | N73: =+'Stage 6'!K72 -> 0 | O73: =+'Stage 6'!L72 -> 0 | P73: =+D73+F73+H73+J73+L73+N73 -> 0 | Q73: =+E73+G73+I73+K73+M73+O73 -> 0 | R73: =IF(ISBLANK('Shooter Information'!B74),,IF(SUM('Stage 1'!M72,'Stage 2'!M72,'Stage 3'!M72,'Stage 4'!M72,'Stage 5'!M72,'Stage 6'!M72)=0,"Yes","No")) -> 0 | T73: =IF(P73=0,99999,P73) -> 99999 | U73: =IF(Q73=0,99999,Q73) -> 99999 | V73: =IF(ISBLANK('Shooter Information'!C74),"ZZZZZZZZZZ",C73) -> ZZZZZZZZZZ | W73: =CELL("row",'Shooter Information'!B74) -> 74
A74: =IF(ISBLANK('Shooter Information'!B75),,ROW()-4) -> 0 | B74: ='Shooter Information'!B75 -> 0 | C74: ='Shooter Information'!C75 -> 0 | D74: =+'Stage 1'!K73 -> 0 | E74: =+'Stage 1'!L73 -> 0 | F74: =+'Stage 2'!K73 -> 0 | G74: =+'Stage 2'!L73 -> 0 | H74: =+'Stage 3'!K73 -> 0 | I74: =+'Stage 3'!L73 -> 0 | J74: =+'Stage 4'!K73 -> 0 | K74: =+'Stage 4'!L73 -> 0 | L74: =+'Stage 5'!K73 -> 0 | M74: =+'Stage 5'!L73 -> 0 | N74: =+'Stage 6'!K73 -> 0 | O74: =+'Stage 6'!L73 -> 0 | P74: =+D74+F74+H74+J74+L74+N74 -> 0 | Q74: =+E74+G74+I74+K74+M74+O74 -> 0 | R74: =IF(ISBLANK('Shooter Information'!B75),,IF(SUM('Stage 1'!M73,'Stage 2'!M73,'Stage 3'!M73,'Stage 4'!M73,'Stage 5'!M73,'Stage 6'!M73)=0,"Yes","No")) -> 0 | T74: =IF(P74=0,99999,P74) -> 99999 | U74: =IF(Q74=0,99999,Q74) -> 99999 | V74: =IF(ISBLANK('Shooter Information'!C75),"ZZZZZZZZZZ",C74) -> ZZZZZZZZZZ | W74: =CELL("row",'Shooter Information'!B75) -> 75
A75: =IF(ISBLANK('Shooter Information'!B76),,ROW()-4) -> 0 | B75: ='Shooter Information'!B76 -> 0 | C75: ='Shooter Information'!C76 -> 0 | D75: =+'Stage 1'!K74 -> 0 | E75: =+'Stage 1'!L74 -> 0 | F75: =+'Stage 2'!K74 -> 0 | G75: =+'Stage 2'!L74 -> 0 | H75: =+'Stage 3'!K74 -> 0 | I75: =+'Stage 3'!L74 -> 0 | J75: =+'Stage 4'!K74 -> 0 | K75: =+'Stage 4'!L74 -> 0 | L75: =+'Stage 5'!K74 -> 0 | M75: =+'Stage 5'!L74 -> 0 | N75: =+'Stage 6'!K74 -> 0 | O75: =+'Stage 6'!L74 -> 0 | P75: =+D75+F75+H75+J75+L75+N75 -> 0 | Q75: =+E75+G75+I75+K75+M75+O75 -> 0 | R75: =IF(ISBLANK('Shooter Information'!B76),,IF(SUM('Stage 1'!M74,'Stage 2'!M74,'Stage 3'!M74,'Stage 4'!M74,'Stage 5'!M74,'Stage 6'!M74)=0,"Yes","No")) -> 0 | T75: =IF(P75=0,99999,P75) -> 99999 | U75: =IF(Q75=0,99999,Q75) -> 99999 | V75: =IF(ISBLANK('Shooter Information'!C76),"ZZZZZZZZZZ",C75) -> ZZZZZZZZZZ | W75: =CELL("row",'Shooter Information'!B76) -> 76
A76: =IF(ISBLANK('Shooter Information'!B77),,ROW()-4) -> 0 | B76: ='Shooter Information'!B77 -> 0 | C76: ='Shooter Information'!C77 -> 0 | D76: =+'Stage 1'!K75 -> 0 | E76: =+'Stage 1'!L75 -> 0 | F76: =+'Stage 2'!K75 -> 0 | G76: =+'Stage 2'!L75 -> 0 | H76: =+'Stage 3'!K75 -> 0 | I76: =+'Stage 3'!L75 -> 0 | J76: =+'Stage 4'!K75 -> 0 | K76: =+'Stage 4'!L75 -> 0 | L76: =+'Stage 5'!K75 -> 0 | M76: =+'Stage 5'!L75 -> 0 | N76: =+'Stage 6'!K75 -> 0 | O76: =+'Stage 6'!L75 -> 0 | P76: =+D76+F76+H76+J76+L76+N76 -> 0 | Q76: =+E76+G76+I76+K76+M76+O76 -> 0 | R76: =IF(ISBLANK('Shooter Information'!B77),,IF(SUM('Stage 1'!M75,'Stage 2'!M75,'Stage 3'!M75,'Stage 4'!M75,'Stage 5'!M75,'Stage 6'!M75)=0,"Yes","No")) -> 0 | T76: =IF(P76=0,99999,P76) -> 99999 | U76: =IF(Q76=0,99999,Q76) -> 99999 | V76: =IF(ISBLANK('Shooter Information'!C77),"ZZZZZZZZZZ",C76) -> ZZZZZZZZZZ | W76: =CELL("row",'Shooter Information'!B77) -> 77
A77: =IF(ISBLANK('Shooter Information'!B78),,ROW()-4) -> 0 | B77: ='Shooter Information'!B78 -> 0 | C77: ='Shooter Information'!C78 -> 0 | D77: =+'Stage 1'!K76 -> 0 | E77: =+'Stage 1'!L76 -> 0 | F77: =+'Stage 2'!K76 -> 0 | G77: =+'Stage 2'!L76 -> 0 | H77: =+'Stage 3'!K76 -> 0 | I77: =+'Stage 3'!L76 -> 0 | J77: =+'Stage 4'!K76 -> 0 | K77: =+'Stage 4'!L76 -> 0 | L77: =+'Stage 5'!K76 -> 0 | M77: =+'Stage 5'!L76 -> 0 | N77: =+'Stage 6'!K76 -> 0 | O77: =+'Stage 6'!L76 -> 0 | P77: =+D77+F77+H77+J77+L77+N77 -> 0 | Q77: =+E77+G77+I77+K77+M77+O77 -> 0 | R77: =IF(ISBLANK('Shooter Information'!B78),,IF(SUM('Stage 1'!M76,'Stage 2'!M76,'Stage 3'!M76,'Stage 4'!M76,'Stage 5'!M76,'Stage 6'!M76)=0,"Yes","No")) -> 0 | T77: =IF(P77=0,99999,P77) -> 99999 | U77: =IF(Q77=0,99999,Q77) -> 99999 | V77: =IF(ISBLANK('Shooter Information'!C78),"ZZZZZZZZZZ",C77) -> ZZZZZZZZZZ | W77: =CELL("row",'Shooter Information'!B78) -> 78
A78: =IF(ISBLANK('Shooter Information'!B79),,ROW()-4) -> 0 | B78: ='Shooter Information'!B79 -> 0 | C78: ='Shooter Information'!C79 -> 0 | D78: =+'Stage 1'!K77 -> 0 | E78: =+'Stage 1'!L77 -> 0 | F78: =+'Stage 2'!K77 -> 0 | G78: =+'Stage 2'!L77 -> 0 | H78: =+'Stage 3'!K77 -> 0 | I78: =+'Stage 3'!L77 -> 0 | J78: =+'Stage 4'!K77 -> 0 | K78: =+'Stage 4'!L77 -> 0 | L78: =+'Stage 5'!K77 -> 0 | M78: =+'Stage 5'!L77 -> 0 | N78: =+'Stage 6'!K77 -> 0 | O78: =+'Stage 6'!L77 -> 0 | P78: =+D78+F78+H78+J78+L78+N78 -> 0 | Q78: =+E78+G78+I78+K78+M78+O78 -> 0 | R78: =IF(ISBLANK('Shooter Information'!B79),,IF(SUM('Stage 1'!M77,'Stage 2'!M77,'Stage 3'!M77,'Stage 4'!M77,'Stage 5'!M77,'Stage 6'!M77)=0,"Yes","No")) -> 0 | T78: =IF(P78=0,99999,P78) -> 99999 | U78: =IF(Q78=0,99999,Q78) -> 99999 | V78: =IF(ISBLANK('Shooter Information'!C79),"ZZZZZZZZZZ",C78) -> ZZZZZZZZZZ | W78: =CELL("row",'Shooter Information'!B79) -> 79
A79: =IF(ISBLANK('Shooter Information'!B80),,ROW()-4) -> 0 | B79: ='Shooter Information'!B80 -> 0 | C79: ='Shooter Information'!C80 -> 0 | D79: =+'Stage 1'!K78 -> 0 | E79: =+'Stage 1'!L78 -> 0 | F79: =+'Stage 2'!K78 -> 0 | G79: =+'Stage 2'!L78 -> 0 | H79: =+'Stage 3'!K78 -> 0 | I79: =+'Stage 3'!L78 -> 0 | J79: =+'Stage 4'!K78 -> 0 | K79: =+'Stage 4'!L78 -> 0 | L79: =+'Stage 5'!K78 -> 0 | M79: =+'Stage 5'!L78 -> 0 | N79: =+'Stage 6'!K78 -> 0 | O79: =+'Stage 6'!L78 -> 0 | P79: =+D79+F79+H79+J79+L79+N79 -> 0 | Q79: =+E79+G79+I79+K79+M79+O79 -> 0 | R79: =IF(ISBLANK('Shooter Information'!B80),,IF(SUM('Stage 1'!M78,'Stage 2'!M78,'Stage 3'!M78,'Stage 4'!M78,'Stage 5'!M78,'Stage 6'!M78)=0,"Yes","No")) -> 0 | T79: =IF(P79=0,99999,P79) -> 99999 | U79: =IF(Q79=0,99999,Q79) -> 99999 | V79: =IF(ISBLANK('Shooter Information'!C80),"ZZZZZZZZZZ",C79) -> ZZZZZZZZZZ | W79: =CELL("row",'Shooter Information'!B80) -> 80
